Workbook

Sheet SelectionSheet (hidden)

Sheet IncExp (hidden)
A1: STRETFORD AMATEUR SWIMMING CLUB
A3: INCOME AND EXPENDITURE ACCOUNT
B5: 2021-10-31 | H5: 2020-10-31 | I5: 2000-01-01 | J5: 2002-01-31 | K5: 2002-02-28 | L5: 31/03/02 | M5: 2002-04-30 | N5: 2002-05-31 | O5: 2002-06-30 | P5: 2002-08-31 | Q5: 2002-09-30 | R5: 2002-09-30 | S5: 2002-10-31 | T5: 2002-11-30 | U5: 2002-12-31 | V5: 2003-01-31 | W5: 2003-02-28 | X5: 2003-03-31 | Y5: 2003-04-30 | Z5: 2003-05-31 | AA5: 2003-06-30 | AB5: 2003-07-30 | AC5: 2003-08-31 | AD5: 2003-09-30 | AE5: 2003-10-31 | AF5: 2003-11-30 | AG5: 2003-12-31 | AH5: 2004-01-31 | AI5: 2004-02-29 | AJ5: 2004-03-31 | AK5: 2004-04-30 | AL5: 2004-05-31 | AM5: 2004-06-30 | AN5: 2004-07-31 | AO5: 2004-08-31 | AP5: 2004-09-30 | AQ5: 2004-10-30 | AR5: 2004-11-30 | AS5: 2004-12-31 | AT5: 2005-01-31 | AU5: 2005-02-28 | AV5: 2005-03-31 | AW5: 2005-04-30 | AX5: 2005-05-31 | AY5: 2005-06-30 | AZ5: 2005-07-31 | BA5: 2005-08-31 | BB5: 2005-09-30 | BC5: 2005-10-31 | BD5: 2005-11-30 | BE5: 2005-12-31 | BF5: 2006-01-31 | BG5: 2006-02-28 | BH5: 2006-03-31 | BI5: 2006-04-30 | BJ5: 2006-05-31 | BK5: 2006-06-30 | BL5: 2006-07-31 | BM5: 2006-08-31 | BN5: 2006-09-30 | BO5: 2006-10-31 | BP5: 2006-11-30 | BQ5: 2006-12-31 | BR5: 2007-01-31 | BS5: 2007-02-28 | BT5: 2007-03-31 | BU5: 2007-04-30 | BV5: 2007-05-31 | BW5: 2007-06-30 | BX5: 2007-07-31 | BY5: 2007-08-31 | BZ5: 2007-09-30 | CA5: 2007-10-31 | CB5: 2007-11-30 | CC5: 2007-12-31 | CD5: 2008-01-31 | CE5: 2008-02-29 | CF5: 2008-03-31 | CG5: 2008-04-30 | CH5: 2008-05-31 | CI5: 2008-06-30 | CJ5: 2008-07-31 | CK5: 2008-08-31 | CL5: 2008-09-30 | CM5: 2008-10-31 | CN5: 2008-11-30 | CO5: 2008-12-31 | CP5: 2009-01-31 | CQ5: 2009-02-28 | CR5: 2009-03-31 | CS5: 2009-04-30 | CT5: 2009-05-31 | CU5: 2009-06-30 | CV5: 2009-07-31 | CW5: 2009-08-31 | CX5: 2009-09-30 | CY5: 2009-10-31 | CZ5: 2009-11-30 | DA5: 2009-12-31 | DB5: 2010-01-31 | DC5: 2010-02-28 | DD5: 2010-03-31 | DE5: 2010-04-30 | DF5: 2010-05-31 | DG5: 2010-06-30 | DH5: 2010-07-31 | DI5: 2010-08-31 | DJ5: 2010-09-30 | DK5: 2010-10-31 | DL5: 2010-11-30 | DM5: 2010-12-31 | DN5: 2011-01-31 | DO5: 2011-02-28 | DP5: 2011-03-31 | DQ5: 2011-04-30 | DR5: 2011-05-31 | DS5: 2011-06-30 | DT5: 2011-07-31 | DU5: 2011-08-31 | DV5: 2011-09-30 | DW5: 2011-10-31 | DX5: 2011-11-30 | DY5: 2011-12-31 | DZ5: 2012-01-31 | EA5: 2012-02-29 | EB5: 2012-03-31 | EC5: 2012-04-30 | ED5: 2012-05-31 | EE5: 2012-06-30 | EF5: 2012-07-31 | EG5: 2012-08-31 | EH5: 2012-09-30 | EI5: 2012-10-31 | EJ5: 2012-11-30 | EK5: 2012-12-31 | EL5: 2013-01-31 | EM5: 2013-02-28 | EN5: 2013-03-31 | EO5: 2013-04-30 | EP5: 2013-05-31 | EQ5: 2013-06-30 | ER5: 2013-07-31 | ES5: 2013-08-31 | ET5: 2013-09-30 | EU5: 2013-10-31 | EV5: 2013-11-30 | EW5: 2013-12-31 | EX5: 2014-01-31 | EY5: 2014-02-28 | EZ5: 2014-03-31 | FA5: 2014-04-30 | FB5: 2014-05-31 | FC5: 2014-06-30 | FD5: 2014-07-31 | FE5: 2014-08-31 | FF5: 2014-09-30 | FG5: 2014-10-31 | FH5: 2014-11-30 | FI5: 2014-12-31 | FJ5: 2015-01-31 | FK5: 2015-02-28 | FL5: 2015-03-31 | FM5: 2015-04-30 | FN5: 2015-05-31 | FO5: 2015-06-30 | FP5: 2015-07-31 | FQ5: 2015-08-31 | FR5: 2015-09-30 | FS5: 2015-10-31 | FT5: 2015-11-30 | FU5: 2015-12-31 | FV5: 2016-01-31 | FW5: 2016-02-29 | FX5: 2016-03-31 | FY5: 2016-04-30 | FZ5: 2016-05-31 | GA5: 2016-06-30 | GB5: 2016-07-31 | GC5: 2016-08-31 | GD5: 2016-09-30 | GE5: 2016-10-31 | GF5: 2016-11-30 | GG5: 2016-12-31 | GH5: 2017-01-31 | GI5: 2017-02-28 | GJ5: 2017-03-31 | GK5: 2017-04-30 | GL5: 2017-05-31 | GM5: 2017-06-30 | GN5: 2017-07-31 | GO5: 2017-08-31 | GP5: 2017-09-30 | GQ5: 2017-10-31 | GR5: 2017-11-30 | GS5: 2017-12-31 | GT5: 2018-01-31 | GU5: 2018-02-28 | GV5: 2018-03-31 | GW5: 2018-04-30 | GX5: 2018-05-31 | GY5: 2018-06-30 | GZ5: 2018-07-31 | HA5: 2018-08-31 | HB5: 2018-09-30 | HC5: 2018-10-31 | HD5: 2018-11-30 | HE5: 2018-12-31 | HF5: 2019-01-31 | HG5: 2019-02-28 | HH5: 2019-03-31 | HI5: 2019-04-30 | HJ5: 2019-05-31 | HK5: 2019-06-30 | HL5: 2019-07-31 | HM5: 2019-08-31 | HN5: 2019-09-30 | HO5: 2019-10-31 | HP5: 2019-11-30 | HQ5: 2019-12-31 | HR5: 2020-01-31 | HS5: 2020-02-29 | HT5: 2020-03-31 | HU5: 2020-04-30 | HV5: 2020-05-31 | HW5: 2020-06-30 | HX5: 2020-07-31 | HY5: 2020-08-31 | HZ5: 2020-09-30 | IA5: 2020-10-31 | IB5: 2020-11-30 | IC5: 2020-12-31 | ID5: 2021-01-31 | IE5: 2021-02-28 | IF5: 2021-03-31 | IG5: 2021-04-30 | IH5: 2021-05-31 | II5: 2021-06-30 | IJ5: 2021-07-31 | IK5: 2021-08-31 | IL5: 2021-09-30 | IM5: 2021-10-31
E6: £ | F6: £ | G6: £ | H6: £ | I6: Pounds | J6: £ | K6: £ | L6: £ | M6: £ | N6: £ | O6: £ | P6: £ | Q6: £ | R6: £ | S6: £ | T6: £ | U6: £ | V6: £ | W6: £ | X6: £ | Y6: £ | Z6: £ | AA6: £ | AB6: £ | AC6: £ | AD6: £ | AE6: £ | AF6: £ | AG6: £ | AH6: £ | AI6: £ | AJ6: £ | AK6: £ | AL6: £ | AM6: £ | AN6: £ | AO6: £ | AP6: £ | AQ6: £ | AR6: £ | AS6: £ | AT6: £ | AU6: £ | AV6: £ | AW6: £ | AX6: £ | AY6: £ | AZ6: £ | BA6: £ | BB6: £ | BC6: £ | BD6: £ | BE6: £ | BF6: £ | BG6: £ | BH6: £ | BI6: £ | BJ6: £ | BK6: £ | BL6: £ | BM6: £ | BN6: £ | BO6: £ | BP6: £ | BQ6: £ | BR6: £ | BS6: £ | BT6: £ | BU6: £ | BV6: £ | BW6: £ | BX6: £ | BY6: £ | BZ6: £ | CA6: £ | CB6: £ | CC6: £ | CD6: £ | CE6: £ | CF6: £ | CG6: £ | CH6: £ | CI6: £ | CJ6: £ | CK6: £ | CL6: £ | CM6: £ | CN6: £ | CO6: £ | CP6: £ | CQ6: £ | CR6: £ | CS6: £ | CT6: £ | CU6: £ | CV6: £ | CW6: £ | CX6: £ | CY6: £ | CZ6: £ | DA6: £ | DB6: £ | DC6: £ | DD6: £ | DE6: £ | DF6: £ | DG6: £ | DH6: £ | DI6: £ | DJ6: £ | DK6: £ | DL6: £ | DM6: £ | DN6: £ | DO6: £ | DP6: £ | DQ6: £ | DR6: £ | DS6: £ | DT6: £ | DU6: £ | DV6: £ | DW6: £ | DX6: £ | DY6: £ | DZ6: £ | EA6: £ | EB6: £ | EC6: £ | ED6: £ | EE6: £ | EF6: £ | EG6: £ | EH6: £ | EI6: £ | EJ6: £ | EK6: £ | EL6: £ | EM6: £ | EN6: £ | EO6: £ | EP6: £ | EQ6: £ | ER6: £ | ES6: £ | ET6: £ | EU6: £ | EV6: £ | EW6: £ | EX6: £ | EY6: £ | EZ6: £ | FA6: £ | FB6: £ | FC6: £ | FD6: £ | FE6: £ | FF6: £ | FG6: £ | FH6: £ | FI6: £ | FJ6: £ | FK6: £ | FL6: £ | FM6: £ | FN6: £ | FO6: £ | FP6: £ | FQ6: £ | FR6: £ | FS6: £ | FT6: £ | FU6: £ | FV6: £ | FW6: £ | FX6: £ | FY6: £ | FZ6: £ | GA6: £ | GB6: £ | GC6: £ | GD6: £ | GE6: £ | GF6: £ | GG6: £ | GH6: £ | GI6: £ | GJ6: £ | GK6: £ | GL6: £ | GM6: £ | GN6: £ | GO6: £ | GP6: £ | GQ6: £ | GR6: £ | GS6: £ | GT6: £ | GU6: £ | GV6: £ | GW6: £ | GX6: £ | GY6: £ | GZ6: £ | HA6: £ | HB6: £ | HC6: £ | HD6: £ | HE6: £ | HF6: £ | HG6: £ | HH6: £ | HI6: £ | HJ6: £ | HK6: £ | HL6: £ | HM6: £ | HN6: £ | HO6: £ | HP6: £ | HQ6: £ | HR6: £ | HS6: £ | HT6: £ | HU6: £ | HV6: £ | HW6: £ | HX6: £ | HY6: £ | HZ6: £ | IA6: £ | IB6: £ | IC6: £ | ID6: £ | IE6: £ | IF6: £ | IG6: £ | IH6: £ | II6: £ | IJ6: £ | IK6: £ | IL6: £ | IM6: £
B8: BALANCE BROUGHT FORWARD: | E8: 2020-11-01 | G8: 53118.39 | H8: 51126.61 | J8: 17371.68 | K8: 17371.68 | L8: 17371.68 | M8: 17371.68 | N8: 17371.68 | O8: 17371.68 | P8: 17371.68 | Q8: 17371.68 | R8: 17371.68 | S8: 17371.68 | T8: 17371.68 | U8: 17371.68 | V8: 13668.76 | W8: 13668.76 | X8: 13668.76 | Y8: 13668.76 | Z8: 13668.76 | AA8: 13668.76 | AB8: 13668.76 | AC8: 13668.76 | AD8: 13668.76 | AE8: 13668.76 | AF8: 13668.76 | AG8: 13668.76 | AH8: 16017.52 | AI8: 16017.52 | AJ8: 16017.52 | AK8: 16017.52 | AL8: 16017.52 | AM8: 16017.52 | AN8: 16017.52 | AO8: 16017.52 | AP8: 16017.52 | AQ8: 16017.52 | AR8: 16017.52 | AS8: 16017.52 | AT8: 15075.87 | AU8: 15075.87 | AV8: 15075.87 | AW8: 15075.87 | AX8: 15075.87 | AY8: 15075.87 | AZ8: 15075.87 | BA8: 15075.87 | BB8: 15075.87 | BC8: 15075.87 | BD8: 15075.87 | BE8: 15075.87 | BF8: 10964.87 | BG8: 10964.87 | BH8: 10964.87 | BI8: 10964.87 | BJ8: 10964.87 | BK8: 10964.87 | BL8: 10964.87 | BM8: 10964.87 | BN8: 10964.87 | BO8: 10964.87 | BP8: 10964.87 | BQ8: 10964.87 | BR8: 28187.72 | BS8: 28187.72 | BT8: 28187.72 | BU8: 28187.72 | BV8: 28187.72 | BW8: 28187.72 | BX8: 28187.72 | BY8: 28187.72 | BZ8: 28187.72 | CA8: 28187.72 | CB8: 28187.72 | CC8: 28187.72 | CD8: 36163.33 | CE8: 36163.33 | CF8: 36163.33 | CG8: 36163.33 | CH8: 36163.33 | CI8: 36163.33 | CJ8: 36163.33 | CK8: 36163.33 | CL8: 36163.33 | CM8: 36163.33 | CN8: 36163.33 | CO8: 36163.33 | CP8: 39129.5 | CQ8: 39129.5 | CR8: 39129.5 | CS8: 39129.5 | CT8: 39129.5 | CU8: 39129.5 | CV8: 39129.5 | CW8: 39129.5 | CX8: 39129.5 | CY8: 39129.5 | CZ8: 39129.5 | DA8: 39129.5 | DB8: 36819.69 | DC8: 36819.69 | DD8: 36819.69 | DE8: 36819.69 | DF8: 36819.69 | DG8: 36819.69 | DH8: 36819.69 | DI8: 36819.69 | DJ8: 36819.69 | DK8: 36819.69 | DL8: 36819.69 | DM8: 36819.69 | DN8: 32113.23 | DO8: 32113.23 | DP8: 32113.23 | DQ8: 32113.23 | DR8: 32113.23 | DS8: 32113.23 | DT8: 32113.23 | DU8: 32113.23 | DV8: 32113.23 | DW8: 32113.23 | DX8: 32113.23 | DY8: 32113.23 | DZ8: 28856.8 | EA8: 28856.8 | EB8: 28856.8 | EC8: 28856.8 | ED8: 28856.8 | EE8: 28856.8 | EF8: 28856.8 | EG8: 28856.8 | EH8: 28856.8 | EI8: 28856.8 | EJ8: 28856.8 | EK8: 28856.8 | EL8: 29829.03 | EM8: 29829.03 | EN8: 29829.03 | EO8: 29829.03 | EP8: 29829.03 | EQ8: 29829.03 | ER8: 29829.03 | ES8: 29829.03 | ET8: 29829.03 | EU8: 29829.03 | EV8: 35028.62 | EW8: 35028.62 | EX8: 35028.62 | EY8: 35028.62 | EZ8: 35028.62 | FA8: 35028.62 | FB8: 35028.62 | FC8: 35028.62 | FD8: 35028.62 | FE8: 35028.62 | FF8: 35028.62 | FG8: 35028.62 | FH8: 37231.78 | FI8: 37231.78 | FJ8: 37231.78 | FK8: 37231.78 | FL8: 37231.78 | FM8: 37231.78 | FN8: 37231.78 | FO8: 37231.78 | FP8: 37231.78 | FQ8: 37231.78 | FR8: 37231.78 | FS8: 37231.78 | FT8: 32331.47 | FU8: 32331.47 | FV8: 32331.47 | FW8: 32331.47 | FX8: 32331.47 | FY8: 32331.47 | FZ8: 32331.47 | GA8: 32331.47 | GB8: 32331.47 | GC8: 32331.47 | GD8: 32331.47 | GE8: 32331.47 | GF8: 35157.95 | GG8: 35157.95 | GH8: 35157.95 | GI8: 35157.95 | GJ8: 35157.95 | GK8: 35157.95 | GL8: 35157.95 | GM8: 35157.95 | GN8: 35157.95 | GO8: 35157.95 | GP8: 35157.95 | GQ8: 35157.95 | GR8: 47005.85 | GS8: 47005.85 | GT8: 47005.85 | GU8: 47005.85 | GV8: 47005.85 | GW8: 47005.85 | GX8: 47005.85 | GY8: 47005.85 | GZ8: 47005.85 | HA8: 47005.85 | HB8: 47005.85 | HC8: 47005.85 | HD8: 47950.44 | HE8: 47950.44 | HF8: 47950.44 | HG8: 47950.44 | HH8: 47950.44 | HI8: 47950.44 | HJ8: 47950.44 | HK8: 47950.44 | HL8: 47950.44 | HM8: 47950.44 | HN8: 47950.44 | HO8: 47950.44 | HP8: 51126.61 | HQ8: 51126.61 | HR8: 51126.61 | HS8: 51126.61 | HT8: 51126.61 | HU8: 51126.61 | HV8: 51126.61 | HW8: 51126.61 | HX8: 51126.61 | HY8: 51126.61 | HZ8: 51126.61 | IA8: 51126.61 | IB8: 53118.39 | IC8: 53118.39 | ID8: 53118.39 | IE8: 53118.39 | IF8: 53118.39 | IG8: 53118.39 | IH8: 53118.39 | II8: 53118.39 | IJ8: 53118.39 | IK8: 53118.39 | IL8: 53118.39 | IM8: 53118.39
E10: INCOME | F10: EXPEND
A12: 1 | B12: Pool Hire | G12: =SUM(E12-F12) -> 0 | H12: 0 | J12: -1590 | K12: -1590 | L12: -4040.05 | M12: -9107.25 | N12: -9107.25 | O12: -11707.17 | P12: -12767.45 | Q12: -16879.05 | R12: -16879.05 | S12: -19205.25 | T12: -20988.65 | U12: -22810.55 | V12: -2084.2 | W12: -3974.2 | X12: -5001.7 | Y12: -5001.7 | Z12: -10523.2 | AA12: -11872.2 | AC12: -12799.5 | AD12: -18505.7 | AE12: -20164.2 | AF12: -21848.2 | AG12: -22691.2 | AH12: 0 | AI12: -4211.4 | AJ12: -4211.4 | AK12: -4989 | AL12: -5853 | AM12: -5853 | AN12: -6707.4 | AO12: -6707.4 | AP12: -20812.25 | AQ12: -23040.75 | AR12: -23040.75 | AS12: -23834.96 | AT12: 0 | AU12: -658.8 | AV12: -4203.55 | AW12: -5645.55 | AX12: -11092.55 | AY12: -13328.05 | AZ12: -13895.05 | BA12: -13895.05 | BB12: -14463.4 | BC12: -14937.7 | BD12: -18774.1 | BE12: -23097.1 | BF12: -561.6 | BG12: -4174.5 | BH12: -4520.1 | BI12: -7350.55 | BJ12: -9252.71 | BK12: -11501.74 | BL12: -11501.74 | BM12: -11501.74 | BN12: -11804.14 | BO12: -18390.11 | BP12: -18692.51 | BQ12: -19470.11 | BR12: -3503.82 | BS12: -5701.88 | BT12: -5701.88 | BU12: -6306.69 | BV12: -6306.69 | BW12: -7635.3 | BX12: -7198.17 | BY12: -7641.04 | BZ12: -8083.91 | CA12: -9403.78 | CB12: -11047.45 | CC12: -11490.32 | CD12: -442.87 | CE12: -1599.74 | CF12: -2423.42 | CG12: -3199.49 | CH12: -4261.15 | CI12: -4704.02 | CJ12: -5908.5 | CK12: -6351.37 | CL12: -6794.24 | CM12: -7638.68 | CN12: -8938.37 | CO12: -9314.11 | CP12: -442.87 | CQ12: -1247.02 | CR12: -2782.05 | CS12: -3622.1 | CT12: -4534.13 | CU12: -5211.58 | CV12: -6038.03 | CW12: -6715.48 | CX12: -8540.67 | CY12: -9218.12 | CZ12: -9895.57 | DA12: -11183.99 | DB12: -677.45 | DC12: -2407.01 | DD12: -3896.62 | DE12: -4532.35 | DF12: -5559.9 | DG12: -6998.96 | DH12: -8427.46 | DI12: -9279.96 | DJ12: -10342.46 | DK12: -11194.96 | DL12: -12769.38 | DM12: -14047.88 | DN12: -852.5 | DO12: -2012.2 | DP12: -2864.7 | DQ12: -4254.84 | DR12: -4968.59 | DS12: -5509.84 | DT12: -6454.84 | DU12: -6454.84 | DV12: -6454.84 | DW12: -10663.84 | DX12: -10663.84 | DY12: -13109.44 | DZ12: -1929.6 | EA12: -3129.6 | EB12: -5107.4 | EC12: -6037.4 | ED12: -7322.4 | EE12: -9330.4 | EF12: -10480.4 | EG12: -10480.4 | EH12: -12366.65 | EI12: -13871.65 | EJ12: -16174.99 | EK12: -17683.84 | EL12: -1191.25 | EM12: -2546.25 | EN12: -3901.25 | EO12: -5121.25 | EP12: -6550 | EQ12: -8096.25 | ER12: -9406.25 | ES12: -9406.25 | ET12: -12291.25 | EU12: -12291.25 | EV12: -2081.25 | EW12: -3557.5 | EX12: -5012.5 | EY12: -6827.5 | EZ12: -8750 | FA12: -9785 | FB12: -11812.5 | FC12: -13460 | FD12: -13460 | FE12: -17292.5 | FF12: -17997.5 | FG12: -19917.5 | FH12: -2075 | FI12: -3320 | FJ12: -5350 | FK12: -7110 | FL12: -9120 | FM12: -9480 | FN12: -11570 | FO12: -15940 | FP12: -18035 | FQ12: -18385 | FR12: -23565 | FS12: -24105 | FT12: -2545 | FU12: -4035 | FV12: -6805 | FW12: -9165 | FX12: -11265 | FY12: -12690 | FZ12: -16480 | GA12: -19297.5 | GB12: -24297.5 | GC12: -24297.5 | GD12: -27647.5 | GE12: -30735 | GF12: -3075 | GG12: -4650 | GH12: -4650 | GI12: -14201.5 | GJ12: -14366.5 | GK12: -17345.75 | GL12: -20888 | GM12: -24332.75 | GN12: -24522.75 | GO12: -28814.5 | GP12: -33340 | GQ12: -38110 | GR12: -3807.25 | GS12: -6219.5 | GT12: -10169 | GU12: -14187.5 | GV12: -17796.5 | GW12: -22189 | GX12: -26375.75 | GY12: -30439.1 | GZ12: -33203.7 | HA12: -34675.7 | HB12: -38750.75 | HC12: -42974.35 | HD12: 0 | HE12: 0 | HF12: 0 | HG12: 0 | HH12: 0 | HI12: 0 | HJ12: 0 | HK12: 0 | HL12: 0 | HM12: 0 | HN12: 0 | HO12: 0 | HP12: 0 | HQ12: 0 | HR12: 0 | HS12: 0 | HT12: 0 | HU12: 0 | HV12: 0 | HW12: 0 | HX12: 0 | HY12: 0 | HZ12: 0 | IA12: 0 | IB12: 0 | IC12: 0 | ID12: 0 | IE12: 0 | IF12: 0 | IG12: 0 | IH12: 0 | II12: 0 | IJ12: 0 | IK12: 0 | IL12: 0 | IM12: 0
A13: 2 | B13: Swimming | E13: 31729 | F13: 28094.7 | G13: 3634.3 | H13: 13351.69 | J13: -820 | K13: -1640 | L13: -2460 | M13: -3280 | N13: -4100 | O13: -4920 | P13: -5740 | Q13: -6660 | R13: -6660 | S13: -7480 | T13: -8300 | U13: -9120 | V13: -1030 | W13: -1742 | X13: -2382 | Y13: -3022 | Z13: -3687.6 | AA13: -4327.6 | AC13: -4967.6 | AD13: -5927.6 | AE13: -6567.6 | AF13: -7652.6 | AG13: -7912.6 | AH13: 0 | AI13: -1150 | AJ13: -1710 | AK13: -2040 | AL13: -3362 | AM13: -3872 | AN13: -4382 | AO13: -4382 | AP13: -5542 | AQ13: -6353 | AR13: -6353 | AS13: -6383 | AT13: -510 | AU13: -1020 | AV13: -1400 | AW13: -2382 | AX13: -3260 | AY13: -3842 | AZ13: -4554 | BA13: -5136 | BB13: -5978 | BC13: -6690 | BD13: -7402 | BE13: -8114 | BF13: -582 | BG13: -1424 | BH13: -2136 | BI13: -2848 | BJ13: -4560 | BK13: -5355 | BL13: -5887.5 | BM13: -5887.5 | BN13: -6212.5 | BO13: -6532.5 | BP13: -7624.5 | BQ13: -8128.5 | BR13: -521.5 | BS13: -1055.5 | BT13: -1628.5 | BU13: -2605.25 | BV13: -2863.25 | BW13: -3577.25 | BX13: -3945.25 | BY13: -4165.25 | BZ13: -4708.25 | CA13: -5501.25 | CB13: -6464.25 | CC13: -7144.25 | CD13: -332 | CE13: -1109 | CF13: -1760.75 | CG13: -2075.75 | CH13: -2950.75 | CI13: -3816.75 | CJ13: -4635.75 | CK13: -4635.75 | CL13: -5292.75 | CM13: -6971.04 | CN13: -8092.38 | CO13: -9213.72 | CP13: -1121.34 | CQ13: -2242.68 | CR13: -3364.02 | CS13: -4485.36 | CT13: -5318.7 | CU13: -6440.04 | CV13: -7849.38 | CW13: -8682.72 | CX13: -10092.06 | CY13: -11213.4 | CZ13: -12334.74 | DA13: -13456.08 | DB13: -1121.34 | DC13: -2242.68 | DD13: -3364.02 | DE13: -4485.36 | DF13: -5606.7 | DG13: -6728.04 | DH13: -7849.38 | DI13: -8970.72 | DJ13: -10092.06 | DK13: -11213.4 | DL13: -12334.74 | DM13: -13456.08 | DN13: -1121.34 | DO13: -2242.68 | DP13: -3364.02 | DQ13: -4485.36 | DR13: -5606.7 | DS13: -6728.04 | DT13: -7849.38 | DU13: -8682.72 | DV13: -8682.72 | DW13: -11213.4 | DX13: -12406.74 | DY13: -13528.08 | DZ13: -1121.34 | EA13: -2242.68 | EB13: -3364.02 | EC13: -4485.36 | ED13: -5606.7 | EE13: -6728.04 | EF13: -8682.72 | EG13: -8682.72 | EH13: -10092.06 | EI13: -11213.4 | EJ13: -12262.74 | EK13: -13384.08 | EL13: -1001.34 | EM13: -2002.68 | EN13: -3004.02 | EO13: -4005.36 | EP13: -5006.7 | EQ13: -6098.04 | ER13: -7285.38 | ES13: -8286.72 | ET13: -9960.06 | EU13: -11783.4 | EV13: -888 | EW13: -1498 | EX13: -2405 | EY13: -3457.67 | EZ13: -4304.34 | FA13: -5376.01 | FB13: -6167.68 | FC13: -7367.35 | FD13: -8343.02 | FE13: -9154.69 | FF13: -10322.36 | FG13: -11386.53 | FH13: -999.67 | FI13: -1503.67 | FJ13: -2601.67 | FK13: -3713.67 | FL13: -4871.17 | FM13: -5483.17 | FN13: -6772.84 | FO13: -7709.51 | FP13: -10122.18 | FQ13: -10913.85 | FR13: -11438.85 | FS13: -11543.85 | FT13: -280 | FU13: -415 | FV13: -2180 | FW13: -2633 | FX13: -3275 | FY13: -3706 | FZ13: -4143 | GA13: -5357 | GB13: -6854 | GC13: -8267 | GD13: -9219 | GE13: -10219 | GF13: -1069 | GG13: -2165 | GH13: -3165 | GI13: -4249 | GJ13: -5273 | GK13: -6345 | GL13: -7381 | GM13: -8756 | GN13: -9840 | GO13: -10840 | GP13: -11840 | GQ13: -13206 | GR13: -1036 | GS13: -2276 | GT13: -4031 | GU13: -5258 | GV13: -6718.5 | GW13: -7922.5 | GX13: -8946.5 | GY13: -10150.5 | GZ13: -11335.9 | HA13: -12335.9 | HB13: -13874.9 | HC13: -15066.9 | HD13: 764.55 | HE13: 2394.45 | HF13: 3039.3 | HG13: 4349.65 | HH13: 4683.35 | HI13: 6477.9 | HJ13: 7099 | HK13: 7727.5 | HL13: 8886.65 | HM13: 10853.1 | HN13: 11463.1 | HO13: 12092.8 | HP13: 649.7 | HQ13: 4691.7 | HR13: 6372.08 | HS13: 9355.53 | HT13: 4748.83 | HU13: 5351.84 | HV13: 5700.84 | HW13: 6356.34 | HX13: 7026.34 | HY13: 9922.34 | HZ13: 13480.34 | IA13: 13351.69 | IB13: -1699.5 | IC13: -2160.36 | ID13: -1357.06 | IE13: -641.31 | IF13: 86.69 | IG13: 1895.84 | IH13: 5662.34 | II13: 5087.59 | IJ13: 4371.08 | IK13: 3372.9 | IL13: 4213.1 | IM13: 3634.3
A14: 3 | B14: Senior Water Polo | E14: 2052.2 | F14: 1957.76 | G14: 94.44 | H14: 1159.5 | J14: 3435.7 | K14: 5475.8 | L14: 7470.98 | M14: 12514.7 | N14: 14513.89 | O14: 16242.87 | P14: 18626.07 | Q14: 24063.29 | R14: 24063.29 | S14: 25744.03 | T14: 27426.29 | U14: 28455.17 | V14: 6150.55 | W14: 7706.59 | X14: 9517.89 | Y14: 11917.8 | Z14: 16284.45 | AA14: 17982.6 | AC14: 19760.91 | AD14: 25796.61 | AE14: 26808.44 | AF14: 29376.66 | AG14: 30466.94 | AH14: 0 | AI14: 7099.79 | AJ14: 8148.41 | AK14: 13544.69 | AL14: 16329.42 | AM14: 17798.75 | AN14: 18545.13 | AO14: 18936.53 | AP14: 24054.64 | AQ14: 27071.23 | AR14: 27071.23 | AS14: 27926.28 | AT14: 3355.45 | AU14: 5248.95 | AV14: 6393.4 | AW14: 12796.35 | AX14: 14599.63 | AY14: 15631.58 | AZ14: 16542.43 | BA14: 16542.43 | BB14: 18934.93 | BC14: 21896.33 | BD14: 24600.53 | BE14: 27345.43 | BF14: 2953.8 | BG14: 6443.61 | BH14: 9497.61 | BI14: 12239.41 | BJ14: 15462.91 | BK14: 18574.91 | BL14: 21282.51 | BM14: 23453.51 | BN14: 27099.01 | BO14: 29985.81 | BP14: 33068.71 | BQ14: 35773.35 | BR14: 3872.4 | BS14: 6837.4 | BT14: 10039.4 | BU14: 13463.91 | BV14: 16194.21 | BW14: 18423.21 | BX14: 21338.43 | BY14: 23049.43 | BZ14: 25536.43 | CA14: 27681.04 | CB14: 30977.34 | CC14: 33075.74 | CD14: 2544 | CE14: 4892.5 | CF14: 6942.3 | CG14: 9583.3 | CH14: 11734.3 | CI14: 15117.2 | CJ14: 17319.2 | CK14: 19125.2 | CL14: 21428.2 | CM14: 23923.2 | CN14: 26432.48 | CO14: 28905.48 | CP14: 2638 | CQ14: 5332.6 | CR14: 7745.6 | CS14: 9637.6 | CT14: 11629.6 | CU14: 14575.15 | CV14: 17250.76 | CW14: 18880.76 | CX14: 20937.06 | CY14: 23815.56 | CZ14: 25940.23 | DA14: 27960.13 | DB14: 2028.67 | DC14: 4564.84 | DD14: 7503.81 | DE14: 9629.08 | DF14: 11815.05 | DG14: 14042.22 | DH14: 17370.62 | DI14: 19291.62 | DJ14: 22093.42 | DK14: 24759.32 | DL14: 27038.82 | DM14: 30001.12 | DN14: 2413 | DO14: 5238.1 | DP14: 7711.34 | DQ14: 9988.29 | DR14: 12352.89 | DS14: 14505.19 | DT14: 17561.89 | DU14: 19390.89 | DV14: 19390.89 | DW14: 24555.99 | DX14: 26746.99 | DY14: 29249.54 | DZ14: 2473 | EA14: 4997.45 | EB14: 7717.45 | EC14: 9983.45 | ED14: 12948.1 | EE14: 15604.35 | EF14: 21196.75 | EG14: 21196.75 | EH14: 24325.15 | EI14: 27945.25 | EJ14: 31024.65 | EK14: 34987.65 | EL14: 3093 | EM14: 6395.8 | EN14: 9332.7 | EO14: 12245.6 | EP14: 15787.41 | EQ14: 18630.31 | ER14: 21897.81 | ES14: 24093.81 | ET14: 26773.01 | EU14: 29760.21 | EV14: 2700.4 | EW14: 5874.4 | EX14: 8647 | EY14: 11490.2 | EZ14: 14015.8 | FA14: 16601.5 | FB14: 18969.5 | FC14: 21746 | FD14: 25275.6 | FE14: 27290.3 | FF14: 29799 | FG14: 32972.8 | FH14: 2506 | FI14: 4824.6 | FJ14: 7915.5 | FK14: 11425 | FL14: 14808.1 | FM14: 17811.1 | FN14: 21049.6 | FO14: 24228.1 | FP14: 27157.1 | FQ14: 29610.6 | FR14: 33155.6 | FS14: 35969.6 | FT14: 2761.5 | FU14: 5686.5 | FV14: 8992 | FW14: 11857 | FX14: 15080 | FY14: 18132 | FZ14: 21497 | GA14: 24743.3 | GB14: 28022.3 | GC14: 31196.3 | GD14: 35228.8 | GE14: 39608 | GF14: 4286 | GG14: 7639 | GH14: 12399 | GI14: 17448.52 | GJ14: 22365.52 | GK14: 27014.52 | GL14: 32058.02 | GM14: 37182.02 | GN14: 42267.72 | GO14: 46671.72 | GP14: 51864.72 | GQ14: 56549.73 | GR14: 4956 | GS14: 9173.2 | GT14: 13872.6 | GU14: 18057.8 | GV14: 22966.5 | GW14: 26919.2 | GX14: 31250.2 | GY14: 36068.7 | GZ14: 40887.2 | HA14: 44692.7 | HB14: 49369.7 | HC14: 54238.2 | HD14: 60 | HE14: 279 | HF14: 231 | HG14: 210 | HH14: 243 | HI14: 150.25 | HJ14: 132.25 | HK14: 210.25 | HL14: 233.5 | HM14: 601.5 | HN14: 684.75 | HO14: 806.75 | HP14: 132 | HQ14: 537 | HR14: 560.25 | HS14: 776.25 | HT14: 364.5 | HU14: 553.5 | HV14: 708.5 | HW14: 870.5 | HX14: 1042.5 | HY14: 1177.5 | HZ14: 1312.5 | IA14: 1159.5 | IB14: -189.8 | IC14: -189.8 | ID14: -189.8 | IE14: -189.8 | IF14: -189.8 | IG14: -189.8 | IH14: -101.8 | II14: 262.2 | IJ14: 261.2 | IK14: -73.56 | IL14: 10.44 | IM14: 94.44
A15: 4 | B15: Junior Water Polo | E15: 5542.85 | F15: 3696 | G15: 1846.85 | H15: 1982.78 | J15: 111.75 | K15: 11.77 | L15: 223.87 | M15: 325.87 | N15: 257.14 | O15: 402.13 | P15: 6.95 | Q15: 423.5 | R15: 423.5 | S15: 628 | T15: 603.25 | U15: 569.6 | V15: 2.68 | W15: 118.83 | X15: 77.36 | Y15: 175.68 | Z15: 247.87 | AA15: 186.9 | AC15: 311.81 | AD15: 396.06 | AE15: 492.31 | AF15: 505.72 | AG15: 533.47 | AH15: 0 | AI15: -82.06 | AJ15: -46.87 | AK15: -205.35 | AL15: -151.9 | AM15: -175.34 | AN15: -174.86 | AO15: -174.86 | AP15: -77.21 | AQ15: -133.14 | AR15: -133.14 | AS15: 16.96 | AT15: 52 | AU15: -46.59 | AV15: -54.1 | AW15: -149.77 | AX15: -103.69 | AY15: -212.9 | AZ15: -244.11 | BA15: -232.21 | BB15: -158.51 | BC15: -207.71 | BD15: -549.33 | BE15: -368.07 | BF15: -83.46 | BG15: -1.46 | BH15: 303.49 | BI15: 274.93 | BJ15: 363.28 | BK15: 305.91 | BL15: 468.41 | BM15: 468.41 | BN15: 431.2 | BO15: 606.47 | BP15: 508.27 | BQ15: 488.73 | BR15: 350.21 | BS15: 301.54 | BT15: 536.74 | BU15: 555.74 | BV15: 708.94 | BW15: 709.14 | BX15: 724.59 | BY15: 724.59 | BZ15: 639.69 | CA15: 817.69 | CB15: 822.77 | CC15: 844.27 | CD15: 83 | CE15: -243.4 | CF15: -86.13 | CG15: -286.05 | CH15: -283.25 | CI15: -193.25 | CJ15: -154.85 | CK15: -154.85 | CL15: -67.35 | CM15: -17.75 | CN15: -46.8 | CO15: 84.63 | CP15: 67.5 | CQ15: 187 | CR15: -67.96 | CS15: -122.37 | CT15: -100.13 | CU15: -45.83 | CV15: -13.61 | CW15: -13.61 | CX15: 112.7 | CY15: 178.28 | CZ15: 81.97 | DA15: 142.47 | DB15: 29.57 | DC15: 173.87 | DD15: 329.42 | DE15: 368.92 | DF15: 291.09 | DG15: 362.09 | DH15: 411.09 | DI15: 411.09 | DJ15: 492.09 | DK15: 648.49 | DL15: 676.84 | DM15: 707.34 | DN15: -172.84 | DO15: -117.34 | DP15: -127.44 | DQ15: -5.24 | DR15: 144.76 | DS15: 136.82 | DT15: 236.82 | DU15: 236.82 | DV15: 236.82 | DW15: 297.62 | DX15: 288.37 | DY15: 185.17 | DZ15: 164.6 | EA15: 206.64 | EB15: 226.22 | EC15: 303.72 | ED15: 258.77 | EE15: 460.68 | EF15: 512.7 | EG15: 512.7 | EH15: 544.3 | EI15: 695.6 | EJ15: 472.34 | EK15: 210.44 | EL15: 141.5 | EM15: 228.5 | EN15: 92.16 | EO15: 195.16 | EP15: 226.56 | EQ15: 326.06 | ER15: 326.06 | ES15: 326.06 | ET15: 500.06 | EU15: 539.16 | EV15: -65.17 | EW15: 52.83 | EX15: -43.09 | EY15: 10.97 | EZ15: 130.57 | FA15: 265.87 | FB15: 189.77 | FC15: 135.11 | FD15: 210.11 | FE15: 242.11 | FF15: 299.11 | FG15: 199.51 | FH15: 142.78 | FI15: 146.08 | FJ15: 122.53 | FK15: 159.38 | FL15: 396.38 | FM15: 318.88 | FN15: 448.38 | FO15: 311.98 | FP15: 373.98 | FQ15: 373.98 | FR15: 293.22 | FS15: 347.22 | FT15: 174.5 | FU15: -21.1 | FV15: 111.9 | FW15: 162.9 | FX15: -184.6 | FY15: -108.6 | FZ15: -34.6 | GA15: 15.9 | GB15: -345.9 | GC15: -303.9 | GD15: -124.4 | GE15: -59.86 | GF15: 127.96 | GG15: 14.94 | GH15: 215.44 | GI15: 559.94 | GJ15: 549.94 | GK15: 19.85 | GL15: 139.35 | GM15: -6.2 | GN15: 100.3 | GO15: 118.8 | GP15: 362.3 | GQ15: 508.3 | GR15: 278.5 | GS15: 102 | GT15: -54.1 | GU15: 121.4 | GV15: 109.55 | GW15: 159.05 | GX15: 73.19 | GY15: 186.19 | GZ15: 206.99 | HA15: 261.49 | HB15: 13.69 | HC15: 158.19 | HD15: -304 | HE15: -293 | HF15: -312 | HG15: -209 | HH15: 2.05 | HI15: 551.8 | HJ15: 493.8 | HK15: 599.8 | HL15: 1012.8 | HM15: 1692.8 | HN15: 1638.8 | HO15: 1912.3 | HP15: 117.5 | HQ15: 637.5 | HR15: 890.5 | HS15: 1637.5 | HT15: 640.75 | HU15: 780.75 | HV15: 900.76 | HW15: 1067.77 | HX15: 1167.78 | HY15: 1587.78 | HZ15: 2293.78 | IA15: 1982.78 | IB15: -41 | IC15: 205.8 | ID15: 426.4 | IE15: 519.4 | IF15: 636.4 | IG15: 907.4 | IH15: 1448.4 | II15: 1566.85 | IJ15: 1607.85 | IK15: 1944.85 | IL15: 1908.85 | IM15: 1846.85
A16: 5 | B16: Adults | E16: 1100 | F16: 976.8 | G16: 123.2 | H16: 20 | J16: -57.65 | K16: -135.05 | L16: -289.95 | M16: -295.95 | N16: -299.45 | O16: -414.54 | P16: -442.54 | Q16: -745.42 | R16: -745.42 | S16: -785.42 | T16: -953.41 | U16: -965.41 | V16: -10 | W16: -77.5 | X16: -411.63 | Y16: -274.93 | Z16: -303.43 | AA16: -321.43 | AC16: -398.23 | AD16: -706.11 | AE16: -725.41 | AF16: -749.49 | AG16: -749.49 | AH16: 0 | AI16: -42.2 | AJ16: -42.2 | AK16: -55.2 | AL16: -73.2 | AM16: -73.2 | AN16: -103.02 | AO16: -103.02 | AP16: -134.02 | AQ16: -134.02 | AR16: -134.02 | AS16: -162.02 | AT16: 0 | AU16: -146.72 | AV16: -146.72 | AW16: -89.36 | AX16: -126.36 | AY16: -126.36 | AZ16: -190.36 | BA16: -190.36 | BB16: -190.36 | BC16: -225.36 | BD16: -260.36 | BE16: -260.36 | BF16: 0 | BG16: -64 | BH16: -133.95 | BI16: -181.95 | BJ16: -181.95 | BK16: -181.95 | BL16: -181.95 | BM16: -181.95 | BN16: -181.95 | BO16: -181.95 | BP16: -181.95 | BQ16: -197.95 | BR16: 0 | BS16: -59.95 | BT16: -79.95 | BU16: -79.95 | BV16: -79.95 | BW16: -83.95 | BX16: -4.45 | BY16: -4.45 | BZ16: -194.85 | CA16: -190.85 | CB16: -190.85 | CC16: -190.85 | CD16: -59.95 | CE16: -59.95 | CF16: -75.85 | CG16: -180.75 | CH16: -254.6 | CI16: -254.6 | CJ16: -349.47 | CK16: -349.47 | CL16: -349.47 | CM16: -349.47 | CN16: -349.47 | CO16: -349.47 | CP16: 0 | CQ16: -202.49 | CR16: -202.49 | CS16: -202.49 | CT16: -228.49 | CU16: -228.49 | CV16: -228.49 | CW16: -228.49 | CX16: -228.49 | CY16: -228.49 | CZ16: -228.49 | DA16: -228.49 | DB16: 0 | DC16: 0 | DD16: -23.5 | DE16: -23.5 | DF16: -23.5 | DG16: -83.3 | DH16: -83.3 | DI16: -83.3 | DJ16: -83.3 | DK16: -83.3 | DL16: -165.55 | DM16: -165.55 | DN16: -41.5 | DO16: -41.5 | DP16: -41.5 | DQ16: -41.5 | DR16: -41.5 | DS16: -41.5 | DT16: -41.5 | DU16: -41.5 | DV16: -41.5 | DW16: -41.5 | DX16: -41.5 | DY16: -41.5 | DZ16: -77.36 | EA16: -77.36 | EB16: -139.12 | EC16: -139.12 | ED16: -197.22 | EE16: -197.22 | EF16: -197.22 | EG16: -197.22 | EH16: -197.22 | EI16: -211.37 | EJ16: -284.52 | EK16: -284.52 | EL16: 0 | EM16: 0 | EN16: 0 | EO16: 0 | EP16: 0 | EQ16: 0 | ER16: 0 | ES16: 0 | ET16: 0 | EU16: -42 | EV16: -32.08 | EW16: -32.08 | EX16: -32.08 | EY16: -74.08 | EZ16: -74.08 | FA16: -74.08 | FB16: -131.66 | FC16: -281.66 | FD16: -281.66 | FE16: -281.66 | FF16: -281.66 | FG16: -281.66 | FH16: -42 | FI16: -42 | FJ16: -42 | FK16: -42 | FL16: -82.55 | FM16: -124.55 | FN16: -135.55 | FO16: -167.55 | FP16: -182.54 | FQ16: -182.54 | FR16: -212.08 | FS16: -212.08 | FT16: 0 | FU16: 0 | FV16: -32 | FW16: -46.39 | FX16: -88.39 | FY16: -88.39 | FZ16: -102.78 | GA16: -102.78 | GB16: -102.78 | GC16: -102.78 | GD16: -102.78 | GE16: -102.78 | GF16: 0 | GG16: -42 | GH16: -42 | GI16: -99.59 | GJ16: -146.09 | GK16: -146.09 | GL16: -146.09 | GM16: -146.09 | GN16: -146.09 | GO16: -146.09 | GP16: -146.09 | GQ16: -188.09 | GR16: 0 | GS16: -30 | GT16: -30 | GU16: -72 | GV16: -72 | GW16: -90.59 | GX16: -90.59 | GY16: -90.59 | GZ16: -90.59 | HA16: -90.59 | HB16: -90.59 | HC16: -126.32 | HD16: 168 | HE16: 150 | HF16: 198.5 | HG16: 96.5 | HH16: -5.5 | HI16: 303 | HJ16: -13.5 | HK16: 119.5 | HL16: 113.5 | HM16: 201.5 | HN16: 93.5 | HO16: 76 | HP16: 15.5 | HQ16: 169 | HR16: 61 | HS16: 267.5 | HT16: -222 | HU16: -200 | HV16: -178 | HW16: -178 | HX16: -178 | HY16: -178 | HZ16: -46 | IA16: 20 | IB16: -158 | IC16: -92 | ID16: -92 | IE16: -144.8 | IF16: -144.8 | IG16: -144.8 | IH16: -144.8 | II16: -12.8 | IJ16: -26.8 | IK16: -12.8 | IL16: -10.8 | IM16: 123.2
A17: 6 | B17: Salary | E17: 3964.21 | F17: 16645.85 | G17: -12681.64 | H17: -13619.61 | J17: 0 | K17: -3.5 | L17: -11.87 | M17: -34.36 | N17: -34.36 | O17: -42.69 | P17: -54.08 | Q17: -54.08 | R17: -54.08 | S17: -54.08 | T17: -61.58 | U17: -61.58 | V17: -8.99 | W17: -14.29 | X17: -14.29 | Y17: -14.29 | Z17: -21.99 | AA17: -32.19 | AC17: -34.94 | AD17: -40.7 | AE17: -47.7 | AF17: -55.2 | AG17: -55.2 | AH17: 0 | AI17: 0 | AJ17: 0 | AK17: -51.7 | AL17: -53.69 | AM17: -53.69 | AN17: -66.19 | AO17: -66.19 | AP17: -66.19 | AQ17: -101.41 | AR17: -101.41 | AS17: -101.41 | AT17: -1.99 | AU17: -13.69 | AV17: -13.69 | AW17: -41.34 | AX17: -41.34 | AY17: -41.34 | AZ17: -41.34 | BA17: -36.34 | BB17: -44.34 | BC17: -54.52 | BD17: -80.47 | BE17: -97.06 | BF17: -18.9 | BG17: -18.9 | BH17: -25.95 | BI17: -53.94 | BJ17: -55.62 | BK17: -55.62 | BL17: -55.62 | BM17: -55.62 | BN17: -67.32 | BO17: -67.32 | BP17: -67.32 | BQ17: -88.32 | BR17: -0.99 | BS17: -3.99 | BT17: -3.99 | BU17: -8.49 | BV17: -18.49 | BW17: -23.87 | BX17: 4.38 | BY17: 4.38 | BZ17: -8.51 | CA17: -3.13 | CB17: -3.13 | CC17: -3.13 | CD17: 0 | CE17: 0 | CF17: -29.13 | CG17: -44.08 | CH17: -44.08 | CI17: -44.08 | CJ17: -64.01 | CK17: -64.01 | CL17: -78.88 | CM17: -78.88 | CN17: -97.97 | CO17: -97.97 | CP17: -170.49 | CQ17: -29.62 | CR17: -29.62 | CS17: -29.62 | CT17: -46.89 | CU17: -46.89 | CV17: -49 | CW17: -49 | CX17: -69.49 | CY17: -69.49 | CZ17: -79.84 | DA17: -80.11 | DB17: 0 | DC17: 0 | DD17: -10.55 | DE17: -23.5 | DF17: -35.17 | DG17: -35.17 | DH17: -35.17 | DI17: -42.8 | DJ17: -63.29 | DK17: -63.29 | DL17: -75.04 | DM17: -90.32 | DN17: -31.39 | DO17: -40.92 | DP17: -40.92 | DQ17: -57.8 | DR17: -57.8 | DS17: -57.8 | DT17: -64.8 | DU17: -64.8 | DV17: -64.8 | DW17: -79.2 | DX17: -81.18 | DY17: -81.18 | DZ17: 0 | EA17: -14.37 | EB17: -14.37 | EC17: -14.37 | ED17: -14.37 | EE17: -17.87 | EF17: -17.87 | EG17: -17.87 | EH17: -17.87 | EI17: -21.37 | EJ17: -21.37 | EK17: -21.37 | EL17: 0 | EM17: -3.99 | EN17: -3.99 | EO17: -25.87 | EP17: -25.87 | EQ17: -25.87 | ER17: -25.87 | ES17: -25.87 | ET17: -25.87 | EU17: -40.02 | EV17: 0 | EW17: 0 | EX17: 0 | EY17: -11.78 | EZ17: -16.57 | FA17: -16.57 | FB17: -16.57 | FC17: -16.57 | FD17: -16.57 | FE17: -16.57 | FF17: -16.57 | FG17: -16.57 | FH17: -11.98 | FI17: -11.98 | FJ17: -11.98 | FK17: -11.98 | FL17: -11.98 | FM17: -11.98 | FN17: -11.98 | FO17: -11.98 | FP17: -11.98 | FQ17: -11.98 | FR17: -11.98 | FS17: -11.98 | FT17: 0 | FU17: 0 | FV17: 0 | FW17: 0 | FX17: -3.7 | FY17: -3.7 | FZ17: -3.7 | GA17: -3.7 | GB17: -3.7 | GC17: -3.7 | GD17: -3.7 | GE17: -3.7 | GF17: -30 | GG17: -30 | GH17: -30 | GI17: -40.79 | GJ17: -40.79 | GK17: -58.43 | GL17: -58.43 | GM17: -117.2 | GN17: -117.2 | GO17: -117.2 | GP17: -117.2 | GQ17: -138.99 | GR17: 0 | GS17: -17.99 | GT17: -17.99 | GU17: -17.99 | GV17: -17.99 | GW17: -17.99 | GX17: -17.99 | GY17: -17.99 | GZ17: -17.99 | HA17: -17.99 | HB17: -37.17 | HC17: -37.17 | HD17: -1000 | HE17: -2048 | HF17: -3191 | HG17: -4407 | HH17: -6075 | HI17: -7355.95 | HJ17: -8769.12 | HK17: -10099.85 | HL17: -11593.75 | HM17: -12772.81 | HN17: -14446.87 | HO17: -16090.93 | HP17: -1239.06 | HQ17: -2661.12 | HR17: -4122.18 | HS17: -5559.24 | HT17: -7035.3 | HU17: -7527.39 | HV17: -7871.27 | HW17: -9173.53 | HX17: -10475.79 | HY17: -11806.05 | HZ17: -12650.18 | IA17: -13619.61 | IB17: -750.39 | IC17: -1879.58 | ID17: -2748.12 | IE17: -3558.5 | IF17: -4236.8 | IG17: -5138.31 | IH17: -6555.56 | II17: -7327.53 | IJ17: -8653.56 | IK17: -9856.81 | IL17: -11278.39 | IM17: -12681.64
B18: Land Training | G18: 0 | H18: -150 | J18: -9.14 | K18: -13.82 | L18: -67.6 | M18: -77.59 | N18: -79.21 | O18: -80.83 | P18: -87.18 | Q18: -102 | R18: -102 | S18: -105.42 | T18: -108.66 | U18: -108.66 | V18: -6 | W18: -14.1 | X18: -90.57 | Y18: -93.81 | Z18: -93.81 | AA18: -93.81 | AC18: -100.29 | AD18: -100.29 | AE18: -100.29 | AF18: -113.82 | AG18: -113.82 | AH18: 0 | AI18: -4.08 | AJ18: -7.76 | AK18: -36.58 | AL18: -41.59 | AM18: -41.59 | AN18: -48.27 | AO18: -48.27 | AP18: -53.3 | AQ18: -56.64 | AR18: -56.64 | AS18: -56.64 | AT18: -4.19 | AU18: -10.74 | AV18: -10.74 | AW18: -51.88 | AX18: -56.2 | AY18: -58.9 | AZ18: -60.7 | BA18: -60.7 | BB18: -60.7 | BC18: -67.42 | BD18: -67.42 | BE18: -67.42 | BF18: 0 | BG18: -7.18 | BH18: -7.18 | BI18: -13.72 | BJ18: -61.11 | BK18: -61.11 | BL18: -61.11 | BM18: -67.58 | BN18: -67.58 | BO18: -67.58 | BP18: -67.58 | BQ18: -73.19 | BR18: 0 | BS18: 0 | BT18: 0 | BU18: 0 | BV18: -5.98 | BW18: -29.02 | BX18: -29.02 | BY18: -29.02 | BZ18: -29.02 | CA18: -5.98 | CB18: -5.98 | CC18: -12.3 | CD18: 0 | CE18: 0 | CF18: 0 | CG18: 0 | CH18: -9.08 | CI18: -9.08 | CJ18: -28.25 | CK18: -28.25 | CL18: -28.25 | CM18: -28.25 | CN18: -28.25 | CO18: -33.38 | CP18: 0 | CQ18: -43.37 | CR18: -43.37 | CS18: -72.45 | CT18: -72.45 | CU18: -72.45 | CV18: -86.18 | CW18: -86.18 | CX18: -86.18 | CY18: -86.18 | CZ18: -90.17 | DA18: -95.37 | DB18: 0 | DC18: 0 | DD18: 0 | DE18: 0 | DF18: -64 | DG18: -64 | DH18: -64 | DI18: -64 | DJ18: -64 | DK18: -64 | DL18: -64 | DM18: -66.33 | DN18: -65.4 | DO18: -65.4 | DP18: -100.44 | DQ18: -100.44 | DR18: -100.44 | DS18: -100.44 | DT18: -100.44 | DU18: -100.44 | DV18: -100.44 | DW18: -100.44 | DX18: -100.44 | DY18: -120.29 | DZ18: 0 | EA18: -0.75 | EB18: -54.75 | EC18: -99.99 | ED18: -99.99 | EE18: -123.78 | EF18: -123.78 | EG18: -123.78 | EH18: -123.78 | EI18: -123.78 | EJ18: -123.78 | EK18: -130.82 | EL18: 0 | EM18: -1.64 | EN18: -71.64 | EO18: -100.48 | EP18: -103.48 | EQ18: -103.48 | ER18: -109.48 | ES18: -109.48 | ET18: -109.48 | EU18: -109.48 | EV18: -6 | EW18: -6 | EX18: -6 | EY18: -16.09 | EZ18: -64.09 | FA18: -74.55 | FB18: -74.55 | FC18: -80.91 | FD18: -80.91 | FE18: -80.91 | FF18: -80.91 | FG18: -80.91 | FH18: 0 | FI18: 0 | FJ18: -6.36 | FK18: -6.36 | FL18: -8.39 | FM18: -8.39 | FN18: -8.39 | FO18: -11.63 | FP18: -11.63 | FQ18: -11.63 | FR18: -11.63 | FS18: -11.63 | FT18: 0 | FU18: -4.32 | FV18: -4.32 | FW18: -17.28 | FX18: -20.27 | FY18: -20.27 | FZ18: -28.1 | GA18: -30.3 | GB18: -30.3 | GC18: -30.3 | GD18: -30.3 | GE18: -30.3 | GF18: -3.39 | GG18: -113.39 | GH18: -113.39 | GI18: -113.39 | GJ18: -113.39 | GK18: -113.39 | GL18: -113.39 | GM18: -113.39 | GN18: -113.39 | GO18: -113.39 | GP18: -113.39 | GQ18: -113.39 | GR18: 0 | GS18: 0 | GT18: -47.04 | GU18: -50.26 | GV18: -62.61 | GW18: -71.96 | GX18: -73.73 | GY18: -73.73 | GZ18: -73.73 | HA18: -73.73 | HB18: -81.27 | HC18: -81.27 | HE18: -30 | HF18: -60 | HG18: -100 | HH18: -140 | HI18: -160 | HJ18: -190 | HK18: -230 | HL18: -260 | HM18: -270 | HN18: -310 | HO18: -350 | HP18: -30 | HQ18: -30 | HR18: -40 | HS18: -40 | HT18: -150 | HU18: -150 | HV18: -150 | HW18: -150 | HX18: -150 | HY18: -150 | HZ18: -150 | IA18: -150 | IB18: 0 | IC18: 0 | ID18: 0 | IE18: 0 | IF18: 0 | IG18: 0 | IH18: 0 | II18: 0 | IJ18: 0 | IK18: 0 | IL18: 0 | IM18: 0
B19: Longcourse | G19: 0 | H19: -152 | HI19: 80 | HJ19: 80 | HK19: 80 | HL19: 85 | HM19: 85 | HN19: 85 | HO19: 85 | HP19: 3 | HQ19: 18 | HR19: -152 | HS19: -152 | HT19: -152 | HU19: -152 | HV19: -152 | HW19: -152 | HX19: -152 | HY19: -152 | HZ19: -152 | IA19: -152 | IB19: 0 | IC19: 0 | ID19: 0 | IE19: 0 | IF19: 0 | IG19: 0 | IH19: 0 | II19: 0 | IJ19: 0 | IK19: 0 | IL19: 0 | IM19: 0
A20: 7 | B20: Instruction | G20: 0 | H20: 0 | J20: -33.4 | K20: -33.4 | L20: -78.83 | M20: -78.83 | N20: -78.83 | O20: -119.83 | P20: -119.83 | Q20: -119.83 | R20: -119.83 | S20: -156.23 | T20: -156.23 | U20: -194.95 | V20: 0 | W20: 0 | X20: -39.37 | Y20: -39.37 | Z20: -39.37 | AA20: -39.37 | AC20: -82.42 | AD20: -82.42 | AE20: -82.42 | AF20: -82.42 | AG20: -82.42 | AH20: 0 | AI20: -107 | AJ20: -107 | AK20: -168.7 | AL20: -168.7 | AM20: -168.7 | AN20: -237.7 | AO20: -237.7 | AP20: -289.78 | AQ20: -289.78 | AR20: -289.78 | AS20: -289.78 | AT20: -36 | AU20: -36 | AV20: -36 | AW20: -94.32 | AX20: -94.32 | AY20: -94.32 | AZ20: -156.32 | BA20: -156.32 | BB20: -156.32 | BC20: -156.32 | BD20: -156.32 | BE20: -156.32 | BF20: -44.7 | BG20: -44.7 | BH20: -44.7 | BI20: -96.52 | BJ20: -96.52 | BK20: -96.52 | BL20: -155.34 | BM20: -155.34 | BN20: -155.34 | BO20: -233.34 | BP20: -233.34 | BQ20: -233.34 | BR20: -65 | BS20: -65 | BT20: -65 | BU20: -112 | BV20: -112 | BW20: -112 | BX20: -91.55 | BY20: -91.55 | BZ20: -91.55 | CA20: -132.55 | CB20: -132.55 | CC20: -132.55 | CD20: -49.3 | CE20: -49.3 | CF20: -49.3 | CG20: -81.3 | CH20: -81.3 | CI20: -81.3 | CJ20: -81.3 | CK20: -81.3 | CL20: -81.3 | CM20: -81.3 | CN20: -81.3 | CO20: -81.3 | CP20: 0 | CQ20: 0 | CR20: 0 | CS20: 0 | CT20: 0 | CU20: 0 | CV20: 0 | CW20: 0 | CX20: 0 | CY20: 0 | CZ20: 0 | DA20: 0 | DB20: 0 | DC20: 0 | DD20: 0 | DE20: 0 | DF20: 0 | DG20: 0 | DH20: 0 | DI20: 0 | DJ20: 0 | DK20: 0 | DL20: 0 | DM20: 0 | DN20: 0 | DO20: 0 | DP20: 0 | DQ20: 0 | DR20: 0 | DS20: 0 | DT20: 0 | DU20: 0 | DV20: 0 | DW20: 0 | DX20: 0 | DY20: 0 | DZ20: 0 | EA20: 0 | EB20: 0 | EC20: 0 | ED20: 0 | EE20: 0 | EF20: 0 | EG20: 0 | EH20: 0 | EI20: 0 | EJ20: 0 | EK20: 0 | EL20: 0 | EM20: 0 | EN20: 0 | EO20: 0 | EP20: 0 | EQ20: 0 | ER20: 0 | ES20: 0 | ET20: 0 | EU20: 0 | EV20: 0 | EW20: 0 | EX20: 0 | EY20: 0 | EZ20: 0 | FA20: 0 | FB20: 0 | FC20: 0 | FD20: 0 | FE20: 0 | FF20: 0 | FG20: 0 | FH20: 0 | FI20: 0 | FJ20: 0 | FK20: 0 | FL20: 0 | FM20: 0 | FN20: 0 | FO20: 0 | FP20: 0 | FQ20: 0 | FR20: 0 | FS20: 0 | FT20: 0 | FU20: 0 | FV20: 0 | FW20: 0 | FX20: 0 | FY20: 0 | FZ20: 0 | GA20: 0 | GB20: 0 | GC20: 0 | GD20: 0 | GE20: 0 | GF20: 0 | GG20: 0 | GH20: 0 | GI20: 0 | GJ20: 0 | GK20: 0 | GL20: 0 | GM20: 0 | GN20: 0 | GO20: 0 | GP20: 0 | GQ20: 0 | GR20: 0 | GS20: 0 | GT20: 0 | GU20: 0 | GV20: 0 | GW20: 0 | GX20: 0 | GY20: 0 | GZ20: 0 | HA20: 0 | HB20: 0 | HC20: 0 | HD20: 0 | HE20: 0 | HF20: 0 | HG20: 0 | HH20: 0 | HI20: 0 | HJ20: 0 | HK20: 0 | HL20: 0 | HM20: 0 | HN20: 0 | HO20: 0 | HP20: 0 | HQ20: 0 | HR20: 0 | HS20: 0 | HT20: 0 | HU20: 0 | HV20: 0 | HW20: 0 | HX20: 0 | HY20: 0 | HZ20: 0 | IA20: 0 | IB20: 0 | IC20: 0 | ID20: 0 | IE20: 0 | IF20: 0 | IG20: 0 | IH20: 0 | II20: 0 | IJ20: 0 | IK20: 0 | IL20: 0 | IM20: 0
A21: 8 | B21: Swim Shop | E21: 1017 | F21: 725.9 | G21: 291.1 | H21: 242.2 | J21: 0 | K21: 0 | L21: -126.31 | M21: -126.31 | N21: -126.31 | O21: -126.31 | P21: -262.61 | Q21: -262.61 | R21: -262.61 | S21: -577.21 | T21: -577.21 | U21: -577.21 | V21: 0 | W21: 0 | X21: -72.27 | Y21: -86.37 | Z21: -86.37 | AA21: -86.37 | AC21: -86.37 | AD21: -89.36 | AE21: -97.34 | AF21: -147.42 | AG21: -147.42 | AH21: 0 | AI21: 0 | AJ21: -7.98 | AK21: -12.97 | AL21: -61.19 | AM21: -61.19 | AN21: -61.19 | AO21: -61.19 | AP21: -61.19 | AQ21: -700.98 | AR21: -700.98 | AS21: -700.98 | AT21: 0 | AU21: 0 | AV21: -447.67 | AW21: -447.67 | AX21: -447.67 | AY21: -447.67 | AZ21: -447.67 | BA21: -447.67 | BB21: -517.62 | BC21: -649.01 | BD21: -676.51 | BE21: -739.36 | BF21: 0 | BG21: 0 | BH21: -12.35 | BI21: -12.35 | BJ21: -33.82 | BK21: -33.82 | BL21: -109.99 | BM21: -109.99 | BN21: -109.99 | BO21: -109.99 | BP21: -109.99 | BQ21: -109.99 | BR21: -578.21 | BS21: -578.21 | BT21: -578.21 | BU21: -578.21 | BV21: -578.21 | BW21: -876.09 | BX21: -833.21 | BY21: -833.21 | BZ21: -833.21 | CA21: -833.21 | CB21: -833.21 | CC21: -833.21 | CD21: 0 | CE21: -724.9 | CF21: -787.89 | CG21: -1015.76 | CH21: -1055.74 | CI21: -1055.74 | CJ21: -1135.7 | CK21: -1135.7 | CL21: -1135.7 | CM21: -1135.7 | CN21: -1135.7 | CO21: -1135.7 | CP21: 0 | CQ21: -506.81 | CR21: -506.81 | CS21: -795.34 | CT21: -795.34 | CU21: -795.34 | CV21: -860.03 | CW21: -860.03 | CX21: -860.03 | CY21: -860.03 | CZ21: -860.03 | DA21: -860.03 | DB21: 0 | DC21: 0 | DD21: -214.8 | DE21: -214.8 | DF21: -596.04 | DG21: -640.14 | DH21: -640.14 | DI21: -640.14 | DJ21: -640.14 | DK21: -666.12 | DL21: -666.12 | DM21: -666.12 | DN21: -264.38 | DO21: -264.38 | DP21: -328.33 | DQ21: -416.79 | DR21: -416.79 | DS21: -416.79 | DT21: -416.79 | DU21: -416.79 | DV21: -416.79 | DW21: -416.79 | DX21: -519.35 | DY21: -519.35 | DZ21: 0 | EA21: -137.38 | EB21: -146.87 | EC21: -165.34 | ED21: -165.34 | EE21: -165.34 | EF21: -165.34 | EG21: -165.34 | EH21: -330.86 | EI21: -330.86 | EJ21: -330.86 | EK21: -530.86 | EL21: 0 | EM21: 0 | EN21: 0 | EO21: -49.85 | EP21: -49.85 | EQ21: -49.85 | ER21: -49.85 | ES21: -49.85 | ET21: -49.85 | EU21: -499.85 | EV21: -579.54 | EW21: -579.94 | EX21: -579.94 | EY21: -579.94 | EZ21: -579.94 | FA21: -748.75 | FB21: -748.75 | FC21: -748.75 | FD21: -748.75 | FE21: -748.75 | FF21: -748.75 | FG21: -748.75 | FH21: -2344.3 | FI21: -2344.3 | FJ21: -2344.3 | FK21: -2344.3 | FL21: -2344.3 | FM21: -2344.3 | FN21: -2344.3 | FO21: -2344.3 | FP21: -2412.34 | FQ21: -2412.34 | FR21: -2412.34 | FS21: -2412.34 | FT21: 0 | FU21: 0 | FV21: 0 | FW21: 0 | FX21: 0 | FY21: 0 | FZ21: 0 | GA21: 0 | GB21: 0 | GC21: 0 | GD21: -408.66 | GE21: -417.66 | GF21: 0 | GG21: 0 | GH21: -808 | GI21: -808 | GJ21: -808 | GK21: -916 | GL21: -916 | GM21: -1001.79 | GN21: -1001.79 | GO21: -1001.79 | GP21: -1001.79 | GQ21: -1018.59 | GR21: 0 | GS21: 0 | GT21: 0 | GU21: 0 | GV21: 0 | GW21: -318.8 | GX21: -318.8 | GY21: -318.8 | GZ21: -318.8 | HA21: -318.8 | HB21: -373.88 | HC21: -373.88 | HD21: 274.5 | HE21: 56 | HF21: 193 | HG21: 258 | HH21: 440.5 | HI21: 512 | HJ21: 52.54 | HK21: 124.54 | HL21: 183.04 | HM21: 201.04 | HN21: 418.04 | HO21: 370.34 | HP21: 376 | HQ21: 657.5 | HR21: 71.2 | HS21: 162.2 | HT21: 242.2 | HU21: 242.2 | HV21: 242.2 | HW21: 242.2 | HX21: 242.2 | HY21: 242.2 | HZ21: 242.2 | IA21: 242.2 | IB21: 260.6 | IC21: 269.6 | ID21: 269.6 | IE21: 269.6 | IF21: 299.1 | IG21: 106.75 | IH21: 132.75 | II21: 182.75 | IJ21: 652.75 | IK21: 247.6 | IL21: 247.6 | IM21: 291.1
A22: 9 | B22: Administrative Expenses | F22: 1793.07 | G22: -1793.07 | H22: -1359.84 | J22: 0 | K22: 0 | L22: -33 | M22: -33 | N22: -33 | O22: -33 | P22: -53 | Q22: -53 | R22: -53 | S22: -53 | T22: -148.5 | U22: -148.5 | V22: 0 | W22: 0 | X22: -21.5 | Y22: -21.5 | Z22: -21.5 | AA22: -21.5 | AC22: -36.5 | AD22: -36.5 | AE22: -36.5 | AF22: -61.16 | AG22: -61.16 | AH22: 0 | AI22: -48.4 | AJ22: -48.4 | AK22: -48.4 | AL22: -48.4 | AM22: -48.4 | AN22: -48.4 | AO22: -48.4 | AP22: -48.4 | AQ22: -117.95 | AR22: -117.95 | AS22: -117.95 | AT22: 0 | AU22: -11 | AV22: -11 | AW22: -11 | AX22: -20.25 | AY22: -20.25 | AZ22: -41.2 | BA22: -41.2 | BB22: -41.2 | BC22: -57.7 | BD22: -114.2 | BE22: -114.2 | BF22: 0 | BG22: 0 | BH22: 0 | BI22: 0 | BJ22: 0 | BK22: 0 | BL22: 0 | BM22: 0 | BN22: 0 | BO22: 0 | BP22: -39 | BQ22: -39 | BR22: 0 | BS22: 0 | BT22: 0 | BU22: 0 | BV22: -25 | BW22: -25 | BX22: -25 | BY22: -25 | BZ22: -25 | CA22: -37.5 | CB22: -211 | CC22: -277.75 | CD22: 0 | CE22: -49.5 | CF22: -49.5 | CG22: -49.5 | CH22: -69.5 | CI22: -69.5 | CJ22: -94.5 | CK22: -94.5 | CL22: -94.5 | CM22: -111 | CN22: -177 | CO22: -220.5 | CP22: 0 | CQ22: 0 | CR22: -33 | CS22: -33 | CT22: -33 | CU22: -33 | CV22: -33 | CW22: -33 | CX22: -33 | CY22: -74.48 | CZ22: -258.98 | DA22: -278.62 | DB22: 0 | DC22: 0 | DD22: 0 | DE22: 0 | DF22: -41 | DG22: -41 | DH22: -41 | DI22: -41 | DJ22: -97 | DK22: -104 | DL22: -413.5 | DM22: -344.5 | DN22: 0 | DO22: -117 | DP22: -117 | DQ22: -117 | DR22: -117 | DS22: -117 | DT22: -155 | DU22: -155 | DV22: -155 | DW22: -155 | DX22: -158.5 | DY22: -241.5 | DZ22: 0 | EA22: -59 | EB22: -59 | EC22: -59 | ED22: -59 | EE22: -59 | EF22: -59 | EG22: -59 | EH22: -59 | EI22: -107 | EJ22: -301.5 | EK22: -423.5 | EL22: 0 | EM22: 0 | EN22: 0 | EO22: 0 | EP22: 0 | EQ22: 0 | ER22: 0 | ES22: 0 | ET22: 0 | EU22: 0 | EV22: -26.5 | EW22: -179.25 | EX22: -179.25 | EY22: -179.25 | EZ22: -179.25 | FA22: -179.25 | FB22: -179.25 | FC22: -179.25 | FD22: -179.25 | FE22: -179.25 | FF22: -179.25 | FG22: -179.25 | FH22: -148 | FI22: -172 | FJ22: -172 | FK22: -172 | FL22: -172 | FM22: -172 | FN22: -172 | FO22: -172 | FP22: -172 | FQ22: -172 | FR22: -172 | FS22: -180 | FT22: -196 | FU22: -256 | FV22: -256 | FW22: -256 | FX22: -256 | FY22: -256 | FZ22: -256 | GA22: -264 | GB22: -264 | GC22: -264 | GD22: -264 | GE22: -264 | GF22: -158 | GG22: -222 | GH22: -222 | GI22: -222 | GJ22: -222 | GK22: -222 | GL22: -222 | GM22: -222 | GN22: -222 | GO22: -222 | GP22: -222 | GQ22: -222 | GR22: -99 | GS22: -252 | GT22: -252 | GU22: -252 | GV22: -308 | GW22: -308 | GX22: -308 | GY22: -308 | GZ22: -308 | HA22: -308 | HB22: -308 | HC22: -320 | HD22: -13.29 | HE22: -136.41 | HF22: -136.41 | HG22: -143.37 | HH22: -194.5 | HI22: -544.5 | HJ22: -642.5 | HK22: -722.5 | HL22: -816.78 | HM22: -896.78 | HN22: -976.78 | HO22: -1079.57 | HP22: -80.01 | HQ22: -160.01 | HR22: -240.01 | HS22: -391.09 | HT22: -547.1 | HU22: -627.1 | HV22: -707.1 | HW22: -832.5 | HX22: -920.5 | HY22: -1055.11 | HZ22: -1166.71 | IA22: -1359.84 | IB22: -137.82 | IC22: -246.32 | ID22: -346.47 | IE22: -524.23 | IF22: -654.34 | IG22: -811.42 | IH22: -953.59 | II22: -1088.86 | IJ22: -1265.74 | IK22: -1472.5 | IL22: -1628.28 | IM22: -1793.07
A23: 10 | B23: Printing | G23: 0 | H23: 0 | J23: 0 | K23: 0 | L23: -1366.85 | M23: -538.55 | N23: -538.55 | O23: -538.55 | P23: -515.55 | Q23: -515.55 | R23: -515.55 | S23: -515.55 | T23: -515.55 | U23: -515.55 | V23: 0 | W23: 0 | X23: -1295 | Y23: -635 | Z23: -905 | AA23: -672 | AC23: -672 | AD23: -672 | AE23: -726 | AF23: -726 | AG23: -726 | AH23: 0 | AI23: 0 | AJ23: 112 | AK23: -582 | AL23: -678 | AM23: -678 | AN23: -678 | AO23: -678 | AP23: -678 | AQ23: -694 | AR23: -694 | AS23: -694 | AT23: 0 | AU23: 0 | AV23: 0 | AW23: -684 | AX23: -684 | AY23: -497 | AZ23: -497 | BA23: -497 | BB23: -497 | BC23: -497 | BD23: -497 | BE23: -497 | BF23: 0 | BG23: 17 | BH23: -459 | BI23: -42.6 | BJ23: -125.6 | BK23: -50.6 | BL23: -1649.1 | BM23: -1649.1 | BN23: -1649.1 | BO23: -1649.1 | BP23: -1629.1 | BQ23: -1629.1 | BR23: 0 | BS23: 157.5 | BT23: -878.25 | BU23: -860.75 | BV23: -458.25 | BW23: -515.25 | BX23: -563 | BY23: -563 | BZ23: -563 | CA23: -886 | CB23: -869 | CC23: -869 | CD23: 17.5 | CE23: 35.5 | CF23: 431.5 | CG23: -1672.3 | CH23: -1795.8 | CI23: -1687.8 | CJ23: -1669.8 | CK23: -1669.8 | CL23: -2064.05 | CM23: -2205.05 | CN23: -2205.05 | CO23: -2205.05 | CP23: 0 | CQ23: 1004.9 | CR23: -145.2 | CS23: 16.7 | CT23: 117.2 | CU23: 198.15 | CV23: 231 | CW23: 231 | CX23: 344.8 | CY23: 469.55 | CZ23: 535.25 | DA23: 557.15 | DB23: 65.7 | DC23: -406.7 | DD23: 737.05 | DE23: -69.75 | DF23: 257.65 | DG23: 370.85 | DH23: 259.65 | DI23: 259.65 | DJ23: 369.45 | DK23: 430.45 | DL23: 442.65 | DM23: 454.85 | DN23: 413.75 | DO23: 2315.95 | DP23: 3177.85 | DQ23: 421.9 | DR23: 576.7 | DS23: 850.85 | DT23: 976.7 | DU23: 976.7 | DV23: 976.7 | DW23: 1185.45 | DX23: 586.75 | DY23: 625.45 | DZ23: 117.9 | EA23: 769 | EB23: -218.4 | EC23: 145.6 | ED23: 480.4 | EE23: 29.2 | EF23: 121.6 | EG23: 121.6 | EH23: 376 | EI23: 485.2 | EJ23: 577.6 | EK23: 494.4 | EL23: 79.6 | EM23: 235.4 | EN23: 2593.15 | EO23: -334.35 | EP23: 391.75 | EQ23: -253.2 | ER23: -213 | ES23: -213 | ET23: -79 | EU23: -733.25 | EV23: 0 | EW23: 0 | EX23: 41 | EY23: 1232.6 | EZ23: 3117.6 | FA23: -310 | FB23: -223.5 | FC23: -123.2 | FD23: -50.7 | FE23: -23.1 | FF23: 45.9 | FG23: 45.9 | FH23: 0 | FI23: 52.9 | FJ23: 2677.5 | FK23: 2976.85 | FL23: -102.65 | FM23: -88.35 | FN23: -318.25 | FO23: -258.35 | FP23: -258.35 | FQ23: -438.35 | FR23: -500.95 | FS23: -500.95 | FT23: 0 | FU23: 0 | FV23: 1063.4 | FW23: 2069.8 | FX23: -55.4 | FY23: 108.7 | FZ23: 485.3 | GA23: -280.8 | GB23: -145.7 | GC23: -37.3 | GD23: 143.2 | GE23: 397.5 | GF23: 58.2 | GG23: -675.8 | GH23: 1622.3 | GI23: -935.5 | GJ23: -829.3 | GK23: -691.3 | GL23: -557.1 | GM23: -422.9 | GN23: -753.3 | GO23: -753.3 | GP23: -848.3 | GQ23: -728.6 | GR23: 60.7 | GS23: -167.4 | GT23: 2437.1 | GU23: -447.2 | GV23: -333.9 | GW23: -557.9 | GX23: -505.9 | GY23: -471.3 | GZ23: -425.1 | HA23: -317.7 | HB23: -225.1 | HC23: -631.1 | HD23: 0 | HE23: 0 | HF23: 0 | HG23: 0 | HH23: 0 | HI23: 0 | HJ23: 0 | HK23: 0 | HL23: 0 | HM23: 0 | HN23: 0 | HO23: 0 | HP23: 0 | HQ23: 0 | HR23: 0 | HS23: 0 | HT23: 0 | HU23: 0 | HV23: 0 | HW23: 0 | HX23: 0 | HY23: 0 | HZ23: 0 | IA23: 0 | IB23: 0 | IC23: 0 | ID23: 0 | IE23: 0 | IF23: 0 | IG23: 0 | IH23: 0 | II23: 0 | IJ23: 0 | IK23: 0 | IL23: 0 | IM23: 0
A24: 11 | B24: Stationery | G24: 0 | H24: 0 | J24: -27.5 | K24: -57.5 | L24: -133.5 | M24: -133.5 | N24: -140.5 | O24: -190.5 | P24: -190.5 | Q24: -190.5 | R24: -190.5 | S24: -190.5 | T24: -190.5 | U24: -190.5 | V24: -282.4 | W24: -260.4 | X24: -260.4 | Y24: -260.4 | Z24: -260.4 | AA24: -260.4 | AC24: -260.4 | AD24: -260.4 | AE24: -260.4 | AF24: -202.9 | AG24: -202.9 | AH24: 0 | AI24: -343 | AJ24: -343 | AK24: -343 | AL24: -343 | AM24: -343 | AN24: -343 | AO24: -343 | AP24: -343 | AQ24: -343 | AR24: -343 | AS24: -343 | AT24: -368 | AU24: -394 | AV24: -394 | AW24: -482.5 | AX24: -482.5 | AY24: -482.5 | AZ24: -482.5 | BA24: -482.5 | BB24: -482.5 | BC24: -487.5 | BD24: -487.5 | BE24: -487.5 | BF24: -85 | BG24: -85 | BH24: -85 | BI24: -104 | BJ24: -104 | BK24: -104 | BL24: -104 | BM24: -104 | BN24: -104 | BO24: -109 | BP24: -109 | BQ24: -109 | BR24: -85 | BS24: -85 | BT24: -104.6 | BU24: -104.6 | BV24: -104.6 | BW24: -104.6 | BX24: -104.6 | BY24: -104.6 | BZ24: -104.6 | CA24: -104.6 | CB24: -104.6 | CC24: -104.6 | CD24: -60 | CE24: -90 | CF24: -90 | CG24: -90 | CH24: -90 | CI24: -90 | CJ24: -90 | CK24: -90 | CL24: -90 | CM24: -90 | CN24: -90 | CO24: -90 | CP24: -60 | CQ24: -90 | CR24: -90 | CS24: -90 | CT24: -90 | CU24: -90 | CV24: -90 | CW24: -90 | CX24: -90 | CY24: -90 | CZ24: -90 | DA24: -90 | DB24: -60 | DC24: -60 | DD24: -90 | DE24: -90 | DF24: -90 | DG24: -90 | DH24: -90 | DI24: -90 | DJ24: -90 | DK24: -90 | DL24: -90 | DM24: -90 | DN24: -60 | DO24: -90 | DP24: -90 | DQ24: -90 | DR24: -90 | DS24: -90 | DT24: -90 | DU24: -90 | DV24: -90 | DW24: -90 | DX24: -90 | DY24: -90 | DZ24: -90 | EA24: -90 | EB24: -90 | EC24: -90 | ED24: -90 | EE24: -170 | EF24: -170 | EG24: -170 | EH24: -170 | EI24: -170 | EJ24: -170 | EK24: -200 | EL24: -60 | EM24: -60 | EN24: -60 | EO24: -60 | EP24: -60 | EQ24: -60 | ER24: -60 | ES24: -60 | ET24: 8.6 | EU24: -60 | EV24: 0 | EW24: 0 | EX24: -60 | EY24: -90 | EZ24: -90 | FA24: -90 | FB24: -90 | FC24: -90 | FD24: -105 | FE24: -105 | FF24: -105 | FG24: -105 | FH24: -90 | FI24: -90 | FJ24: -198 | FK24: -198 | FL24: -198 | FM24: -198 | FN24: -198 | FO24: -198 | FP24: -198 | FQ24: -198 | FR24: -198 | FS24: -198 | FT24: 0 | FU24: -60 | FV24: -60 | FW24: -60 | FX24: -90 | FY24: -90 | FZ24: -90 | GA24: -90 | GB24: -90 | GC24: -90 | GD24: -90 | GE24: -90 | GF24: 0 | GG24: 0 | GH24: -30 | GI24: -30 | GJ24: -30 | GK24: -30 | GL24: -30 | GM24: -30 | GN24: -30 | GO24: -30 | GP24: -30 | GQ24: -30 | GR24: 0 | GS24: 0 | GT24: 0 | GU24: 0 | GV24: -60 | GW24: -71.7 | GX24: -74.6 | GY24: -74.6 | GZ24: -74.6 | HA24: -74.6 | HB24: -74.6 | HC24: -90 | HD24: 0 | HE24: 0 | HF24: 0 | HG24: 0 | HH24: 0 | HI24: 0 | HJ24: 0 | HK24: 0 | HL24: 0 | HM24: 0 | HN24: 0 | HO24: 0 | HP24: 0 | HQ24: 0 | HR24: 0 | HS24: 0 | HT24: 0 | HU24: 0 | HV24: 0 | HW24: 0 | HX24: 0 | HY24: 0 | HZ24: 0 | IA24: 0 | IB24: 0 | IC24: 0 | ID24: 0 | IE24: 0 | IF24: 0 | IG24: 0 | IH24: 0 | II24: 0 | IJ24: 0 | IK24: 0 | IL24: 0 | IM24: 0
A25: 12 | B25: Postage | G25: 0 | H25: 0 | J25: -180 | K25: -195 | L25: -195 | M25: -200 | N25: -225 | O25: -225 | P25: -253 | Q25: -303 | R25: -303 | S25: -321 | T25: -326 | U25: -326 | V25: -305 | W25: -136 | X25: -136 | Y25: -6.5 | Z25: -4 | AA25: -115 | AC25: -155 | AD25: -238 | AE25: -238 | AF25: -250.5 | AG25: -676 | AH25: 0 | AI25: 144 | AJ25: 144 | AK25: 13 | AL25: 105 | AM25: 156.7 | AN25: 102.26 | AO25: 92.26 | AP25: 92.26 | AQ25: -220.83 | AR25: -220.83 | AS25: -204.24 | AT25: -152 | AU25: -167 | AV25: -167 | AW25: -270.75 | AX25: -270.75 | AY25: -300.75 | AZ25: -371.25 | BA25: -371.25 | BB25: -544.25 | BC25: -640.25 | BD25: -640.25 | BE25: -640.25 | BF25: -66 | BG25: -59 | BH25: -213 | BI25: -341 | BJ25: -341 | BK25: -250.5 | BL25: -211.9 | BM25: -211.9 | BN25: -205.9 | BO25: -205.9 | BP25: 18.1 | BQ25: -186.4 | BR25: -68 | BS25: -68 | BT25: -98 | BU25: -234.5 | BV25: -98 | BW25: -218 | BX25: -155 | BY25: -358 | BZ25: -326.5 | CA25: -316 | CB25: -291.5 | CC25: -323 | CD25: -41 | CE25: -65 | CF25: 64.5 | CG25: -86 | CH25: -121 | CI25: -148 | CJ25: -130.5 | CK25: -177.5 | CL25: -153 | CM25: -128.5 | CN25: -128.5 | CO25: -266 | CP25: -18 | CQ25: -61.75 | CR25: -61.75 | CS25: -71.75 | CT25: -258.25 | CU25: -168.5 | CV25: -134.25 | CW25: -134.25 | CX25: -168.25 | CY25: -192.25 | CZ25: -211.25 | DA25: -211.25 | DB25: -34 | DC25: -93 | DD25: 94 | DE25: -141.5 | DF25: -278.75 | DG25: -180.5 | DH25: -108.5 | DI25: 154.5 | DJ25: 43.5 | DK25: -193.5 | DL25: 446 | DM25: -252 | DN25: -9 | DO25: -99 | DP25: -174 | DQ25: -44.25 | DR25: -130.5 | DS25: -343 | DT25: -68 | DU25: -68 | DV25: -68 | DW25: -189 | DX25: -61 | DY25: 68 | DZ25: -150 | EA25: -163.25 | EB25: -147.5 | EC25: -147.5 | ED25: -115.5 | EE25: -147.5 | EF25: -215.5 | EG25: -215.5 | EH25: -260 | EI25: -267 | EJ25: -569.5 | EK25: -379 | EL25: -0.5 | EM25: -20.5 | EN25: -11.5 | EO25: -68.5 | EP25: -115.5 | EQ25: -195.5 | ER25: 272 | ES25: 272 | ET25: -189 | EU25: -189 | EV25: 0 | EW25: -108 | EX25: -126 | EY25: -126 | EZ25: -126 | FA25: -126 | FB25: -126 | FC25: -126 | FD25: -181 | FE25: -181 | FF25: -181 | FG25: -181 | FH25: 0 | FI25: 0 | FJ25: 0 | FK25: -40 | FL25: -15 | FM25: -77 | FN25: -200 | FO25: -130 | FP25: 31 | FQ25: -363.5 | FR25: -220 | FS25: -220 | FT25: 0 | FU25: -108 | FV25: 21.5 | FW25: -178 | FX25: -178 | FY25: -178 | FZ25: 171.75 | GA25: 242 | GB25: 60.5 | GC25: -470 | GD25: -501 | GE25: -334 | GF25: 616 | GG25: -145 | GH25: 293 | GI25: -193.5 | GJ25: -306.75 | GK25: -202.75 | GL25: 37.75 | GM25: -501.5 | GN25: -177.5 | GO25: -570.5 | GP25: 2037 | GQ25: 1927.5 | GR25: 544.25 | GS25: 722.75 | GT25: 3995.75 | GU25: 3618.25 | GV25: 3975.25 | GW25: 3466.25 | GX25: 3143.45 | GY25: 4229.2 | GZ25: 3510.2 | HA25: 3601.2 | HB25: 3241.2 | HC25: 3324.2 | HD25: 0 | HE25: 0 | HF25: 0 | HG25: 0 | HH25: 0 | HI25: 0 | HJ25: 0 | HK25: 0 | HL25: 0 | HM25: 0 | HN25: 0 | HO25: 0 | HP25: 0 | HQ25: 0 | HR25: 0 | HS25: 0 | HT25: 0 | HU25: 0 | HV25: 0 | HW25: 0 | HX25: 0 | HY25: 0 | HZ25: 0 | IA25: 0 | IB25: 0 | IC25: 0 | ID25: 0 | IE25: 0 | IF25: 0 | IG25: 0 | IH25: 0 | II25: 0 | IJ25: 0 | IK25: 0 | IL25: 0 | IM25: 0
A26: 13 | B26: Telephone | G26: 0 | H26: 0 | J26: -5 | K26: -5 | L26: -5 | M26: -5 | N26: -5 | O26: -5 | P26: -5 | Q26: -5 | R26: -5 | S26: -5 | T26: -5 | U26: -5 | V26: 0 | W26: 0 | X26: 0 | Y26: 0 | Z26: 0 | AA26: 0 | AC26: 948 | AD26: 1210.5 | AE26: 760.5 | AF26: 232.5 | AG26: 232.5 | AH26: 0 | AI26: 0 | AJ26: 0 | AK26: 0 | AL26: 0 | AM26: 0 | AN26: 0 | AO26: 0 | AP26: 0 | AQ26: 424 | AR26: 424 | AS26: 104.5 | AT26: 0 | AU26: 0 | AV26: -6 | AW26: -6 | AX26: -393.5 | AY26: -266.5 | AZ26: -697.9 | BA26: -697.9 | BB26: -697.9 | BC26: -697.9 | BD26: -697.9 | BE26: -697.9 | BF26: 0 | BG26: 0 | BH26: 0 | BI26: 0 | BJ26: 0 | BK26: 0 | BL26: 0 | BM26: 0 | BN26: 0 | BO26: 0 | BP26: 0 | BQ26: -7.5 | BR26: -185 | BS26: -370 | BT26: -370 | BU26: -410 | BV26: -417.5 | BW26: -470.3 | BX26: -470.3 | BY26: -470.3 | BZ26: -713.3 | CA26: -713.3 | CB26: -713.3 | CC26: -713.3 | CD26: 0 | CE26: -100 | CF26: -214.2 | CG26: -239.2 | CH26: -239.2 | CI26: -239.2 | CJ26: -239.2 | CK26: -239.2 | CL26: -300.2 | CM26: -325.2 | CN26: -325.2 | CO26: -325.2 | CP26: 0 | CQ26: -20 | CR26: -20 | CS26: -20 | CT26: -20 | CU26: -20 | CV26: -75 | CW26: -75 | CX26: -210 | CY26: -210 | CZ26: -210 | DA26: -210 | DB26: 0 | DC26: 0 | DD26: 0 | DE26: 300 | DF26: 300 | DG26: 300 | DH26: 300 | DI26: 300 | DJ26: -295 | DK26: -295 | DL26: 5 | DM26: 5 | DN26: -190 | DO26: -190 | DP26: -190 | DQ26: -200 | DR26: -200 | DS26: -200 | DT26: -200 | DU26: -200 | DV26: -200 | DW26: -145 | DX26: -145 | DY26: -145 | DZ26: -1754 | EA26: 0 | EB26: -35 | EC26: -35 | ED26: -35 | EE26: -180 | EF26: -667.5 | EG26: -667.5 | EH26: -597.5 | EI26: -597.5 | EJ26: -702.5 | EK26: -702.5 | EL26: 0 | EM26: 0 | EN26: 0 | EO26: -207.5 | EP26: 132.5 | EQ26: 132.5 | ER26: 132.5 | ES26: 132.5 | ET26: 17.5 | EU26: 17.5 | EV26: -340 | EW26: 0 | EX26: 0 | EY26: 0 | EZ26: -150 | FA26: -450 | FB26: -450 | FC26: -450 | FD26: -562.5 | FE26: -675 | FF26: -675 | FG26: -506 | FH26: 0 | FI26: 225 | FJ26: 112.5 | FK26: -51.5 | FL26: -51.5 | FM26: -51.5 | FN26: -51.5 | FO26: 173.5 | FP26: 173.5 | FQ26: 173.5 | FR26: 173.5 | FS26: 173.5 | FT26: 0 | FU26: 0 | FV26: 0 | FW26: 0 | FX26: -387.5 | FY26: -442.5 | FZ26: -497.5 | GA26: -507.5 | GB26: -558.5 | GC26: -558.5 | GD26: -568.5 | GE26: -568.5 | GF26: 0 | GG26: 0 | GH26: 0 | GI26: 0 | GJ26: 0 | GK26: 0 | GL26: -38.75 | GM26: -48.75 | GN26: -48.75 | GO26: -48.75 | GP26: -106.75 | GQ26: -135.75 | GR26: 0 | GS26: 0 | GT26: 0 | GU26: 0 | GV26: -215 | GW26: -555 | GX26: -1013.81 | GY26: -1013.81 | GZ26: -1088.81 | HA26: -1088.81 | HB26: -1603.81 | HC26: -1620.6 | HD26: 0 | HE26: 0 | HF26: 0 | HG26: 0 | HH26: 0 | HI26: 0 | HJ26: 0 | HK26: 0 | HL26: 0 | HM26: 0 | HN26: 0 | HO26: 0 | HP26: 0 | HQ26: 0 | HR26: 0 | HS26: 0 | HT26: 0 | HU26: 0 | HV26: 0 | HW26: 0 | HX26: 0 | HY26: 0 | HZ26: 0 | IA26: 0 | IB26: 0 | IC26: 0 | ID26: 0 | IE26: 0 | IF26: 0 | IG26: 0 | IH26: 0 | II26: 0 | IJ26: 0 | IK26: 0 | IL26: 0 | IM26: 0
A27: 14 | B27: Equipment | F27: 121.15 | G27: -121.15 | H27: -1502.86 | J27: 0 | K27: 0 | L27: 4277.8 | M27: 4260.8 | N27: 4260.8 | O27: -260.6 | P27: -260.6 | Q27: -260.6 | R27: -260.6 | S27: -260.6 | T27: -260.6 | U27: -260.6 | V27: 0 | W27: 1500 | X27: 4878.25 | Y27: 749.1 | Z27: 649.1 | AA27: 809.1 | AC27: 809.1 | AD27: 809.1 | AE27: 809.1 | AF27: 809.1 | AG27: 809.1 | AH27: 0 | AI27: 210 | AJ27: 2258 | AK27: 1339.57 | AL27: 644.57 | AM27: 644.57 | AN27: 644.57 | AO27: 744.57 | AP27: 744.57 | AQ27: 744.57 | AR27: 744.57 | AS27: 744.57 | AT27: 0 | AU27: 1300 | AV27: 4508.53 | AW27: 266.83 | AX27: 266.83 | AY27: 266.83 | AZ27: 266.83 | BA27: 266.83 | BB27: 266.83 | BC27: 266.83 | BD27: 266.83 | BE27: 341.83 | BF27: 950 | BG27: 1050 | BH27: 6060.02 | BI27: 5789.08 | BJ27: 1470.88 | BK27: 1470.88 | BL27: 1470.88 | BM27: 1470.88 | BN27: 1470.88 | BO27: 1470.88 | BP27: 1470.88 | BQ27: 1470.88 | BR27: 1390 | BS27: 2110 | BT27: 4203.27 | BU27: 1167.46 | BV27: 547.46 | BW27: 547.46 | BX27: 547.46 | BY27: 547.46 | BZ27: 547.46 | CA27: 547.46 | CB27: 547.46 | CC27: 547.46 | CD27: 950 | CE27: 2675 | CF27: 4214 | CG27: 3284 | CH27: -2267.2 | CI27: -2387.2 | CJ27: -2387.2 | CK27: -2387.2 | CL27: -2387.2 | CM27: -2387.2 | CN27: -2387.2 | CO27: -2412.2 | CP27: 1400 | CQ27: 1530 | CR27: 3935 | CS27: -1972.54 | CT27: -2232.54 | CU27: -2102.54 | CV27: -2022.54 | CW27: -2022.54 | CX27: -2022.54 | CY27: -2022.54 | CZ27: -2022.54 | DA27: -2047.54 | DB27: -1000.5 | DC27: -1025.5 | DD27: 3627.63 | DE27: -2801.57 | DF27: -2906.92 | DG27: -2906.92 | DH27: -2906.92 | DI27: -2906.92 | DJ27: -2906.92 | DK27: -2906.92 | DL27: -2906.92 | DM27: -2906.92 | DN27: -1705 | DO27: -3335 | DP27: 1765 | DQ27: 1376.74 | DR27: 1476.74 | DS27: 1401.74 | DT27: 1401.74 | DU27: -2851.26 | DV27: -2851.26 | DW27: -2851.26 | DX27: -2851.26 | DY27: -2851.26 | DZ27: 0 | EA27: -1258 | EB27: 3317 | EC27: 3401.74 | ED27: -2021.46 | EE27: -2021.46 | EF27: -2021.46 | EG27: -2021.46 | EH27: -2021.46 | EI27: -2021.46 | EJ27: -2021.46 | EK27: -2021.46 | EL27: -1754 | EM27: -578 | EN27: 5137.7 | EO27: -1598.06 | EP27: -1598.06 | EQ27: -1598.06 | ER27: -1598.06 | ES27: -1598.06 | ET27: -1598.06 | EU27: -1598.06 | EV27: 0 | EW27: 0 | EX27: -2350 | EY27: 485 | EZ27: 310 | FA27: -754.76 | FB27: -754.76 | FC27: -754.76 | FD27: -754.76 | FE27: -754.76 | FF27: -754.76 | FG27: -754.76 | FH27: 0 | FI27: 0 | FJ27: -4500 | FK27: -2560 | FL27: 3256.06 | FM27: -1598.29 | FN27: -1598.29 | FO27: -1598.29 | FP27: -1598.29 | FQ27: -2148.29 | FR27: -2148.29 | FS27: -2148.29 | FT27: 0 | FU27: 0 | FV27: 0 | FW27: 1478 | FX27: 2225.85 | FY27: -1086.55 | FZ27: -1086.55 | GA27: -1086.55 | GB27: -926.55 | GC27: -926.55 | GD27: -926.55 | GE27: -446.55 | GF27: 580 | GG27: 2770 | GH27: 3290 | GI27: 610 | GJ27: 4769.2 | GK27: 1183.98 | GL27: 1183.98 | GM27: 833.98 | GN27: 830.21 | GO27: 830.21 | GP27: 830.21 | GQ27: 830.21 | GR27: 100 | GS27: 2390 | GT27: 663.2 | GU27: -1253.6 | GV27: 5266.4 | GW27: 218.97 | GX27: -21.03 | GY27: -34.03 | GZ27: 395.97 | HA27: 455.97 | HB27: 515.97 | HC27: 515.97 | HD27: -386.3 | HE27: -386.3 | HF27: -386.3 | HG27: -386.3 | HH27: -495.8 | HI27: -495.8 | HJ27: -542.59 | HK27: -542.59 | HL27: -756.59 | HM27: -756.59 | HN27: -756.59 | HO27: -4441.55 | HP27: -1038.1 | HQ27: -1038.1 | HR27: -1038.1 | HS27: -1488.89 | HT27: -1488.89 | HU27: -1488.89 | HV27: -1488.89 | HW27: -1488.89 | HX27: -1488.89 | HY27: -1488.89 | HZ27: -1488.89 | IA27: -1502.86 | IB27: 0 | IC27: 0 | ID27: 0 | IE27: 0 | IF27: 0 | IG27: 0 | IH27: -121.15 | II27: -121.15 | IJ27: -121.15 | IK27: -121.15 | IL27: -121.15 | IM27: -121.15
A28: 15 | B28: Engraving | G28: 0 | H28: -915 | J28: -5 | K28: -48 | L28: -69 | M28: -109 | N28: -167.5 | O28: -167.5 | P28: -203.5 | Q28: -284.5 | R28: -284.5 | S28: -284.5 | T28: -284.5 | U28: -284.5 | V28: 0 | W28: 0 | X28: -33 | Y28: -65 | Z28: -80 | AA28: -95 | AC28: -119 | AD28: -124 | AE28: -134 | AF28: -172 | AG28: -172 | AH28: 0 | AI28: -14 | AJ28: -19 | AK28: -35 | AL28: -65 | AM28: -80 | AN28: -80 | AO28: -80 | AP28: -153 | AQ28: -232 | AR28: -232 | AS28: -242 | AT28: -5 | AU28: -10 | AV28: -10 | AW28: -18 | AX28: -33 | AY28: -58 | AZ28: -63 | BA28: -63 | BB28: -142 | BC28: -167 | BD28: -167 | BE28: -172 | BF28: 0 | BG28: -20 | BH28: -30 | BI28: -30 | BJ28: -40 | BK28: -63 | BL28: -63 | BM28: -63 | BN28: -161 | BO28: -161 | BP28: -161 | BQ28: -161 | BR28: -45 | BS28: -45 | BT28: -50 | BU28: -50 | BV28: -60 | BW28: -60 | BX28: -85 | BY28: -85 | BZ28: -85 | CA28: -85 | CB28: -125 | CC28: -145 | CD28: 0 | CE28: 0 | CF28: 0 | CG28: 0 | CH28: 0 | CI28: -10 | CJ28: -10 | CK28: -10 | CL28: -15 | CM28: -20 | CN28: -20 | CO28: -25 | CP28: -40 | CQ28: -50 | CR28: -50 | CS28: -50 | CT28: -50 | CU28: -50 | CV28: -55 | CW28: -55 | CX28: -55 | CY28: -250 | CZ28: -250 | DA28: -280 | DB28: 0 | DC28: -5 | DD28: -5 | DE28: -20 | DF28: -20 | DG28: -20 | DH28: -25 | DI28: -25 | DJ28: -125 | DK28: -125 | DL28: -162 | DM28: -184 | DN28: 0 | DO28: 0 | DP28: -12 | DQ28: -12 | DR28: -12 | DS28: -32 | DT28: -47 | DU28: -47 | DV28: -47 | DW28: -87 | DX28: -107 | DY28: -122 | DZ28: 0 | EA28: 0 | EB28: -15 | EC28: -15 | ED28: -15 | EE28: -15 | EF28: -15 | EG28: -15 | EH28: -15 | EI28: -35 | EJ28: -35 | EK28: -77 | EL28: 0 | EM28: 0 | EN28: 0 | EO28: 0 | EP28: 0 | EQ28: 0 | ER28: -10 | ES28: -10 | ET28: -10 | EU28: -10 | EV28: 0 | EW28: 0 | EX28: 0 | EY28: 0 | EZ28: 0 | FA28: 0 | FB28: 0 | FC28: 0 | FD28: 0 | FE28: 0 | FF28: 0 | FG28: -10 | FH28: 0 | FI28: 0 | FJ28: 0 | FK28: 0 | FL28: 0 | FM28: 0 | FN28: 0 | FO28: 0 | FP28: 0 | FQ28: 0 | FR28: 0 | FS28: 0 | FT28: 0 | FU28: -15 | FV28: -15 | FW28: -15 | FX28: -15 | FY28: -25 | FZ28: -25 | GA28: -30 | GB28: -30 | GC28: -30 | GD28: -30 | GE28: -45 | GF28: 0 | GG28: 0 | GH28: 0 | GI28: 0 | GJ28: 0 | GK28: -5 | GL28: -30 | GM28: -340 | GN28: -345 | GO28: -345 | GP28: -355 | GQ28: -360 | GR28: 0 | GS28: -30 | GT28: -30 | GU28: -30 | GV28: -30 | GW28: -30 | GX28: -35 | GY28: -35 | GZ28: -35 | HA28: -35 | HB28: -35 | HC28: -35 | HD28: 0 | HE28: 0 | HF28: -12 | HG28: -276 | HH28: -276 | HI28: -276 | HJ28: -276 | HK28: -276 | HL28: -276 | HM28: -276 | HN28: -276 | HO28: -276 | HP28: 0 | HQ28: 0 | HR28: -915 | HS28: -915 | HT28: -915 | HU28: -915 | HV28: -915 | HW28: -915 | HX28: -915 | HY28: -915 | HZ28: -915 | IA28: -915 | IB28: 0 | IC28: 0 | ID28: 0 | IE28: 0 | IF28: 0 | IG28: 0 | IH28: 0 | II28: 0 | IJ28: 0 | IK28: 0 | IL28: 0 | IM28: 0
A29: 16 | B29: ASA Registration | E29: 4256.2 | F29: 4925.15 | G29: -668.95 | H29: -86.51 | J29: -10.5 | K29: -22.5 | L29: -164.3 | M29: -308.3 | N29: -336.8 | O29: -351.8 | P29: -397.8 | Q29: -408.3 | R29: -408.3 | S29: -481.8 | T29: -565.8 | U29: -615.3 | V29: -84 | W29: -308.5 | X29: -491 | Y29: -655 | Z29: -769 | AA29: -781 | AC29: -797 | AD29: -803 | AE29: -809 | AF29: -815 | AG29: -815 | AH29: 0 | AI29: -33 | AJ29: -100 | AK29: -198 | AL29: -308 | AM29: -338 | AN29: -368 | AO29: -368 | AP29: -408 | AQ29: -458 | AR29: -458 | AS29: -458 | AT29: -30 | AU29: -70 | AV29: -90 | AW29: -130 | AX29: -212 | AY29: -295 | AZ29: -335 | BA29: -335 | BB29: -375 | BC29: -405 | BD29: -405 | BE29: -435 | BF29: 0 | BG29: -40 | BH29: -40 | BI29: -50 | BJ29: -50 | BK29: -50 | BL29: -70 | BM29: -70 | BN29: -70 | BO29: -70 | BP29: -70 | BQ29: -70 | BR29: 0 | BS29: -10 | BT29: -10 | BU29: -410 | BV29: -430 | BW29: -430 | BX29: -430 | BY29: -430 | BZ29: -460 | CA29: -600 | CB29: -750 | CC29: -830 | CD29: -210 | CE29: -390 | CF29: -480 | CG29: -570.2 | CH29: -720.2 | CI29: -1030.2 | CJ29: -1170.2 | CK29: -1170.2 | CL29: -1480.2 | CM29: -1720.2 | CN29: -2110.2 | CO29: -2240.2 | CP29: -480 | CQ29: -890 | CR29: -1220 | CS29: -1370 | CT29: -1660 | CU29: -1910 | CV29: -2300 | CW29: -2300 | CX29: -2380 | CY29: -3190 | CZ29: -3607 | DA29: -3827 | DB29: -390 | DC29: -720 | DD29: -1330 | DE29: -1780 | DF29: -2050 | DG29: -2310 | DH29: -2940 | DI29: -2940 | DJ29: -3423.25 | DK29: -3953.25 | DL29: -4493.25 | DM29: -5323.25 | DN29: -240 | DO29: -360 | DP29: -430 | DQ29: -610 | DR29: -1140 | DS29: -1385 | DT29: -1425 | DU29: -1465 | DV29: -1465 | DW29: -2110 | DX29: -2310 | DY29: -2310 | DZ29: -430 | EA29: -520 | EB29: -950 | EC29: -1040 | ED29: -1100 | EE29: -1370 | EF29: -1685 | EG29: -1685 | EH29: -1765 | EI29: -1855 | EJ29: -1985 | EK29: -2515 | EL29: -120 | EM29: -335 | EN29: -445 | EO29: -485 | EP29: -645 | EQ29: -655 | ER29: -767.5 | ES29: -767.5 | ET29: -847.5 | EU29: -1947.5 | EV29: -30 | EW29: -190.75 | EX29: -205.75 | EY29: -657.7 | EZ29: -687.7 | FA29: -967.7 | FB29: -1132.7 | FC29: -1507.7 | FD29: -1677.7 | FE29: -1717.7 | FF29: -1897.7 | FG29: -2057.7 | FH29: -300 | FI29: -360 | FJ29: -752.5 | FK29: -1184.31 | FL29: -1292.5 | FM29: -1552.5 | FN29: -1862.5 | FO29: -2292.5 | FP29: -2342.5 | FQ29: -2332.5 | FR29: -2727.5 | FS29: -2887.5 | FT29: -335 | FU29: -438 | FV29: -783 | FW29: -958 | FX29: -1228 | FY29: -1353 | FZ29: -1368 | GA29: -1473 | GB29: -1860.5 | GC29: -1860.5 | GD29: -2140.5 | GE29: -2038 | GF29: -447.5 | GG29: -835 | GH29: -835 | GI29: -905 | GJ29: -1282.5 | GK29: -1670 | GL29: -1670 | GM29: -2120 | GN29: -2440 | GO29: -2440 | GP29: -2787.5 | GQ29: -3042.5 | GR29: -220 | GS29: -710 | GT29: -815 | GU29: -967.5 | GV29: -1450 | GW29: -1510 | GX29: -2010 | GY29: -2165 | GZ29: -2375 | HA29: -2375 | HB29: -2375 | HC29: -2477.5 | HD29: -110.4 | HE29: -107.15 | HF29: 2443 | HG29: -1006.95 | HH29: -270.5 | HI29: -249.05 | HJ29: -70.35 | HK29: -231.55 | HL29: -128.85 | HM29: -262.7 | HN29: -208.65 | HO29: -177.05 | HP29: 24.64 | HQ29: 75.19 | HR29: 3516.14 | HS29: 4747.54 | HT29: 4830.89 | HU29: 118.74 | HV29: 118.74 | HW29: 118.74 | HX29: 118.74 | HY29: -10.86 | HZ29: 45.09 | IA29: -86.51 | IB29: 0 | IC29: 2.1 | ID29: 61.25 | IE29: 3005.3 | IF29: -430.22 | IG29: -357.2 | IH29: -546.65 | II29: -579.05 | IJ29: -562.85 | IK29: -562.85 | IL29: -648.55 | IM29: -668.95
A30: 17 | B30: Affiliation Fees | F30: 10 | G30: -10 | H30: -100 | J30: 0 | K30: 0 | L30: -470 | M30: -470 | N30: -615 | O30: -925 | P30: -1155 | Q30: -1305 | R30: -1305 | S30: -1792.57 | T30: -1947.57 | U30: -1947.57 | V30: -205 | W30: -355 | X30: -385 | Y30: -567.5 | Z30: -732.5 | AA30: -1057.5 | AC30: -1057.5 | AD30: -1057.5 | AE30: -1057.5 | AF30: -1207.5 | AG30: -1342.5 | AH30: 0 | AI30: 0 | AJ30: 0 | AK30: -3.5 | AL30: -550.5 | AM30: -550.5 | AN30: -550.5 | AO30: -550.5 | AP30: -558.5 | AQ30: -883.5 | AR30: -883.5 | AS30: -883.5 | AT30: 0 | AU30: 0 | AV30: 0 | AW30: -150 | AX30: -440 | AY30: -740 | AZ30: -740 | BA30: -740 | BB30: -916.5 | BC30: -1056.5 | BD30: -1271.5 | BE30: -1481.5 | BF30: 0 | BG30: 0 | BH30: -195 | BI30: -200 | BJ30: -565 | BK30: -955 | BL30: -1152 | BM30: -1152 | BN30: -1152 | BO30: -1347 | BP30: -1572 | BQ30: -1572 | BR30: 0 | BS30: 0 | BT30: -362.5 | BU30: -722.5 | BV30: -905 | BW30: -907.5 | BX30: -1197.5 | BY30: -1197.5 | BZ30: -1197.5 | CA30: -1450.5 | CB30: -1450.5 | CC30: -1700.5 | CD30: 0 | CE30: 0 | CF30: -195 | CG30: -585 | CH30: -791 | CI30: -996 | CJ30: -997.5 | CK30: -997.5 | CL30: -997.5 | CM30: -1277.5 | CN30: -1277.5 | CO30: -1527.5 | CP30: -410 | CQ30: -410 | CR30: -410 | CS30: -800 | CT30: -1190 | CU30: -1395 | CV30: -1395 | CW30: -1395 | CX30: -1449 | CY30: -1699 | CZ30: -1701.5 | DA30: -2051.5 | DB30: 0 | DC30: 0 | DD30: -195 | DE30: -395 | DF30: -620 | DG30: -835 | DH30: -835 | DI30: -835 | DJ30: -835 | DK30: -1045 | DL30: -1255 | DM30: -1550 | DN30: -195 | DO30: -195 | DP30: -585 | DQ30: -780 | DR30: -975 | DS30: -1405 | DT30: -1405 | DU30: -1405 | DV30: -1405 | DW30: -1615 | DX30: -2210 | DY30: -2210 | DZ30: 0 | EA30: -200 | EB30: -200 | EC30: -600 | ED30: -800 | EE30: -1000 | EF30: -1000 | EG30: -1000 | EH30: -1000 | EI30: -1395 | EJ30: -1795 | EK30: -1795 | EL30: 0 | EM30: 0 | EN30: -420 | EO30: -630 | EP30: -630 | EQ30: -840 | ER30: -840 | ES30: -840 | ET30: -840 | EU30: -1190 | EV30: -255 | EW30: -255 | EX30: -475 | EY30: -695 | EZ30: -695 | FA30: -905 | FB30: -1115 | FC30: -1115 | FD30: -1115 | FE30: -1115 | FF30: -1675 | FG30: -1925 | FH30: -5 | FI30: 0 | FJ30: 0 | FK30: -210 | FL30: -880 | FM30: -880 | FN30: -880 | FO30: -1385 | FP30: -1680 | FQ30: -1680 | FR30: -1680 | FS30: -2120 | FT30: -250 | FU30: -510 | FV30: -510 | FW30: -614 | FX30: -614 | FY30: -564 | FZ30: -551 | GA30: -565 | GB30: -662 | GC30: -662 | GD30: -1322 | GE30: -1664 | GF30: 63 | GG30: 63 | GH30: 63 | GI30: -102 | GJ30: -102 | GK30: -582 | GL30: -510 | GM30: -409.85 | GN30: -403.85 | GO30: -828.85 | GP30: -1056.85 | GQ30: -1306.85 | GR30: -208 | GS30: -208 | GT30: -208 | GU30: -208 | GV30: -208 | GW30: -208 | GX30: -208 | GY30: -458 | GZ30: -418 | HA30: -418 | HB30: -665 | HC30: -624 | HD30: 0 | HE30: 0 | HF30: -155 | HG30: -175 | HH30: -175 | HI30: -275 | HJ30: -275 | HK30: -275 | HL30: -275 | HM30: -275 | HN30: -275 | HO30: -275 | HP30: 0 | HQ30: -30 | HR30: -100 | HS30: -100 | HT30: -100 | HU30: -100 | HV30: -100 | HW30: -100 | HX30: -100 | HY30: -100 | HZ30: -100 | IA30: -100 | IB30: 0 | IC30: -10 | ID30: -10 | IE30: -10 | IF30: -10 | IG30: -10 | IH30: -10 | II30: -10 | IJ30: -10 | IK30: -10 | IL30: -10 | IM30: -10
A31: 18 | B31: Entry Fees | G31: 0 | H31: 0 | J31: 0 | K31: 0 | L31: 0 | M31: 0 | N31: 0 | O31: -110 | P31: -20.55 | Q31: -20.55 | R31: -20.55 | S31: -20.55 | T31: -71.27 | U31: 148.47 | V31: 0 | W31: 0 | X31: 0 | Y31: 0 | Z31: 0 | AA31: 0 | AC31: 0 | AD31: 0 | AE31: 35 | AF31: 283.8 | AG31: -48.74 | AH31: 0 | AI31: 0 | AJ31: 0 | AK31: 0 | AL31: 0 | AM31: 0 | AN31: 0 | AO31: 0 | AP31: 0 | AQ31: 313.25 | AR31: 313.25 | AS31: 6.85 | AT31: -10 | AU31: -10 | AV31: -10 | AW31: -10 | AX31: -40 | AY31: -40 | AZ31: -40 | BA31: -40 | BB31: -40 | BC31: 21.5 | BD31: 405.9 | BE31: 458.5 | BF31: -300.72 | BG31: -300.72 | BH31: -300.72 | BI31: -300.72 | BJ31: -300.72 | BK31: -300.72 | BL31: -387.65 | BM31: -387.65 | BN31: -387.65 | BO31: -330.65 | BP31: 59.75 | BQ31: 69.85 | BR31: -259.8 | BS31: -259.8 | BT31: -259.8 | BU31: -259.8 | BV31: -259.8 | BW31: -259.8 | BX31: -259.8 | BY31: -259.8 | BZ31: -259.8 | CA31: -106.3 | CB31: 365.25 | CC31: 146.39 | CD31: 0 | CE31: 0 | CF31: 0 | CG31: -144.36 | CH31: -144.36 | CI31: -144.36 | CJ31: -144.36 | CK31: -144.36 | CL31: -144.36 | CM31: -83.86 | CN31: 571.14 | CO31: 249.99 | CP31: 0 | CQ31: 0 | CR31: 0 | CS31: 0 | CT31: 0 | CU31: 0 | CV31: 0 | CW31: 0 | CX31: 0 | CY31: 147.5 | CZ31: 675 | DA31: 181.11 | DB31: 0 | DC31: 0 | DD31: 0 | DE31: 0 | DF31: 0 | DG31: 0 | DH31: 0 | DI31: 0 | DJ31: 0 | DK31: 0 | DL31: 683 | DM31: 159.36 | DN31: 0 | DO31: 0 | DP31: 0 | DQ31: 0 | DR31: 0 | DS31: 0 | DT31: 0 | DU31: 0 | DV31: 0 | DW31: 54 | DX31: 240.85 | DY31: 240.85 | DZ31: 0 | EA31: 0 | EB31: 0 | EC31: 0 | ED31: 0 | EE31: 0 | EF31: 0 | EG31: 0 | EH31: 0 | EI31: 457 | EJ31: 688.45 | EK31: 656.14 | EL31: 0 | EM31: 0 | EN31: 0 | EO31: 0 | EP31: 0 | EQ31: 0 | ER31: 0 | ES31: 0 | ET31: 0 | EU31: 156 | EV31: 630.37 | EW31: 564.79 | EX31: -50.21 | EY31: -50.21 | EZ31: -50.21 | FA31: -0.21 | FB31: -0.21 | FC31: -0.21 | FD31: -0.21 | FE31: -0.21 | FF31: -0.21 | FG31: 87.79 | FH31: 157.66 | FI31: 45.69 | FJ31: -386.31 | FK31: -386.31 | FL31: -936.31 | FM31: -936.31 | FN31: -888.81 | FO31: -888.81 | FP31: -888.81 | FQ31: -338.81 | FR31: -338.81 | FS31: -338.81 | FT31: 594 | FU31: 618 | FV31: 193 | FW31: 193 | FX31: 193 | FY31: 193 | FZ31: 193 | GA31: 193 | GB31: 193 | GC31: 193 | GD31: 193 | GE31: 305 | GF31: 921 | GG31: 1022.95 | GH31: 447.95 | GI31: 442.95 | GJ31: 442.95 | GK31: 442.95 | GL31: 442.95 | GM31: 442.95 | GN31: 442.95 | GO31: 442.95 | GP31: 442.95 | GQ31: 490.95 | GR31: 765 | GS31: 1142.85 | GT31: 642.85 | GU31: 586.35 | GV31: 586.35 | GW31: 586.35 | GX31: 586.35 | GY31: 586.35 | GZ31: 586.35 | HA31: 586.35 | HB31: 586.35 | HC31: 661.35 | HD31: 0 | HE31: 0 | HF31: 0 | HG31: 0 | HH31: 0 | HI31: 0 | HJ31: 0 | HK31: 0 | HL31: 0 | HM31: 0 | HN31: 268 | HO31: 268 | HP31: 0 | HQ31: 0 | HR31: 0 | HS31: 0 | HT31: 0 | HU31: 0 | HV31: 0 | HW31: 0 | HX31: 0 | HY31: 0 | HZ31: 0 | IA31: 0 | IB31: 0 | IC31: 0 | ID31: 0 | IE31: 0 | IF31: 0 | IG31: 0 | IH31: 0 | II31: 0 | IJ31: 0 | IK31: 0 | IL31: 0 | IM31: 0
A32: 19 | B32: Staff Training | E32: 442.5 | F32: 505 | G32: -62.5 | H32: -612.29 | J32: 0 | K32: 0 | L32: 0 | M32: 0 | N32: 0 | O32: 0 | P32: 0 | Q32: 0 | R32: 0 | S32: 0 | T32: 0 | U32: 0 | V32: 0 | W32: 0 | X32: 0 | Y32: 0 | Z32: 0 | AA32: -1.8 | AC32: -1.8 | AD32: -1.8 | AE32: -1.8 | AF32: -1.8 | AG32: -1.8 | AH32: 0 | AI32: 0 | AJ32: 0 | AK32: 0 | AL32: 0 | AM32: 0 | AN32: 0 | AO32: 0 | AP32: 0 | AQ32: 0 | AR32: 0 | AS32: 0 | AT32: 31 | AU32: 31 | AV32: 145.5 | AW32: 187.5 | AX32: 166.25 | AY32: 225.2 | AZ32: 262.75 | BA32: 262.75 | BB32: 540.75 | BC32: 546.75 | BD32: 552.75 | BE32: 536.75 | BF32: 0 | BG32: 0 | BH32: 89 | BI32: 89 | BJ32: 89 | BK32: 162 | BL32: 162 | BM32: 162 | BN32: 215 | BO32: 215 | BP32: 215 | BQ32: 196 | BR32: 0 | BS32: 0 | BT32: 44 | BU32: 30.53 | BV32: 108.53 | BW32: 108.53 | BX32: 108.53 | BY32: 108.53 | BZ32: 137.53 | CA32: 135.53 | CB32: 135.53 | CC32: 135.53 | CD32: 0 | CE32: 0 | CF32: -2 | CG32: -2 | CH32: -5.96 | CI32: -12.18 | CJ32: -12.18 | CK32: -12.18 | CL32: 39.89 | CM32: 39.89 | CN32: 33.93 | CO32: 33.93 | CP32: 57.25 | CQ32: 501.75 | CR32: 680.75 | CS32: 788.25 | CT32: 968.75 | CU32: 1093.25 | CV32: 1093.25 | CW32: 1093.25 | CX32: 1303.25 | CY32: 1416.75 | CZ32: 788.25 | DA32: 788.25 | DB32: 163.5 | DC32: 394.5 | DD32: 532.5 | DE32: 443 | DF32: 479.5 | DG32: 616.07 | DH32: 616.07 | DI32: 616.07 | DJ32: 598.07 | DK32: 749.07 | DL32: 704.07 | DM32: 588.88 | DN32: 156.5 | DO32: 213.5 | DP32: 398.43 | DQ32: 481.43 | DR32: 696.51 | DS32: 1013.59 | DT32: 972.15 | DU32: 972.15 | DV32: 972.15 | DW32: 1257.98 | DX32: 1318.02 | DY32: 1318.02 | DZ32: 154 | EA32: 217.9 | EB32: 386.94 | EC32: 388.8 | ED32: 559.34 | EE32: 671.74 | EF32: 702.78 | EG32: 702.78 | EH32: 733.6 | EI32: 931.68 | EJ32: 908.29 | EK32: 904.27 | EL32: 159 | EM32: 210 | EN32: 332.86 | EO32: 382.86 | EP32: 471.12 | EQ32: 627.12 | ER32: 627.12 | ES32: 627.12 | ET32: 755.12 | EU32: 933.52 | EV32: -254.5 | EW32: -188.5 | EX32: -22.5 | EY32: 250 | EZ32: 218.2 | FA32: 106.2 | FB32: 243.2 | FC32: 258.7 | FD32: 352.31 | FE32: 185.31 | FF32: 267.31 | FG32: 732.69 | FH32: -331.06 | FI32: -167.56 | FJ32: -67.56 | FK32: 52.44 | FL32: 182.44 | FM32: 194.44 | FN32: 292.44 | FO32: 300.44 | FP32: 240.5 | FQ32: 240.5 | FR32: 330 | FS32: 415 | FT32: 63.24 | FU32: 44.74 | FV32: 185.74 | FW32: 291.74 | FX32: 359.74 | FY32: 472.74 | FZ32: 533.64 | GA32: 559.27 | GB32: 559.27 | GC32: 559.27 | GD32: 702.27 | GE32: 786.27 | GF32: 133.8 | GG32: 123.81 | GH32: 281.81 | GI32: 500.81 | GJ32: 708.81 | GK32: 818.98 | GL32: 958.98 | GM32: 1009.98 | GN32: 880.98 | GO32: 880.98 | GP32: 599.61 | GQ32: 782.41 | GR32: 506.59 | GS32: -721.84 | GT32: -1396.47 | GU32: -1503.77 | GV32: -3468.39 | GW32: -3301.62 | GX32: -3230.08 | GY32: -3256.52 | GZ32: -3262.02 | HA32: -3114.02 | HB32: -1153.16 | HC32: -1310.4 | HD32: -11 | HE32: -11 | HF32: -33 | HG32: -33 | HH32: -33 | HI32: -108 | HJ32: -141 | HK32: -141 | HL32: -179.75 | HM32: -179.75 | HN32: -179.75 | HO32: -179.75 | HP32: 0 | HQ32: -300 | HR32: -300 | HS32: -300 | HT32: -300 | HU32: -300 | HV32: -300 | HW32: -300 | HX32: -300 | HY32: -300 | HZ32: -300 | IA32: -612.29 | IB32: 0 | IC32: 0 | ID32: 0 | IE32: 255 | IF32: 255 | IG32: 225 | IH32: 225 | II32: 25 | IJ32: 25 | IK32: 25 | IL32: 0 | IM32: -62.5
A33: 20 | B33: Training Camp | E33: 10370 | F33: 11742.54 | G33: -1372.54 | H33: 41 | J33: 0 | K33: 0 | L33: 0 | M33: 0 | N33: 0 | O33: 0 | P33: -273.44 | Q33: -273.44 | R33: -273.44 | S33: -273.44 | T33: -273.44 | U33: -273.44 | V33: 0 | W33: 0 | X33: 0 | Y33: 0 | Z33: 0 | AA33: 0 | AC33: -172.2 | AD33: -172.2 | AE33: -172.2 | AF33: -172.2 | AG33: -172.2 | AH33: 0 | AI33: 0 | AJ33: 0 | AK33: 0 | AL33: 0 | AM33: 0 | AN33: -191.33 | AO33: -191.33 | AP33: -191.33 | AQ33: -191.33 | AR33: -191.33 | AS33: -191.33 | AT33: 16.22 | AU33: 16.22 | AV33: 0 | AW33: 0 | AX33: 0 | AY33: 0 | AZ33: -240.17 | BA33: -240.17 | BB33: -240.17 | BC33: -240.17 | BD33: -240.17 | BE33: -240.17 | BF33: 0 | BG33: 0 | BH33: 0 | BI33: 0 | BJ33: 0 | BK33: 0 | BL33: -211.49 | BM33: -211.49 | BN33: -211.49 | BO33: -211.49 | BP33: -211.49 | BQ33: -211.49 | BR33: 0 | BS33: 0 | BT33: 0 | BU33: 0 | BV33: 0 | BW33: 0 | BX33: -211.49 | BY33: -211.49 | BZ33: -211.49 | CA33: -211.49 | CB33: -211.49 | CC33: -211.49 | CD33: 0 | CE33: 0 | CF33: 0 | CG33: 0 | CH33: 0 | CI33: 0 | CJ33: -215.87 | CK33: -215.87 | CL33: -215.87 | CM33: -215.87 | CN33: -215.87 | CO33: -215.87 | CP33: 0 | CQ33: 0 | CR33: 0 | CS33: 0 | CT33: 0 | CU33: 0 | CV33: -276.16 | CW33: -276.16 | CX33: -276.16 | CY33: -276.16 | CZ33: -276.16 | DA33: -276.16 | DB33: 0 | DC33: 0 | DD33: 0 | DE33: 0 | DF33: 0 | DG33: 0 | DH33: -276.16 | DI33: -276.16 | DJ33: -276.16 | DK33: -276.16 | DL33: -276.16 | DM33: -276.16 | DN33: 0 | DO33: 0 | DP33: 0 | DQ33: 0 | DR33: 0 | DS33: 0 | DT33: -296.22 | DU33: -296.22 | DV33: -296.22 | DW33: -296.22 | DX33: -296.22 | DY33: -296.22 | DZ33: 0 | EA33: 0 | EB33: 0 | EC33: 0 | ED33: 0 | EE33: 0 | EF33: -338.62 | EG33: -338.62 | EH33: -338.62 | EI33: -338.62 | EJ33: -338.62 | EK33: -338.62 | EL33: 0 | EM33: 0 | EN33: 0 | EO33: 0 | EP33: 0 | EQ33: 0 | ER33: -343.62 | ES33: -343.62 | ET33: -343.62 | EU33: -343.62 | EV33: 0 | EW33: 0 | EX33: 0 | EY33: 0 | EZ33: 0 | FA33: 0 | FB33: 0 | FC33: 0 | FD33: 0 | FE33: -505.06 | FF33: -505.06 | FG33: -505.06 | FH33: 0 | FI33: 0 | FJ33: 0 | FK33: 0 | FL33: 0 | FM33: 0 | FN33: 0 | FO33: 0 | FP33: -453.52 | FQ33: -453.52 | FR33: -453.52 | FS33: -453.52 | FT33: 0 | FU33: 0 | FV33: 0 | FW33: 0 | FX33: 0 | FY33: 0 | FZ33: 0 | GA33: 0 | GB33: -461 | GC33: -461 | GD33: -461 | GE33: -461 | GF33: 0 | GG33: 0 | GH33: 0 | GI33: 0 | GJ33: 0 | GK33: 0 | GL33: 0 | GM33: 0 | GN33: -509.62 | GO33: -509.62 | GP33: -509.62 | GQ33: -509.62 | GR33: 0 | GS33: 0 | GT33: 0 | GU33: 0 | GV33: 0 | GW33: 0 | GX33: 0 | GY33: 0 | GZ33: -399.19 | HA33: -399.19 | HB33: -399.19 | HC33: -399.19 | HD33: 0 | HE33: 0 | HF33: 220 | HG33: 1707.6 | HH33: 3746 | HI33: 751.82 | HJ33: 121.72 | HK33: 121.72 | HL33: 121.72 | HM33: 121.72 | HN33: 121.72 | HO33: 121.72 | HP33: 0 | HQ33: 0 | HR33: -2580 | HS33: -275.75 | HT33: 759.25 | HU33: 41 | HV33: 41 | HW33: 41 | HX33: 41 | HY33: 41 | HZ33: 41 | IA33: 41 | IB33: 0 | IC33: 0 | ID33: 0 | IE33: 0 | IF33: 0 | IG33: 0 | IH33: 0 | II33: 120 | IJ33: -5412.4 | IK33: -1337.91 | IL33: -1317.91 | IM33: -1372.54
A34: 21 | B34: Training Camp - Abroad | G34: 0 | H34: 0 | J34: 0 | K34: 109 | L34: 120.13 | M34: 135.65 | N34: 180.15 | O34: 180.15 | P34: 259.65 | Q34: 445.25 | R34: 445.25 | S34: 494.8 | T34: 514.61 | U34: 603.31 | V34: 15 | W34: 108 | X34: 140.5 | Y34: 149.85 | Z34: 246.99 | AA34: 676.82 | AC34: 524.68 | AD34: 524.68 | AE34: 626.18 | AF34: 654.39 | AG34: 654.39 | AH34: 0 | AI34: 0 | AJ34: -10 | AK34: -10 | AL34: 18.54 | AM34: 102.54 | AN34: 271.54 | AO34: 271.54 | AP34: 271.54 | AQ34: -78.16 | AR34: -78.16 | AS34: 478.78 | AT34: -7.23 | AU34: -7.23 | AV34: 1.99 | AW34: -86.06 | AX34: -86.06 | AY34: -84.56 | AZ34: -276.56 | BA34: -246.61 | BB34: -286.61 | BC34: -286.61 | BD34: -332.61 | BE34: -45.89 | BF34: 9 | BG34: 10.5 | BH34: 8 | BI34: 8 | BJ34: 42.5 | BK34: 42.5 | BL34: 42.5 | BM34: 4807.5 | BN34: 4807.5 | BO34: 4807.5 | BP34: 4831.5 | BQ34: 5127.1 | BR34: -9.8 | BS34: 30.2 | BT34: 35 | BU34: 68 | BV34: 171.84 | BW34: 291.84 | BX34: -368.89 | BY34: -368.89 | BZ34: -351.89 | CA34: -324.19 | CB34: -1061.19 | CC34: -1042.19 | CD34: 2.5 | CE34: 22.5 | CF34: 200.16 | CG34: 230.16 | CH34: 263.16 | CI34: 1942 | CJ34: 396.28 | CK34: 396.28 | CL34: 820.28 | CM34: 923.59 | CN34: 923.59 | CO34: 1054.37 | CP34: 7.5 | CQ34: 7.5 | CR34: 7.5 | CS34: 7.6 | CT34: 511.6 | CU34: 511.6 | CV34: 511.6 | CW34: 511.6 | CX34: 511.6 | CY34: 569.23 | CZ34: 494.75 | DA34: -110.75 | DB34: 36 | DC34: 86 | DD34: -49 | DE34: -49 | DF34: 951 | DG34: 951 | DH34: 1951 | DI34: 1951 | DJ34: 1341 | DK34: 1341 | DL34: 1341 | DM34: 1678.82 | DN34: -656.4 | DO34: -648.9 | DP34: -648.9 | DQ34: -748.9 | DR34: -748.9 | DS34: -748.9 | DT34: -997.9 | DU34: -997.9 | DV34: -997.9 | DW34: -1155.13 | DX34: -1198.06 | DY34: -1317.4 | DZ34: 170 | EA34: 170 | EB34: 261.41 | EC34: 264.91 | ED34: 302.91 | EE34: 399.66 | EF34: 455.83 | EG34: 455.83 | EH34: 207.03 | EI34: 207.03 | EJ34: 284.76 | EK34: 168.99 | EL34: 3.5 | EM34: 17.2 | EN34: 16.04 | EO34: 16.04 | EP34: 60.54 | EQ34: 724.7 | ER34: 684.7 | ES34: 684.7 | ET34: 808.7 | EU34: 1316.13 | EV34: 41.65 | EW34: 870.99 | EX34: 870.99 | EY34: 870.99 | EZ34: 870.99 | FA34: 2888.29 | FB34: 2888.29 | FC34: 2951.32 | FD34: 3022.82 | FE34: 3022.82 | FF34: 3392.95 | FG34: 3663.8 | FH34: 22 | FI34: 22 | FJ34: 22 | FK34: 54.72 | FL34: 92.72 | FM34: 112.72 | FN34: 112.72 | FO34: 297.95 | FP34: 297.95 | FQ34: 297.95 | FR34: 297.95 | FS34: 239.9 | FT34: -125 | FU34: 28 | FV34: 14 | FW34: 14 | FX34: 8.01 | FY34: 1366.2 | FZ34: 1397.15 | GA34: 1677.53 | GB34: 971.45 | GC34: 1012.04 | GD34: 1012.04 | GE34: 1574.54 | GF34: 15.5 | GG34: 1891.5 | GH34: 1941.5 | GI34: 2697.45 | GJ34: 3165.61 | GK34: 3165.61 | GL34: 3332.1 | GM34: 3692.06 | GN34: 3597.28 | GO34: 3597.28 | GP34: 3622.82 | GQ34: 2944.82 | GR34: 0 | GS34: 92.48 | GT34: -152.52 | GU34: -140.88 | GV34: 463.06 | GW34: 463.06 | GX34: 488.06 | GY34: 794.5 | GZ34: 862.6 | HA34: 862.6 | HB34: 1878.44 | HC34: 1978.44 | HD34: 100 | HE34: 100 | HF34: 100 | HG34: 100 | HH34: 100 | HI34: 100 | HJ34: 100 | HK34: 100 | HL34: 100 | HM34: 100 | HN34: 100 | HO34: 100 | HP34: 0 | HQ34: 0 | HR34: 0 | HS34: 0 | HT34: 0 | HU34: 0 | HV34: 0 | HW34: 0 | HX34: 0 | HY34: 0 | HZ34: 0 | IA34: 0 | IB34: 0 | IC34: 0 | ID34: 0 | IE34: 0 | IF34: 0 | IG34: 0 | IH34: 0 | II34: 0 | IJ34: 0 | IK34: 0 | IL34: 0 | IM34: 0
A35: 22 | B35: Water Polo Referee Exps | G35: 0 | H35: 0 | J35: -276.56 | K35: -325.84 | L35: -203.15 | M35: -366.59 | N35: -424.53 | O35: -393.42 | P35: -349.36 | Q35: -403.96 | R35: -403.96 | S35: -545.7 | T35: -605.08 | U35: -640.58 | V35: -6.69 | W35: -128.32 | X35: -210.52 | Y35: -328.47 | Z35: -363.47 | AA35: -399.47 | AC35: -522.51 | AD35: -521.5 | AE35: -465.88 | AF35: -869.88 | AG35: -680.64 | AH35: 0 | AI35: -18.99 | AJ35: -43.99 | AK35: -175.01 | AL35: -181.91 | AM35: -348.56 | AN35: -414.89 | AO35: -414.89 | AP35: -328.39 | AQ35: -451.93 | AR35: -451.93 | AS35: -762.96 | AT35: -92.83 | AU35: -96.82 | AV35: -125.8 | AW35: -70.84 | AX35: -185.84 | AY35: -156.45 | AZ35: -198.95 | BA35: -198.95 | BB35: -198 | BC35: -344.58 | BD35: -339.48 | BE35: -345.63 | BF35: 0 | BG35: -8 | BH35: 11.18 | BI35: -3.12 | BJ35: -97.41 | BK35: -73.93 | BL35: -104.88 | BM35: -104.88 | BN35: -150.65 | BO35: -154.65 | BP35: -190.96 | BQ35: -92.17 | BR35: 0 | BS35: -59.95 | BT35: 46.1 | BU35: 26.1 | BV35: 26.1 | BW35: 120.09 | BX35: 102.11 | BY35: 102.11 | BZ35: -1264.43 | CA35: -1333.47 | CB35: -1364.46 | CC35: -1324.64 | CD35: -1485.64 | CE35: -1503.05 | CF35: -1487.05 | CG35: -1493.04 | CH35: -1710.96 | CI35: -1675.49 | CJ35: -1900.41 | CK35: -1900.41 | CL35: -1767.47 | CM35: -2014.57 | CN35: -2161.17 | CO35: -2186.06 | CP35: 29.52 | CQ35: -13.88 | CR35: -92.26 | CS35: -86.26 | CT35: -105.91 | CU35: -166.94 | CV35: -238.44 | CW35: -238.44 | CX35: -235.26 | CY35: -335.26 | CZ35: -336.3 | DA35: -577.98 | DB35: 0 | DC35: -25 | DD35: -777.86 | DE35: -1034.11 | DF35: -1364.8 | DG35: -1701.97 | DH35: -2060.55 | DI35: -2161.53 | DJ35: -2378.35 | DK35: -2459.38 | DL35: -2519.38 | DM35: -2585.73 | DN35: -7.5 | DO35: -370.17 | DP35: -507.22 | DQ35: -507.22 | DR35: -511.22 | DS35: -508.27 | DT35: -752.67 | DU35: -752.67 | DV35: -752.67 | DW35: -919.13 | DX35: -987.13 | DY35: -1371.82 | DZ35: -85.06 | EA35: -85.06 | EB35: -99.88 | EC35: -52.88 | ED35: 1.12 | EE35: -1 | EF35: -186.08 | EG35: -186.08 | EH35: -246.31 | EI35: -250.81 | EJ35: -288 | EK35: -285.46 | EL35: -11.99 | EM35: -39.95 | EN35: -262.6 | EO35: -199.6 | EP35: -338.98 | EQ35: -326.49 | ER35: -326.49 | ES35: -326.49 | ET35: -361.9 | EU35: -351.9 | EV35: -164.78 | EW35: -162.29 | EX35: -179.69 | EY35: -343.41 | EZ35: -447.18 | FA35: -557.38 | FB35: -618.88 | FC35: -616.42 | FD35: -621.42 | FE35: -621.42 | FF35: -698.72 | FG35: -591.68 | FH35: 0.76 | FI35: -36.75 | FJ35: -35.94 | FK35: -35.18 | FL35: -29.32 | FM35: -60.1 | FN35: -27.73 | FO35: -26.87 | FP35: -48.91 | FQ35: -48.15 | FR35: -47.26 | FS35: -111.38 | FT35: -16.16 | FU35: -44.32 | FV35: -43.54 | FW35: -67.7 | FX35: -66.86 | FY35: -137.36 | FZ35: -139.58 | GA35: -177.27 | GB35: -360.84 | GC35: -359.42 | GD35: -462.13 | GE35: -470.58 | GF35: -249.61 | GG35: -1090.41 | GH35: -259.19 | GI35: -306.48 | GJ35: -306.27 | GK35: -306.08 | GL35: -83.96 | GM35: -98.76 | GN35: -119.22 | GO35: -98.34 | GP35: -98.34 | GQ35: 302.08 | GR35: 0.85 | GS35: 171.96 | GT35: 52.78 | GU35: 879.93 | GV35: -1824.75 | GW35: -1221.67 | GX35: -120.62 | GY35: 541.12 | GZ35: 2522.2 | HA35: 2523.25 | HB35: -4035.7 | HC35: -227.29 | HD35: -20 | HE35: -20 | HF35: -20 | HG35: -20 | HH35: -20 | HI35: -20 | HJ35: -20 | HK35: -20 | HL35: -60 | HM35: -60 | HN35: -60 | HO35: -80 | HP35: 0 | HQ35: 0 | HR35: 0 | HS35: 0 | HT35: 0 | HU35: 0 | HV35: 0 | HW35: 0 | HX35: 0 | HY35: 0 | HZ35: 0 | IA35: 0 | IB35: 0 | IC35: 0 | ID35: 0 | IE35: 0 | IF35: 0 | IG35: 0 | IH35: 0 | II35: 0 | IJ35: 0 | IK35: 0 | IL35: 0 | IM35: 0
A36: 23 | B36: Life Saving Expenses | F36: 714.16 | G36: -714.16 | H36: -864.1 | J36: 52 | K36: 52 | L36: 2837.6 | M36: 4441.3 | N36: 5017.8 | O36: 5100.8 | P36: 5150.8 | Q36: 5313.8 | R36: 5313.8 | S36: 5430.3 | T36: 5469.8 | U36: 5469.8 | V36: 72 | W36: 108 | X36: 3427 | Y36: 4366 | Z36: 5494 | AA36: 5697 | AC36: 5789 | AD36: 5890 | AE36: 6002 | AF36: 6166 | AG36: 6194 | AH36: 0 | AI36: 36 | AJ36: 3548 | AK36: 5343.4 | AL36: 5640.4 | AM36: 5702.4 | AN36: 5904.4 | AO36: 5971.4 | AP36: 6055.4 | AQ36: 7245.4 | AR36: 7245.4 | AS36: 6280.4 | AT36: 168 | AU36: 744 | AV36: 1827 | AW36: 4430 | AX36: 4610 | AY36: 5220 | AZ36: 5271 | BA36: 5271 | BB36: 5316 | BC36: 5364 | BD36: 5423 | BE36: 5433 | BF36: 18 | BG36: 44 | BH36: 2101 | BI36: 4324.5 | BJ36: 5320.5 | BK36: 5742.5 | BL36: 5963.5 | BM36: 5963.5 | BN36: 6085.5 | BO36: 6180.5 | BP36: 6456.5 | BQ36: 6474.5 | BR36: 30 | BS36: 272 | BT36: 1766.5 | BU36: 2730.5 | BV36: 3893.5 | BW36: 4146.5 | BX36: 4211.5 | BY36: 4253.5 | BZ36: 4366.5 | CA36: 4563.5 | CB36: 4603.5 | CC36: 4659.5 | CD36: 87 | CE36: 347 | CF36: 1587 | CG36: 3412 | CH36: 3812 | CI36: 4032 | CJ36: 4352 | CK36: 4422 | CL36: 4717 | CM36: 4837 | CN36: 4957 | CO36: 4967 | CP36: 60 | CQ36: 979.8 | CR36: 2817.4 | CS36: 3036.35 | CT36: 3106.35 | CU36: 3204.35 | CV36: 3266.35 | CW36: 3266.35 | CX36: 3392.35 | CY36: 3476.35 | CZ36: 3518.35 | DA36: 3532.35 | DB36: 41 | DC36: 41 | DD36: 2664 | DE36: 2844 | DF36: 3219 | DG36: 3339 | DH36: 3339 | DI36: 3339 | DJ36: 3436 | DK36: 3500 | DL36: 3520 | DM36: 3563 | DN36: 272 | DO36: 2031.3 | DP36: 2623.3 | DQ36: 2959.3 | DR36: 3151.3 | DS36: 3494.5 | DT36: 3590.5 | DU36: 3590.5 | DV36: 3590.5 | DW36: 3710.5 | DX36: 3758.5 | DY36: 3782.5 | DZ36: 36 | EA36: 566 | EB36: 2832 | EC36: 3174 | ED36: 3530 | EE36: 3692 | EF36: 3818 | EG36: 3818 | EH36: 4016 | EI36: 4079 | EJ36: 4151 | EK36: 4205 | EL36: 33 | EM36: 161 | EN36: 1975 | EO36: 2330 | EP36: 2930 | EQ36: 3035 | ER36: 3140 | ES36: 3140 | ET36: 3286.8 | EU36: 3354.3 | EV36: 30 | EW36: 30 | EX36: 114.5 | EY36: 1334.5 | EZ36: 3174.5 | FA36: 3694.5 | FB36: 3764.5 | FC36: 3834.5 | FD36: 3844.5 | FE36: 3844.5 | FF36: 3844.5 | FG36: 3884.5 | FH36: 20 | FI36: 60 | FJ36: 3780.8 | FK36: 4204.3 | FL36: 4994.3 | FM36: 5038.6 | FN36: 5114.3 | FO36: 5224.3 | FP36: 5224.3 | FQ36: 5224.3 | FR36: 5319.3 | FS36: 5379.3 | FT36: 45 | FU36: 45 | FV36: 1875 | FW36: 3204 | FX36: 4800 | FY36: 5040 | FZ36: 5160 | GA36: 5340 | GB36: 6405 | GC36: 6450 | GD36: 6585 | GE36: 6735 | GF36: 105 | GG36: 195 | GH36: 3685 | GI36: 6189.8 | GJ36: 6549.8 | GK36: 6739.8 | GL36: 7099.8 | GM36: 7329.8 | GN36: 7449.8 | GO36: 7449.8 | GP36: 7509.8 | GQ36: 7644.8 | GR36: 60 | GS36: 90 | GT36: 3519 | GU36: 5358 | GV36: 5963 | GW36: 6053 | GX36: 6158.4 | GY36: 6203.9 | GZ36: 6293.9 | HA36: 6413.9 | HB36: 6654 | HC36: 6719 | HD36: -267.5 | HE36: -362.5 | HF36: -362.5 | HG36: -820 | HH36: -915 | HI36: -1140 | HJ36: -1230 | HK36: -1400 | HL36: -1400 | HM36: -1400 | HN36: -1775 | HO36: -2257.5 | HP36: -20 | HQ36: -20 | HR36: -202.5 | HS36: -202.5 | HT36: -400 | HU36: -681.6 | HV36: -681.6 | HW36: -681.6 | HX36: -681.6 | HY36: -681.6 | HZ36: -804.1 | IA36: -864.1 | IB36: -180 | IC36: -240 | ID36: -260 | IE36: -260 | IF36: -260 | IG36: -260 | IH36: -320 | II36: -380 | IJ36: -477.5 | IK36: -534.16 | IL36: -664.16 | IM36: -714.16
A37: 24 | B37: Travel | G37: =SUM(E37-F37) -> 0 | H37: -532 | J37: 1 | K37: -18.2 | L37: -9.2 | M37: -1.25 | N37: 13.75 | O37: 13.75 | P37: 29.75 | Q37: 32.4 | R37: 32.4 | S37: 32.4 | T37: 32.4 | U37: 32.4 | V37: 61.55 | W37: 64.7 | X37: 88.7 | Y37: 88.7 | Z37: 88.7 | AA37: 88.7 | AC37: 88.7 | AD37: 88.8 | AE37: 92.35 | AF37: 94.35 | AG37: 107.35 | AH37: 0 | AI37: 45.63 | AJ37: 63.63 | AK37: -311.87 | AL37: -305.75 | AM37: -304.05 | AN37: -304.05 | AO37: -304.05 | AP37: -304.05 | AQ37: -416.05 | AR37: -416.05 | AS37: -416.05 | AT37: 0 | AU37: 0 | AV37: -180 | AW37: -180 | AX37: -176.54 | AY37: -170.78 | AZ37: -169.78 | BA37: -169.78 | BB37: -169.78 | BC37: -169.78 | BD37: -169.78 | BE37: -169.78 | BF37: 0 | BG37: 0 | BH37: 1.5 | BI37: 1.5 | BJ37: 1.5 | BK37: 1.5 | BL37: 1.5 | BM37: 1.5 | BN37: 1.5 | BO37: 1.5 | BP37: 1.5 | BQ37: 1.5 | BR37: 0 | BS37: 1.8 | BT37: 1.8 | BU37: -65.2 | BV37: -45.2 | BW37: -45.2 | BX37: 672.8 | BY37: 672.8 | BZ37: 672.8 | CA37: 672.8 | CB37: 672.8 | CC37: 672.8 | CD37: 0 | CE37: -120 | CF37: -120 | CG37: -198 | CH37: -198 | CI37: -198 | CJ37: -198 | CK37: -198 | CL37: -198 | CM37: -198 | CN37: -198 | CO37: -390 | CP37: 0 | CQ37: 0 | CR37: -210.4 | CS37: -340.4 | CT37: -340.4 | CU37: -340.4 | CV37: -340.4 | CW37: -340.4 | CX37: -340.4 | CY37: -340.4 | CZ37: 453.6 | DA37: 393.6 | DB37: -20 | DC37: -38 | DD37: -358.95 | DE37: -30.99 | DF37: 52.01 | DG37: 52.01 | DH37: 52.01 | DI37: 52.01 | DJ37: 140.01 | DK37: 140.01 | DL37: 140.01 | DM37: 140.01 | DN37: 1.03 | DO37: 1.03 | DP37: -298.32 | DQ37: -522.27 | DR37: -522.27 | DS37: -522.27 | DT37: -372.27 | DU37: -372.27 | DV37: -372.27 | DW37: -370.92 | DX37: -370.92 | DY37: -370.92 | DZ37: 0 | EA37: 0 | EB37: 20 | EC37: -205 | ED37: -205 | EE37: -61 | EF37: 43 | EG37: 43 | EH37: 43 | EI37: 48 | EJ37: 110 | EK37: 118.37 | EL37: 0 | EM37: 0.1 | EN37: 132.1 | EO37: 132.1 | EP37: 312.1 | EQ37: 312.1 | ER37: 312.1 | ES37: 312.1 | ET37: 312.1 | EU37: 312.1 | EV37: 0 | EW37: 0 | EX37: -190 | EY37: -190 | EZ37: -380 | FA37: -380 | FB37: -380 | FC37: -380 | FD37: -284.46 | FE37: -284.46 | FF37: -224.46 | FG37: -136.46 | FH37: 0 | FI37: 0 | FJ37: 0 | FK37: 0 | FL37: 0 | FM37: -190 | FN37: -106 | FO37: 30.5 | FP37: 30.5 | FQ37: 30.5 | FR37: 30.5 | FS37: 30.5 | FT37: 95.5 | FU37: 95.5 | FV37: 95.5 | FW37: -113.5 | FX37: -111.8 | FY37: -111.8 | FZ37: 84.7 | GA37: 218.7 | GB37: 218.7 | GC37: 218.7 | GD37: 219.7 | GE37: 220.2 | GF37: -240 | GG37: -240 | GH37: -227.6 | GI37: -226.2 | GJ37: -81.47 | GK37: -321.47 | GL37: -321.37 | GM37: -320.87 | GN37: -320.87 | GO37: -434.87 | GP37: -302.77 | GQ37: -302.77 | GR37: 0 | GS37: 0.9 | GT37: 36.3 | GU37: -203.7 | GV37: -203.6 | GW37: 151.41 | GX37: -230.44 | GY37: -140.29 | GZ37: -140.29 | HA37: -140.29 | HB37: -139.79 | HC37: -255.79 | HD37: 0 | HE37: 0 | HF37: 0 | HG37: 0 | HH37: 0 | HI37: 0 | HJ37: -500 | HK37: -399.2 | HL37: -399.2 | HM37: -399.2 | HN37: -405.2 | HO37: -669.2 | HP37: -595 | HQ37: -532 | HR37: -532 | HS37: -532 | HT37: -532 | HU37: -532 | HV37: -532 | HW37: -532 | HX37: -532 | HY37: -532 | HZ37: -532 | IA37: -532 | IB37: 0 | IC37: 0 | ID37: 0 | IE37: 0 | IF37: 0 | IG37: 0 | IH37: 0 | II37: 0 | IJ37: 0 | IK37: 0 | IL37: 0 | IM37: 0
A38: 25 | B38: Annual Club Championship | G38: =SUM(E38-F38) -> 0 | H38: 154.38 | BU38: -2520 | BV38: -2550 | BW38: -2590 | BX38: -4758 | BY38: -4758 | BZ38: -4758 | CA38: -4758 | CB38: -4758 | CC38: -4758 | CD38: 0 | CE38: 0 | CF38: 0 | CG38: 0 | CH38: 0 | CI38: 0 | CJ38: 0 | CK38: 0 | CL38: 0 | CM38: 0 | CN38: 0 | CO38: 0 | CP38: 0 | CQ38: 0 | CR38: 0 | CS38: 0 | CT38: 0 | CU38: 0 | CV38: 0 | CW38: 0 | CX38: 0 | CY38: 0 | CZ38: 0 | DA38: 0 | DB38: 0 | DC38: 0 | DD38: 0 | DE38: 0 | DF38: 0 | DG38: 0 | DH38: 0 | DI38: 0 | DJ38: 0 | DK38: 0 | DL38: 0 | DM38: 0 | DN38: 0 | DO38: 0 | DP38: 0 | DQ38: 0 | DR38: 0 | DS38: 0 | DT38: 0 | DU38: 0 | DV38: 0 | DW38: 0 | DX38: 0 | DY38: 0 | DZ38: 0 | EA38: 0 | EB38: 0 | EC38: 0 | ED38: 0 | EE38: 0 | EF38: 0 | EG38: 0 | EH38: 0 | EI38: 0 | EJ38: 0 | EK38: 0 | EL38: 0 | EM38: 0 | EN38: 0 | EO38: 0 | EP38: 0 | EQ38: 0 | ER38: 0 | ES38: 0 | ET38: 0 | EU38: 0 | EV38: 0 | EW38: 0 | EX38: 0 | EY38: 0 | EZ38: 0 | FA38: 0 | FB38: 0 | FC38: 0 | FD38: 0 | FE38: 0 | FF38: 0 | FG38: 0 | FH38: 0 | FI38: 0 | FJ38: 0 | FK38: 0 | FL38: 0 | FM38: 0 | FN38: 0 | FO38: 0 | FP38: 0 | FQ38: 0 | FR38: 0 | FS38: 0 | FT38: 9835 | FU38: 9835 | FV38: 9205 | FW38: 7952.78 | FX38: 7620.28 | FY38: 5802.9 | FZ38: 5172.9 | GA38: 3768.4 | GB38: 3417.4 | GC38: 3102.4 | GD38: 2757.4 | GE38: 1149.9 | GF38: -719.75 | GG38: -719.75 | GH38: -719.75 | GI38: -719.75 | GJ38: -719.75 | GK38: -719.75 | GL38: -719.75 | GM38: -719.75 | GN38: -833.75 | GO38: -719.75 | GP38: -719.75 | GQ38: -719.75 | GR38: 0 | GS38: 0 | GT38: 0 | GU38: 0 | GV38: 0 | GW38: 0 | GX38: 0 | GY38: 0 | GZ38: 0 | HA38: 0 | HB38: 0 | HC38: 0 | HD38: 1034 | HE38: -452.18 | HF38: -1484.18 | HG38: -1484.18 | HH38: -1484.18 | HI38: -1484.18 | HJ38: -1484.18 | HK38: -1484.18 | HL38: -1484.18 | HM38: -1484.18 | HN38: -1474.2 | HO38: -1499.2 | HP38: 1045 | HQ38: 264.88 | HR38: 154.38 | HS38: 154.38 | HT38: 154.38 | HU38: 154.38 | HV38: 154.38 | HW38: 154.38 | HX38: 154.38 | HY38: 154.38 | HZ38: 154.38 | IA38: 154.38 | IB38: 0 | IC38: 0 | ID38: 0 | IE38: 0 | IF38: 0 | IG38: 0 | IH38: 0 | II38: 0 | IJ38: 0 | IK38: 0 | IL38: 0 | IM38: 0
A39: 26 | B39: Pointscore | E39: 180 | G39: =SUM(E39-F39) -> 180 | H39: 622.05 | HD39: 119.52 | HE39: 125.52 | HF39: 336.52 | HG39: 393.52 | HH39: 564.65 | HI39: 648.65 | HJ39: 731.65 | HK39: 1024.75 | HL39: 1069.75 | HM39: 1069.75 | HN39: 1064.59 | HO39: 1237.14 | HP39: 208.05 | HQ39: 212.05 | HR39: 326.05 | HS39: 488.05 | HT39: 622.05 | HU39: 622.05 | HV39: 622.05 | HW39: 622.05 | HX39: 622.05 | HY39: 622.05 | HZ39: 622.05 | IA39: 622.05 | IB39: 0 | IC39: 0 | ID39: 0 | IE39: 0 | IF39: 0 | IG39: 0 | IH39: 0 | II39: 0 | IJ39: 0 | IK39: 0 | IL39: 2.5 | IM39: 180
A40: 27 | B40: Open Galas - Early Bird | G40: 0 | H40: -1828.08 | HD40: 0 | HE40: -42 | HF40: -42 | HG40: -78 | HH40: -78 | HI40: -78 | HJ40: -78 | HK40: -54 | HL40: 390 | HM40: 3992.84 | HN40: 4276.83 | HO40: 2916.71 | HP40: -1844.08 | HQ40: -1828.08 | HR40: -1828.08 | HS40: -1828.08 | HT40: -1828.08 | HU40: -1828.08 | HV40: -1828.08 | HW40: -1828.08 | HX40: -1828.08 | HY40: -1828.08 | HZ40: -1828.08 | IA40: -1828.08 | IB40: 0 | IC40: 0 | ID40: 0 | IE40: 0 | IF40: 0 | IG40: 0 | IH40: 0 | II40: 0 | IJ40: 0 | IK40: 0 | IL40: 0 | IM40: 0
A41: 28 | B41: Open Galas - Xmas Cracker | G41: 0 | H41: 675.67 | HD41: 4241 | HE41: 4271.25 | HF41: 4235.78 | HG41: 1636.55 | HH41: 1636.58 | HI41: 1636.58 | HJ41: 1636.58 | HK41: 1636.58 | HL41: 1636.58 | HM41: 1636.58 | HN41: 1636.58 | HO41: 2355.58 | HP41: 1206 | HQ41: 3631.25 | HR41: 3247.33 | HS41: 3200.99 | HT41: 675.67 | HU41: 675.67 | HV41: 675.67 | HW41: 675.67 | HX41: 675.67 | HY41: 675.67 | HZ41: 675.67 | IA41: 675.67 | IB41: 0 | IC41: 0 | ID41: 0 | IE41: 0 | IF41: 0 | IG41: 0 | IH41: 0 | II41: 0 | IJ41: 0 | IK41: 0 | IL41: 0 | IM41: 0
A42: 29 | B42: Open Galas - GM | G42: 0 | H42: 0 | HE42: 0 | HF42: 0 | HG42: 0 | HH42: 0 | HI42: 0 | HJ42: 0 | HK42: 0 | HL42: 0 | HM42: 0 | HN42: 0 | HO42: 0 | HP42: 0 | HQ42: 0 | HR42: 0 | HS42: 0 | HT42: 0 | HU42: 0 | HV42: 0 | HW42: 0 | HX42: 0 | HY42: 0 | HZ42: 0 | IA42: 0 | IB42: 0 | IC42: 0 | ID42: 0 | IE42: 0 | IF42: 0 | IG42: 0 | IH42: 0 | II42: 0 | IJ42: 0 | IK42: 0 | IL42: 0 | IM42: 0
A43: 30 | B43: Open Galas - GM Age Groups | G43: 0 | H43: 0 | HD43: 8 | HE43: 8 | HF43: 8 | HG43: 450.5 | HH43: -165.5 | HI43: -93.5 | HJ43: -93.5 | HK43: -93.5 | HL43: -93.5 | HM43: -93.5 | HN43: -93.5 | HO43: -93.5 | HP43: 0 | HQ43: 0 | HR43: 0 | HS43: 0 | HT43: 0 | HU43: 0 | HV43: 0 | HW43: 0 | HX43: 0 | HY43: 0 | HZ43: 0 | IA43: 0 | IB43: 0 | IC43: 0 | ID43: 0 | IE43: 0 | IF43: 0 | IG43: 0 | IH43: 0 | II43: 0 | IJ43: 0 | IK43: 0 | IL43: 0 | IM43: 0
A44: 31 | B44: Other Galas | E44: 987 | G44: 987 | H44: -196 | HD44: 273.03 | HE44: 273.03 | HF44: -60.97 | HG44: 99.03 | HH44: -166.47 | HI44: 233.53 | HJ44: 301.3 | HK44: -410.2 | HL44: -632.7 | HM44: -632.7 | HN44: -942.7 | HO44: -810.2 | HP44: 147 | HQ44: 396 | HR44: 798.5 | HS44: 238 | HT44: 275.5 | HU44: 275.5 | HV44: 275.5 | HW44: 275.5 | HX44: 275.5 | HY44: 275.5 | HZ44: 275.5 | IA44: -196 | IB44: 0 | IC44: 0 | ID44: 0 | IE44: 0 | IF44: 0 | IG44: 0 | IH44: 0 | II44: 0 | IJ44: 0 | IK44: 0 | IL44: 987 | IM44: 987
A45: 32 | B45: Insurance | F45: 479.39 | G45: -479.39 | H45: -454.44 | HD45: 0 | HE45: 0 | HF45: 0 | HG45: 0 | HH45: 0 | HI45: 0 | HJ45: 0 | HK45: 0 | HL45: -415.42 | HM45: -415.42 | HN45: -415.42 | HO45: -415.42 | HP45: 0 | HQ45: 0 | HR45: 0 | HS45: 0 | HT45: 0 | HU45: 0 | HV45: 0 | HW45: 0 | HX45: -454.44 | HY45: -454.44 | HZ45: -454.44 | IA45: -454.44 | IB45: 0 | IC45: 0 | ID45: 0 | IE45: 0 | IF45: 0 | IG45: 0 | IH45: 0 | II45: 0 | IJ45: -479.39 | IK45: -479.39 | IL45: -479.39 | IM45: -479.39
A46: 33 | B46: Social & Fund Raising | E46: 853.35 | G46: 853.35 | H46: -1171.58 | HD46: -51.33 | HE46: -51.33 | HF46: -0.78 | HG46: -214.86 | HH46: -186.15 | HI46: -186.15 | HJ46: -186.15 | HK46: -127.81 | HL46: 1901.7 | HM46: 2106.9 | HN46: 1820.33 | HO46: 1811.23 | HP46: -367.02 | HQ46: -349.02 | HR46: -980.02 | HS46: -1242.62 | HT46: -1242.52 | HU46: -1242.52 | HV46: -1208.16 | HW46: -1208.16 | HX46: -1208.16 | HY46: -1191.58 | HZ46: -1171.58 | IA46: -1171.58 | IB46: 68 | IC46: 68 | ID46: 68 | IE46: 68 | IF46: 91.97 | IG46: 91.97 | IH46: 131.86 | II46: 141.86 | IJ46: 651.86 | IK46: 833.35 | IL46: 843.35 | IM46: 853.35
A47: 34 | B47: Sundries | E47: 4.01 | F47: 417.3 | G47: -413.29 | H47: -2000.11 | HD47: 65.26 | HE47: 65.26 | HF47: -192.69 | HG47: -195.08 | HH47: -191.14 | HI47: -245.91 | HJ47: -240.98 | HK47: -250.62 | HL47: -245.3 | HM47: -245.3 | HN47: -232.41 | HO47: -234.33 | HP47: 42.77 | HQ47: 71.04 | HR47: -441.3 | HS47: -1934.85 | HT47: -2027.48 | HU47: -2020.57 | HV47: -2013.89 | HW47: -2013.52 | HX47: -2013.16 | HY47: -2001.16 | HZ47: -2000.46 | IA47: -2000.11 | IB47: 0.35 | IC47: 0.69 | ID47: 1.01 | IE47: 1.32 | IF47: 1.68 | IG47: 2.01 | IH47: 2.32 | II47: 2.68 | IJ47: -414.29 | IK47: -413.94 | IL47: -413.61 | IM47: -413.29
A48: 35 | B48: Membership Fees | E48: 5819.2 | G48: 5819.2 | H48: 6173.93 | HD48: 82.5 | HE48: 82.5 | HF48: 3656.85 | HG48: 5280.85 | HH48: 6616.7 | HI48: 6881.7 | HJ48: 7146.7 | HK48: 7391.7 | HL48: 7496.7 | HM48: 7496.7 | HN48: 7616.7 | HO48: 7763.8 | HP48: 87.3 | HQ48: 292.3 | HR48: 3721.43 | HS48: 5830.88 | HT48: 5999.18 | HU48: 5999.18 | HV48: 5999.18 | HW48: 5999.18 | HX48: 5999.18 | HY48: 5999.18 | HZ48: 6033.93 | IA48: 6173.93 | IB48: 0 | IC48: 10 | ID48: 10 | IE48: 10 | IF48: 2494.5 | IG48: 4979 | IH48: 5084 | II48: 5504 | IJ48: 5609 | IK48: 5609 | IL48: 5657.8 | IM48: 5819.2
A49: 36 | B49: D Francis Fund | F49: 1188 | G49: -1188 | H49: 1380 | HD49: 0 | HE49: 0 | HF49: 0 | HG49: -270 | HH49: -88 | HI49: -88 | HJ49: -126 | HK49: -126 | HL49: -126 | HM49: -126 | HN49: -62 | HO49: -62 | HP49: 0 | HQ49: 0 | HR49: 0 | HS49: 1500 | HT49: 1500 | HU49: 1380 | HV49: 1380 | HW49: 1380 | HX49: 1380 | HY49: 1380 | HZ49: 1380 | IA49: 1380 | IB49: -87 | IC49: -87 | ID49: -87 | IE49: -87 | IF49: -87 | IG49: -87 | IH49: -87 | II49: -87 | IJ49: -87 | IK49: -917 | IL49: -1188 | IM49: -1188
A50: 37 | B50: Grant | E50: 914 | G50: 914 | H50: 1733 | HD50: 0 | HE50: 0 | HF50: 0 | HG50: 0 | HH50: 0 | HI50: 0 | HJ50: 0 | HK50: 0 | HL50: 0 | HM50: 0 | HN50: 0 | HO50: 250 | HP50: 1733 | HQ50: 1733 | HR50: 1733 | HS50: 1733 | HT50: 1733 | HU50: 1733 | HV50: 1733 | HW50: 1733 | HX50: 1733 | HY50: 1733 | HZ50: 1733 | IA50: 1733 | IB50: 250 | IC50: 250 | ID50: 250 | IE50: 250 | IF50: 250 | IG50: 250 | IH50: 250 | II50: 250 | IJ50: 250 | IK50: 250 | IL50: 664 | IM50: 914
C51: TOTAL | G51: =SUM(G12:G50) -> -4761.25 | H51: 1991.78 | J51: 585.7 | K51: 1560.76 | L51: 5206.77 | M51: 6512.84 | N51: 7932.24 | O51: 1327.96 | P51: 922.23 | Q51: 1431.85 | R51: 1431.85 | S51: -778.29 | T51: -2293.2 | U51: -3767.15 | V51: 2279.5 | W51: 2595.81 | X51: 7285.45 | Y51: 6375.29 | Z51: 5119.47 | AA51: 5264.48 | AC51: 5968.94 | AD51: 5376.67 | AE51: 3939.64 | AF51: 2994.43 | AG51: 2346.66 | AH51: 0 | AI51: 1481.29 | AJ51: 7576.44 | AK51: 10974.38 | AL51: 10492.1 | AM51: 11415.74 | AN51: 10709.1 | AO51: 11257.5 | AP51: 1169.9 | AQ51: -105.02 | AR51: -105.02 | AS51: -283.48 | AT51: 2405.43 | AU51: 4641.58 | AV51: 5570.15 | AW51: 6679.64 | AX51: 1396.14 | AY51: 80.28 | AZ51: -1399.85 | BA51: -1935 | BB51: -1141.65 | BC51: 57.38 | BD51: -2079.89 | BE51: -4111 | BF51: 2188.42 | BG51: 1317.65 | BH51: 9868.85 | BI51: 11097.95 | BJ51: 6885.11 | BK51: 7166.69 | BL51: 7484.03 | BM51: 14413.56 | BN51: 17419.98 | BO51: 13446.08 | BP51: 15670.47 | BQ51: 17222.85 | BR51: 320.49 | BS51: 1348.16 | BT51: 6482.13 | BU51: 2714.3 | BV51: 6332.66 | BW51: 6383.64 | BX51: 6979.57 | BY51: 7866.7 | BZ51: 7630.6 | CA51: 7420.92 | CB51: 7537.19 | CC51: 7975.61 | CD51: 1003.24 | CE51: 1868.66 | CF51: 5589.24 | CG51: 4496.68 | CH51: -1283.67 | CI51: 2244.45 | CJ51: 449.93 | CK51: 1836.06 | CL51: 3270.08 | CM51: 2645.66 | CN51: 2852.21 | CO51: 2966.17 | CP51: 1517.07 | CQ51: 3735.93 | CR51: 5857.32 | CS51: -677.18 | CT51: -742.73 | CU51: 465.5 | CV51: 268.45 | CW51: 387.66 | CX51: -534.77 | CY51: -282.58 | CZ51: 34.83 | DA51: -2309.81 | DB51: -938.85 | DC51: -1762.68 | DD51: 5173.11 | DE51: -2106.43 | DF51: -1891.48 | DG51: -2601.76 | DH51: -2083.14 | DI51: -1981.59 | DJ51: -3198.39 | DK51: -3164.94 | DL51: -3193.65 | DM51: -4706.46 | DN51: -2355.97 | DO51: -389.61 | DP51: 5756.13 | DQ51: 2234.05 | DR51: 2760.19 | DS51: 3196.84 | DT51: 4002.99 | DU51: 705.65 | DV51: 705.65 | DW51: -1437.29 | DX51: -1658.66 | DY51: -3256.43 | DZ51: -2521.86 | EA51: -1050.46 | EB51: 4119.71 | EC51: 4476.26 | ED51: 233.66 | EE51: -729.98 | EF51: 825.17 | EG51: 825.17 | EH51: 643.75 | EI51: 2038.94 | EJ51: 812.25 | EK51: 972.23 | EL51: -629.48 | EM51: 1659.99 | EN51: 11431.71 | EO51: 2415.94 | EP51: 5188.54 | EQ51: 5486.05 | ER51: 6356.79 | ES51: 7551.45 | ET51: 5756.3 | EU51: 5199.59 | EV51: -1320.4 | EW51: 635.7 | EX51: -2243.52 | EY51: 2375.63 | EZ51: 5243.3 | FA51: 2761.1 | FB51: 2033.25 | FC51: 1627.85 | FD51: 4242.43 | FE51: 848 | FF51: 1304.86 | FG51: 2203.16 | FH51: -3497.81 | FI51: -2671.99 | FJ51: -1837.79 | FK51: 807.08 | FL51: 3614.33 | FM51: 219.3 | FN51: -128.7 | FO51: -2568.02 | FP51: -4887.22 | FQ51: -4139.13 | FR51: -6538.14 | FS51: -4900.31 | FT51: 9821.58 | FU51: 10446 | FV51: 11068.18 | FW51: 13099.35 | FX51: 12447.36 | FY51: 10254.37 | FZ51: 9889.63 | GA51: 7492.7 | GB51: 2854.35 | GC51: 4007.26 | GD51: 2539.39 | GE51: 2826.48 | GF51: 914.21 | GG51: 2791.85 | GH51: 13137.07 | GI51: 5296.77 | GJ51: 13924.02 | GK51: 9710.68 | GL51: 11567.09 | GM51: 10782.99 | GN51: 13624.16 | GO51: 11957.79 | GP51: 13674.06 | GQ51: 11847.9 | GR51: 1901.64 | GS51: 3253.41 | GT51: 8016.46 | GU51: 4029.33 | GV51: 6560.87 | GW51: -357.44 | GX51: -1881.19 | GY51: -781.14 | GZ51: 1698.69 | HA51: 3614.14 | HB51: -1963.56 | HC51: 944.59 | HD51: 3865.14 | HE51: 3865.14 | HF51: 8213.12 | HG51: 4763.46 | HH51: 7073.09 | HI51: 5527.19 | HJ51: 3016.67 | HK51: 2252.34 | HL51: 4087.92 | HM51: 9613.5 | HN51: 8397.87 | HO51: 3176.17 | HP51: =SUM(HP13:HP50) -> 574.19 | HQ51: 6438.08 | HR51: 7980.67 | HS51: 15129.8 | HT51: 5605.83 | HU51: 162.66 | HV51: 425.83 | HW51: -16.95 | HX51: -919.28 | HY51: 965.83 | HZ51: 4530 | IA51: 1991.78 | IB51: -2664.56 | IC51: -4098.87 | ID51: -4004.19 | IE51: -1037.02 | IF51: -1897.62 | IG51: 1459.44 | IH51: 4096.12 | II51: 3536.54 | IJ51: -4081.94 | IK51: -3509.37 | IL51: -3225.6 | IM51: -4761.25
F53: Total Balance Carried Forward | G53: =SUM(G8+G51) -> 48357.14 | J53: 17957.38 | K53: 18932.44 | L53: 22578.45 | M53: 23884.52 | N53: 25303.92 | O53: 18699.64 | P53: 18293.91 | Q53: 18803.53 | R53: 18803.53 | S53: 16593.39 | T53: 15078.48 | U53: 13604.53 | V53: 15948.26 | W53: 16264.57 | X53: 20954.21 | Y53: 20044.05 | Z53: 18788.23 | AA53: 18933.24 | AC53: 19637.7 | AD53: 19045.43 | AE53: 17608.4 | AF53: 16663.19 | AG53: 16017.52 | AH53: 16017.52 | AI53: 17496.81 | AJ53: 23593.96 | AK53: 26991.9 | AL53: 26509.62 | AM53: 27433.26 | AN53: 26726.62 | AO53: 27275.02 | AP53: 17187.42 | AQ53: 15912.5 | AR53: 15912.5 | AS53: 16301 | AT53: =16918.3+563 -> 17481.3 | AU53: =19154.45+563 -> 19717.45 | AV53: 20646.02 | AW53: 21755.51 | AX53: 16472.01 | AY53: 15156.15 | AZ53: 13676.02 | BA53: 13140.87 | BB53: 13934.22 | BC53: 15133.25 | BD53: 12995.98 | BE53: 10964.87 | BF53: 13153.29 | BG53: 12282.52 | BH53: 20833.72 | BI53: 22062.82 | BJ53: 17849.98 | BK53: 18131.56 | BL53: 18448.9 | BM53: 25378.43 | BN53: 28384.85 | BO53: 24410.95 | BP53: 26635.34 | BQ53: 28187.72 | BR53: 28508.21 | BS53: 29535.88 | BT53: 34669.85 | BU53: 30902.02 | BV53: 34520.38 | BW53: 34571.36 | BX53: 35167.29 | BY53: 36054.42 | BZ53: 35818.32 | CA53: 35608.64 | CB53: 35724.91 | CC53: 36163.33 | CD53: 37166.57 | CE53: 38031.99 | CF53: 41752.57 | CG53: 40660.01 | CH53: 34879.66 | CI53: 38407.78 | CJ53: 36613.26 | CK53: 37999.39 | CL53: 39433.41 | CM53: 38808.99 | CN53: 39015.54 | CO53: 39129.5 | CP53: 40646.57 | CQ53: 42865.43 | CR53: 44986.82 | CS53: 38452.32 | CT53: 38386.77 | CU53: 39595 | CV53: 39397.95 | CW53: 39517.16 | CX53: 38594.73 | CY53: 38846.92 | CZ53: 39164.33 | DA53: 36819.69 | DB53: 35880.84 | DC53: 35057.01 | DD53: 41992.8 | DE53: 34713.26 | DF53: 34928.21 | DG53: 34217.93 | DH53: 34736.55 | DI53: 34838.1 | DJ53: 33621.3 | DK53: 33654.75 | DL53: 33626.04 | DM53: 32113.23 | DN53: 29757.26 | DO53: 31723.62 | DP53: 37869.36 | DQ53: 34347.28 | DR53: 34873.42 | DS53: 35310.07 | DT53: 36116.22 | DU53: 32818.88 | DV53: 32818.88 | DW53: 30675.94 | DX53: 30454.57 | DY53: 28856.8 | DZ53: 26334.94 | EA53: 27806.34 | EB53: 32976.51 | EC53: 33333.06 | ED53: 29090.46 | EE53: 28126.82 | EF53: 29681.97 | EG53: 29681.97 | EH53: 29500.55 | EI53: 30895.74 | EJ53: 29669.05 | EK53: 29829.03 | EL53: 29199.55 | EM53: 31489.02 | EN53: 41260.74 | EO53: 32244.97 | EP53: 35017.57 | EQ53: 35315.08 | ER53: 36185.82 | ES53: 37380.48 | ET53: 35585.33 | EU53: 35028.62 | EV53: 33708.22 | EW53: 35664.32 | EX53: 32785.1 | EY53: 37404.25 | EZ53: 40271.92 | FA53: 37789.72 | FB53: 37061.87 | FC53: 36656.47 | FD53: 39271.05 | FE53: 35876.62 | FF53: 36333.48 | FG53: 37231.78 | FH53: 33733.97 | FI53: 34559.79 | FJ53: 35393.99 | FK53: 38038.86 | FL53: 40846.11 | FM53: 37451.08 | FN53: 37103.08 | FO53: 34663.76 | FP53: 32344.56 | FQ53: 33092.65 | FR53: 30693.64 | FS53: 32331.47 | FT53: 42153.05 | FU53: 42777.47 | FV53: 43399.65 | FW53: 45430.82 | FX53: 44778.83 | FY53: 42585.84 | FZ53: 42221.1 | GA53: 39824.17 | GB53: 35185.82 | GC53: 36338.73 | GD53: 34870.86 | GE53: 35157.95 | GF53: 36072.16 | GG53: 37949.8 | GH53: 48295.02 | GI53: 40454.72 | GJ53: 49081.97 | GK53: 44868.63 | GL53: 46725.04 | GM53: 45940.94 | GN53: 48782.11 | GO53: 47115.74 | GP53: 48832.01 | GQ53: 47005.85 | GR53: 48907.49 | GS53: 50259.26 | GT53: 55022.31 | GU53: 51035.18 | GV53: 53566.72 | GW53: 46648.41 | GX53: 45124.66 | GY53: 46568.55 | GZ53: 48704.54 | HA53: 50619.99 | HB53: 45042.29 | HC53: 47950.44 | HD53: 56842.12 | HE53: 51815.58 | HF53: 56163.56 | HG53: 52713.9 | HH53: 55023.53
B55: Money as Follows:-
B56: Cash in Hand | G56: 0
B57: Current Account | G57: 8292.48
B58: Premium A/c - General | G58: =40064.66-G59 -> 38491.1
B59: Premium A/c - D Francis Fund (£2761.56 at 1/11/20) | G59: =2761.56+E49-F49 -> 1573.56
E61: Total Money | G61: =SUM(G56:G60) -> 48357.14
G63: =G61-G53 -> 0

Sheet IncExpYearEnd
G2: STRETFORD AMATEUR SWIMMING CLUB
C3: Income/Expenditure Account Nov 20/Oct 21
C4: 2020/21 | E4: 2019/20 | H4: 2020/21 | J4: 2019/20 | L4: Net Surplus | N4: Net Surplus
B5: Expenditure | C5: £ | E5: £ | G5: Income | H5: £ | J5: £ | L5: £ | N5: £
B6: Pool Hire | C6: =IncExp!F12 -> 0 | E6: 0 | G6: Pool Hire | L6: =SUM(H6-C6) -> 0 | N6: =SUM(J6-E6) -> 0
B7: Swimming | C7: =SUMIF(IncExp!$B$12:$B$50,IncExpYearEnd!B7,IncExp!$F$12:$F$50) -> 28094.7 | E7: 18381.2 | G7: Swimming | H7: =SUMIF(IncExp!$B$12:$B$50,IncExpYearEnd!G7,IncExp!$E$12:$E$50) -> 31729 | J7: 31732.89 | L7: =SUM(H7-C7) -> 3634.3 | N7: 13351.69
B8: Senior Water Polo | C8: =SUMIF(IncExp!$B$12:$B$50,IncExpYearEnd!B8,IncExp!$F$12:$F$50) -> 1957.76 | E8: 1975.5 | G8: Senior Water Polo | H8: =SUMIF(IncExp!$B$12:$B$50,IncExpYearEnd!G8,IncExp!$E$12:$E$50) -> 2052.2 | J8: 3135 | L8: 94.44 | N8: 1159.5
B9: Junior Water Polo | C9: =SUMIF(IncExp!$B$12:$B$50,IncExpYearEnd!B9,IncExp!$F$12:$F$50) -> 3696 | E9: 3869.25 | G9: Junior Water Polo | H9: =SUMIF(IncExp!$B$12:$B$50,IncExpYearEnd!G9,IncExp!$E$12:$E$50) -> 5542.85 | J9: 5852.03 | L9: 1846.85 | N9: 1982.78
B10: Adults | C10: =SUMIF(IncExp!$B$12:$B$50,IncExpYearEnd!B10,IncExp!$F$12:$F$50) -> 976.8 | E10: 1035.5 | G10: Adults | H10: =SUMIF(IncExp!$B$12:$B$50,IncExpYearEnd!G10,IncExp!$E$12:$E$50) -> 1100 | J10: 1055.5 | L10: 123.2 | N10: 20
B11: Salary | C11: =SUMIF(IncExp!$B$12:$B$50,IncExpYearEnd!B11,IncExp!$F$12:$F$50) -> 16645.85 | E11: 16510.62 | G11: Salary | H11: =SUMIF(IncExp!$B$12:$B$50,IncExpYearEnd!G11,IncExp!$E$12:$E$50) -> 3964.21 | J11: 2891.01 | L11: -12681.64 | N11: -13619.61
B12: Land Training | C12: =SUMIF(IncExp!$B$12:$B$50,IncExpYearEnd!B12,IncExp!$F$12:$F$50) -> 0 | E12: 150 | G12: Land Training | H12: =SUMIF(IncExp!$B$12:$B$50,IncExpYearEnd!G12,IncExp!$E$12:$E$50) -> 0 | J12: 0 | L12: 0 | N12: -150
B13: Longcourse | C13: =SUMIF(IncExp!$B$12:$B$50,IncExpYearEnd!B13,IncExp!$F$12:$F$50) -> 0 | E13: 170 | G13: Longcourse | H13: =SUMIF(IncExp!$B$12:$B$50,IncExpYearEnd!G13,IncExp!$E$12:$E$50) -> 0 | J13: 18 | L13: 0 | N13: -152
B14: Instruction | C14: =SUMIF(IncExp!$B$12:$B$50,IncExpYearEnd!B14,IncExp!$F$12:$F$50) -> 0 | E14: 0 | G14: Instruction | H14: =SUMIF(IncExp!$B$12:$B$50,IncExpYearEnd!G14,IncExp!$E$12:$E$50) -> 0 | J14: 0 | L14: 0 | N14: 0
B15: Swim Shop | C15: =SUMIF(IncExp!$B$12:$B$50,IncExpYearEnd!B15,IncExp!$F$12:$F$50) -> 725.9 | E15: 0 | G15: Swim Shop | H15: =SUMIF(IncExp!$B$12:$B$50,IncExpYearEnd!G15,IncExp!$E$12:$E$50) -> 1017 | J15: -416.8 | L15: 291.1 | N15: -416.8
B16: Administrative Expenses | C16: =SUMIF(IncExp!$B$12:$B$50,IncExpYearEnd!B16,IncExp!$F$12:$F$50) -> 1793.07 | E16: 1359.84 | G16: Administrative Expenses | H16: =SUMIF(IncExp!$B$12:$B$50,IncExpYearEnd!G16,IncExp!$E$12:$E$50) -> 0 | J16: 0 | L16: -1793.07 | N16: -1359.84
B17: Printing | C17: =SUMIF(IncExp!$B$12:$B$50,IncExpYearEnd!B17,IncExp!$F$12:$F$50) -> 0 | E17: 0 | G17: Printing | H17: =SUMIF(IncExp!$B$12:$B$50,IncExpYearEnd!G17,IncExp!$E$12:$E$50) -> 0 | J17: 0 | L17: 0 | N17: 0
B18: Stationery | C18: =SUMIF(IncExp!$B$12:$B$50,IncExpYearEnd!B18,IncExp!$F$12:$F$50) -> 0 | E18: 0 | G18: Stationery | H18: =SUMIF(IncExp!$B$12:$B$50,IncExpYearEnd!G18,IncExp!$E$12:$E$50) -> 0 | J18: 0 | L18: 0 | N18: 0
B19: Postage | C19: =SUMIF(IncExp!$B$12:$B$50,IncExpYearEnd!B19,IncExp!$F$12:$F$50) -> 0 | E19: 0 | G19: Postage | H19: =SUMIF(IncExp!$B$12:$B$50,IncExpYearEnd!G19,IncExp!$E$12:$E$50) -> 0 | J19: 0 | L19: 0 | N19: 0
B20: Telephone | C20: =SUMIF(IncExp!$B$12:$B$50,IncExpYearEnd!B20,IncExp!$F$12:$F$50) -> 0 | E20: 0 | G20: Telephone | H20: =SUMIF(IncExp!$B$12:$B$50,IncExpYearEnd!G20,IncExp!$E$12:$E$50) -> 0 | J20: 0 | L20: 0 | N20: 0
B21: Equipment | C21: =SUMIF(IncExp!$B$12:$B$50,IncExpYearEnd!B21,IncExp!$F$12:$F$50) -> 121.15 | E21: 1502.86 | G21: Equipment | H21: =SUMIF(IncExp!$B$12:$B$50,IncExpYearEnd!G21,IncExp!$E$12:$E$50) -> 0 | J21: 0 | L21: -121.15 | N21: -1502.86
B22: Engraving | C22: =SUMIF(IncExp!$B$12:$B$50,IncExpYearEnd!B22,IncExp!$F$12:$F$50) -> 0 | E22: 915 | G22: Engraving | H22: =SUMIF(IncExp!$B$12:$B$50,IncExpYearEnd!G22,IncExp!$E$12:$E$50) -> 0 | J22: 0 | L22: 0 | N22: -915
B23: ASA Registration | C23: =SUMIF(IncExp!$B$12:$B$50,IncExpYearEnd!B23,IncExp!$F$12:$F$50) -> 4925.15 | E23: 5237.71 | G23: ASA Registration | H23: =SUMIF(IncExp!$B$12:$B$50,IncExpYearEnd!G23,IncExp!$E$12:$E$50) -> 4256.2 | J23: 5151.2 | L23: -668.95 | N23: -86.51
B24: Affiliation Fees | C24: =SUMIF(IncExp!$B$12:$B$50,IncExpYearEnd!B24,IncExp!$F$12:$F$50) -> 10 | E24: 100 | G24: Affiliation Fees | H24: =SUMIF(IncExp!$B$12:$B$50,IncExpYearEnd!G24,IncExp!$E$12:$E$50) -> 0 | J24: 0 | L24: -10 | N24: -100
B25: Entry Fees | C25: =SUMIF(IncExp!$B$12:$B$50,IncExpYearEnd!B25,IncExp!$F$12:$F$50) -> 0 | E25: 0 | G25: Entry Fees | H25: =SUMIF(IncExp!$B$12:$B$50,IncExpYearEnd!G25,IncExp!$E$12:$E$50) -> 0 | J25: 0 | L25: 0 | N25: 0
B26: Staff Training | C26: =SUMIF(IncExp!$B$12:$B$50,IncExpYearEnd!B26,IncExp!$F$12:$F$50) -> 505 | E26: 731.39 | G26: Staff Training | H26: =SUMIF(IncExp!$B$12:$B$50,IncExpYearEnd!G26,IncExp!$E$12:$E$50) -> 442.5 | J26: 119.1 | L26: -62.5 | N26: -612.29
B27: Training Camp | C27: =SUMIF(IncExp!$B$12:$B$50,IncExpYearEnd!B27,IncExp!$F$12:$F$50) -> 11742.54 | E27: 6585.25 | G27: Training Camp | H27: =SUMIF(IncExp!$B$12:$B$50,IncExpYearEnd!G27,IncExp!$E$12:$E$50) -> 10370 | J27: 6626.25 | L27: -1372.54 | N27: 41
B28: Training Camp - Abroad | C28: =SUMIF(IncExp!$B$12:$B$50,IncExpYearEnd!B28,IncExp!$F$12:$F$50) -> 0 | E28: 0 | G28: Training Camp - Abroad | H28: =SUMIF(IncExp!$B$12:$B$50,IncExpYearEnd!G28,IncExp!$E$12:$E$50) -> 0 | J28: 0 | L28: 0 | N28: 0
B29: Water Polo Referee Exps | C29: =SUMIF(IncExp!$B$12:$B$50,IncExpYearEnd!B29,IncExp!$F$12:$F$50) -> 0 | E29: 0 | G29: Water Polo Referee Exps | H29: =SUMIF(IncExp!$B$12:$B$50,IncExpYearEnd!G29,IncExp!$E$12:$E$50) -> 0 | J29: 0 | L29: 0 | N29: 0
B30: Life Saving Expenses | C30: =SUMIF(IncExp!$B$12:$B$50,IncExpYearEnd!B30,IncExp!$F$12:$F$50) -> 714.16 | E30: 1094.1 | G30: Life Saving Expenses | H30: =SUMIF(IncExp!$B$12:$B$50,IncExpYearEnd!G30,IncExp!$E$12:$E$50) -> 0 | J30: 230 | L30: -714.16 | N30: -864.1
B31: Travel | C31: =SUMIF(IncExp!$B$12:$B$50,IncExpYearEnd!B31,IncExp!$F$12:$F$50) -> 0 | E31: 650 | G31: Travel | H31: =SUMIF(IncExp!$B$12:$B$50,IncExpYearEnd!G31,IncExp!$E$12:$E$50) -> 0 | J31: 118 | L31: 0 | N31: -532
B32: Annual Club Championship | C32: =SUMIF(IncExp!$B$12:$B$50,IncExpYearEnd!B32,IncExp!$F$12:$F$50) -> 0 | E32: 1230.57 | G32: Annual Club Championship | H32: =SUMIF(IncExp!$B$12:$B$50,IncExpYearEnd!G32,IncExp!$E$12:$E$50) -> 0 | J32: 1384.95 | L32: 0 | N32: 154.38
B33: Pointscore | C33: =SUMIF(IncExp!$B$12:$B$50,IncExpYearEnd!B33,IncExp!$F$12:$F$50) -> 0 | E33: 13 | G33: Pointscore | H33: =SUMIF(IncExp!$B$12:$B$50,IncExpYearEnd!G33,IncExp!$E$12:$E$50) -> 180 | J33: 635.05 | L33: 180 | N33: 622.05
B34: Open Galas - Early Bird | C34: =SUMIF(IncExp!$B$12:$B$50,IncExpYearEnd!B34,IncExp!$F$12:$F$50) -> 0 | E34: 1844.08 | G34: Open Galas - Early Bird | H34: =SUMIF(IncExp!$B$12:$B$50,IncExpYearEnd!G34,IncExp!$E$12:$E$50) -> 0 | J34: 16 | L34: 0 | N34: -1828.08
B35: Open Galas - Xmas Cracker | C35: =SUMIF(IncExp!$B$12:$B$50,IncExpYearEnd!B35,IncExp!$F$12:$F$50) -> 0 | E35: 4477.33 | G35: Open Galas - Xmas Cracker | H35: =SUMIF(IncExp!$B$12:$B$50,IncExpYearEnd!G35,IncExp!$E$12:$E$50) -> 0 | J35: 5153 | L35: 0 | N35: 675.67
B36: Open Galas - GM | C36: =SUMIF(IncExp!$B$12:$B$50,IncExpYearEnd!B36,IncExp!$F$12:$F$50) -> 0 | E36: 0 | G36: Open Galas - GM | H36: =SUMIF(IncExp!$B$12:$B$50,IncExpYearEnd!G36,IncExp!$E$12:$E$50) -> 0 | J36: 0 | L36: 0 | N36: 0
B37: Open Galas - GM Age Groups | C37: =SUMIF(IncExp!$B$12:$B$50,IncExpYearEnd!B37,IncExp!$F$12:$F$50) -> 0 | E37: 0 | G37: Open Galas - GM Age Groups | H37: =SUMIF(IncExp!$B$12:$B$50,IncExpYearEnd!G37,IncExp!$E$12:$E$50) -> 0 | J37: 0 | L37: 0 | N37: 0
B38: Other Galas | C38: =SUMIF(IncExp!$B$12:$B$50,IncExpYearEnd!B38,IncExp!$F$12:$F$50) -> 0 | E38: 1638.5 | G38: Other Galas | H38: =SUMIF(IncExp!$B$12:$B$50,IncExpYearEnd!G38,IncExp!$E$12:$E$50) -> 987 | J38: 1442.5 | L38: 987 | N38: -196
B39: Insurance | C39: =SUMIF(IncExp!$B$12:$B$50,IncExpYearEnd!B39,IncExp!$F$12:$F$50) -> 479.39 | E39: 454.44 | G39: Insurance | H39: =SUMIF(IncExp!$B$12:$B$50,IncExpYearEnd!G39,IncExp!$E$12:$E$50) -> 0 | J39: 0 | L39: -479.39 | N39: -454.44
B40: Social & Fund Raising | C40: =SUMIF(IncExp!$B$12:$B$50,IncExpYearEnd!B40,IncExp!$F$12:$F$50) -> 0 | E40: 1961.35 | G40: Social & Fund Raising | H40: =SUMIF(IncExp!$B$12:$B$50,IncExpYearEnd!G40,IncExp!$E$12:$E$50) -> 853.35 | J40: 789.77 | L40: 853.35 | N40: -1171.58
B41: Sundries | C41: =SUMIF(IncExp!$B$12:$B$50,IncExpYearEnd!B41,IncExp!$F$12:$F$50) -> 417.3 | E41: 2258.53 | G41: Sundries | H41: =SUMIF(IncExp!$B$12:$B$50,IncExpYearEnd!G41,IncExp!$E$12:$E$50) -> 4.01 | J41: 258.42 | L41: -413.29 | N41: -2000.11
B42: Membership Fees | C42: =SUMIF(IncExp!$B$12:$B$50,IncExpYearEnd!B42,IncExp!$F$12:$F$50) -> 0 | E42: 134.85 | G42: Membership Fees | H42: =SUMIF(IncExp!$B$12:$B$50,IncExpYearEnd!G42,IncExp!$E$12:$E$50) -> 5819.2 | J42: 6308.78 | L42: 5819.2 | N42: 6173.93
B43: Grant | C43: =SUMIF(IncExp!$B$12:$B$50,IncExpYearEnd!B43,IncExp!$F$12:$F$50) -> 0 | E43: 0 | G43: Grant | H43: =SUMIF(IncExp!$B$12:$B$50,IncExpYearEnd!G43,IncExp!$E$12:$E$50) -> 914 | J43: 1733 | L43: 914 | N43: 1733
C45: =SUMIF(IncExp!$B$12:$B$50,IncExpYearEnd!B47,IncExp!$F$12:$F$50) -> 0 | G45: Deficit of Income/Expenditure | H45: =SUMIF(IncExp!$B$12:$B$50,IncExpYearEnd!G45,IncExp!$E$12:$E$50) -> 0 | J45: 0 | L45: =SUM(L6:L43) -> -3573.25 | N45: =SUM(N6:N44) -> -47.22
G46: Adjustment | H46: =SUMIF(IncExp!$B$12:$B$50,IncExpYearEnd!G46,IncExp!$E$12:$E$50) -> 0 | J46: 0 | L46: 0
B47: Surplus/ Deficit | C47: =SUM(C6:C45) -> 72804.77 | E47: =SUM(E6:E46) -> 74280.87 | H47: =SUM(H6:H45) -> 69231.52 | J47: =SUM(J6:J45) -> 74233.65
G48: Shaded areas represent figures for Previous Year | L48: =H48-C48 -> 0 | Q48: =L48-N48 -> 0

Sheet BalanceSheet
A1: STRETFORD AMATEUR SWIMMING CLUB
B2: 2020/21
A4: Balance Sheet
D5: 2020/21 | F5: 2019/20 | J5: 2020/21 | L5: 2019/20
B6: Liabilities | C6: £ | D6: £ | F6: £ | H6: Assets | J6: £ | L6: £
B7: Balance at 1 Nov | D7: =L10+L11+L12 -> 53224.39 | F7: 51891.61 | H7: Bank - Current Account | I7: =IncExp!G57 -> 8292.48
H8: Bank - Premium Account | I8: =IncExp!G58 -> 38491.1
H9: Bank - D Francis Fund | I9: =IncExp!G59 -> 1573.56
J10: =SUM(I7:I9) -> 48357.14 | L10: 53118.39
H11: Cash in Hand | J11: 0 | L11: 0
H12: Stock at 31 Oct | J12: =D27 -> 0 | L12: 106
B14: Surplus on D Francis Fund | F14: 1380 | H14: Deficit on D Francis Fund | J14: =-J28 -> 1188
B15: Surplus on General Account | D15: =IncExp!G51-(D24-D27)+J14 -> -3679.25 | H15: Deficit for General Account | L15: 47.22
D17: =SUM(D7:D16) -> 49545.14 | F17: =SUM(F7:F16) -> 53271.61 | J17: =SUM(J7:J16) -> 49545.14 | L17: =SUM(L7:L16) -> 53271.61
A21: Swim Shop Account | G21: Doug Francis Fund
D22: 2020/21 | F22: 2019/20 | J22: 2020/21 | L22: 2019/20
D23: £ | F23: £ | J23: £ | L23: £
B24: Stock at 1 Nov | D24: =F27 -> 106 | F24: 765 | H24: Opening Balance at 1 Nov | J24: =L27 -> 2761.56 | L24: 1381.56
B25: Sales | F25: 886 | H25: Income/Donations to Fund | L25: 1500
B26: Purchases | F26: -643.8 | H26: Donations from Fund | J26: =IncExp!F49 -> 1188 | L26: -120
B27: Stock at 31 Oct | D27: 0 | F27: 106 | H27: Closing Balance at 31 Oct | J27: =I9 -> 1573.56 | L27: 2761.56
B28: Deficit on Swim Shop | D28: =D27-D24+D25+D26 -> -106 | F28: =F27-F24+F25+F26 -> -416.8 | H28: Deficit on D Francis Fund | J28: =-SUM(J24-J27) -> -1188 | L28: =-SUM(L24-L27) -> 1380
A31: Shaded areas represent figures for Previous Year

Sheet SwimShopYearEnd (hidden)
A1: Stretford Amateur Swimming Club
A2: Swim Shop Stock at 31 Oct 2021
A4: Item No | B4: Description | C4: Stock | D4: Value/Ea | E4: Total Value
A5: 100 | B5: SASC Silicon Caps | D5: 4.5 | E5: =C5*D5 -> 0
A6: 206 | B6: Jammers 1 | D6: 12.5 | E6: 0
A7: 207 | B7: Jammers 2 | D7: 0 | E7: 0
A8: 300 | B8: Hoodie Adult | D8: 20 | E8: 0
A9: 301 | B9: Hoodie Junior | D9: 15.5 | E9: 0
A10: 305 | B10: New T Shirt Junior | D10: 11 | E10: 0
A11: 306 | B11: New T Shirt Adult | D11: 13.5 | E11: 0
A12: 400 | B12: Drinks Bottle - Small | D12: 2.5 | E12: 0
A13: 401 | B13: Drinks Bottle - Large | D13: 3.5 | E13: 0
A14: 502 | B14: Goggles Rapide - Junior | D14: 6.5 | E14: 0
A15: 503 | B15: Goggles Sprite | D15: 4.5 | E15: 0
A16: 504 | B16: Kick Boards - Holed | D16: 10 | E16: 0
A17: 505 | B17: Pool fins | D17: 15 | E17: 0
A18: 506 | B18: PullBuoy | D18: 8.5 | E18: 0
A19: 507 | B19: Goggles - Pulse Mirror | D19: 9 | E19: 0
A20: 508 | B20: Goggles - Sonic Mirror | D20: 9.5 | E20: 0
A21: 509 | B21: Goggles - Storm Mirror | D21: 7.5 | E21: 0
A22: 601 | B22: Mesh Bag Medium | D22: 5.5 | E22: 0
B24: TOTALS | C24: =SUM(C5:C22) -> 0 | E24: =SUM(E5:E23) -> 0
B26: Audited by
C27: Annie Lazenby
C30: Dawn Cole

Sheet CashCert (hidden)
A1: STRETFORD AMATEUR SWIMMING CLUB
A3: CERTIFICATE OF CASH
A7: This is to certify that the Treasurer, Dawn Cole, currently has £115.60 in her
A8: possession
B11: Signed:
B13: Name:
B15: Date: | C15: 2019-10-31

Sheet Assets (hidden)
B1: Stretford Amateur Swimming Club
A3: Assets | B3: Held By/ Located at | C3: Qty | D3: Today's New Price | E3: Value at 31/12/95 | F3: Value at 31/12/96 | G3: Value at 31/12/97 | H3: Value at 31/12/98 | I3: Value at 31/12/99 | J3: Value at 31/12/00 | K3: Value at 31/12/02 | L3: Value at 31/12/03 | M3: Value at 31/12/04 | N3: Value at 31/12/05 | O3: Value at 31/12/06 | P3: Value at 31/12/07 | Q3: Value at 31/12/08 | R3: Value at 31/12/09 | S3: Value at 31/12/10 | T3: Value at 31/12/11 | U3: Value at 31/12/12 | V3: Value at 31/10/13 | W3: Value at 31/10/14 | X3: Value at 31/10/15 | Y3: Value at 31/10/16 | Z3: Value at 31/10/17 | AA3: Value at 31/10/18 | AB3: Value at 31/10/19
A5: Trophies | B5: Winners | E5: 3948.75 | F5: 4000 | G5: 4000 | H5: 4000 | I5: 4000 | J5: 4000 | K5: 4000 | L5: 4000 | M5: 4000 | N5: 4000 | O5: 4000 | P5: 4000 | Q5: 4000 | R5: 4000 | S5: 4000 | T5: 4000 | U5: 4000 | V5: 4000 | W5: 4000 | X5: 4000 | Y5: 4000 | Z5: 4000 | AA5: 4000
A6: Typewriters | B6: Scrapped | C6: 2 | E6: 24.38 | F6: 0
A7: Word-Processor/Electronic Typewriter | B7: S Foster | C7: 1 | E7: 195 | F7: 140 | G7: 100 | H7: 70 | I7: 50 | J7: 50 | K7: 50 | L7: 50 | M7: 50 | N7: 0 | O7: 0
A8: Video Camera and Equipment and Batteries | B8: G Holme | C8: 1 | E8: 536.25 | F8: 400 | G8: 350 | H8: 250 | I8: 150 | J8: 100 | K8: 50 | L8: 30 | M8: 30 | N8: 30 | O8: 30 | P8: 0 | Q8: 0 | R8: 0 | S8: 0 | T8: 0 | U8: 0 | V8: 0 | W8: 0 | X8: 0 | Y8: 0 | Z8: 0 | AA8: 0
A9: Electronic Scoreboard and Water polo Clock | B9: Stretford L. C. | C9: 1 | E9: 1072.5 | F9: 800 | G9: 600 | H9: 500 | I9: 400 | J9: 350 | K9: 250 | L9: 200 | M9: 200 | N9: 150 | O9: 150 | P9: 150 | Q9: 150 | R9: 150 | S9: 150 | T9: 150 | U9: 150 | V9: 150 | W9: 150 | X9: 150 | Y9: 150 | Z9: 150 | AA9: 150
A10: 35 Second Clock (Set) | B10: Stretford L. C. | C10: 1 | E10: 438.75 | F10: 330 | G10: 250 | H10: 200 | I10: 150 | J10: 100 | K10: 50 | L10: 50 | M10: 50 | N10: 40 | O10: 40 | P10: 40 | Q10: 40 | R10: 40 | S10: 0 | T10: 0 | U10: 0 | V10: 0 | W10: 0 | X10: 0 | Y10: 0 | Z10: 0 | AA10: 0
A11: Speedo Clock | B11: Stretford L. C. | C11: 1 | E11: 73.13 | F11: 50 | G11: 40 | H11: 30 | I11: 25 | J11: 25 | K11: 25 | L11: 15 | M11: 15 | N11: 15 | O11: 15 | P11: 15 | Q11: 15 | R11: 15 | S11: 15 | T11: 15 | U11: 15 | V11: 15 | W11: 15 | X11: 15 | Y11: 15 | Z11: 15 | AA11: 15
A12: Life Saving Equipment - | C12: 1 | E12: 292.5
A13: Life Saving Equipment - Lifesaving Ropes | B13: Stretford L. C. | C13: 5 | D13: 56 | F13: 20 | G13: 20 | H13: 20 | I13: 20 | J13: 20 | K13: 20 | L13: 10 | M13: 15 | N13: 15 | O13: 15 | P13: 15 | Q13: 15 | R13: 15 | S13: 15 | T13: 15 | U13: 15 | V13: 15 | W13: 15 | X13: 15 | Y13: 15 | Z13: 15 | AA13: 15
A14: Stretford Part Owners of Starting Blocks | B14: Stretford L. C. | X14: 2000 | Y14: 2000 | Z14: 2000 | AA14: 2000
A15: Life Saving Equipment - Stiff Knecks | B15: Stretford L. C. | C15: 6 | D15: 88 | F15: 30 | G15: 30 | H15: 30 | I15: 30 | J15: 30 | K15: 30 | L15: 20 | M15: 20 | N15: 20 | O15: 20 | P15: 20 | Q15: 20 | R15: 20 | S15: 20 | T15: 20 | U15: 20 | V15: 20 | W15: 20 | X15: 20 | Y15: 20 | Z15: 20 | AA15: 20
A16: Life Saving Equipment - Rescue Manikin | B16: Stretford L. C. | C16: 1 | D16: 150 | F16: 60 | G16: 60 | H16: 50 | I16: 50 | J16: 50 | K16: 50 | L16: 40 | M16: 40 | N16: 40 | O16: 40 | P16: 40 | Q16: 40 | R16: 40 | S16: 40 | T16: 40 | U16: 40 | V16: 40 | W16: 40 | X16: 40 | Y16: 40 | Z16: 40 | AA16: 40
A17: Resusitation Dummies - | E17: 146.25
A18: AMBU (12 Years old) | B18: Scrapped | C18: 1 | D18: 2000 | F18: 200 | G18: 180 | H18: 50 | I18: 50 | J18: 0 | K18: 0 | L18: 0 | M18: 0 | N18: 0 | O18: 0 | P18: 0 | Q18: 0 | R18: 0 | S18: 0 | T18: 0 | U18: 0 | V18: 0 | W18: 0 | X18: 0 | Y18: 0 | Z18: 0 | AA18: 0
A19: Resusibaby (9 Years old) | B19: Scrapped | C19: 1 | D19: 185 | F19: 50 | G19: 50 | H19: 50 | I19: 50 | J19: 0 | K19: 0 | L19: 0 | M19: 0 | N19: 0 | O19: 0 | P19: 0 | Q19: 0 | R19: 0 | S19: 0 | T19: 0 | U19: 0 | V19: 0 | W19: 0 | X19: 0 | Y19: 0 | Z19: 0 | AA19: 0
A20: Resusibaby (2 Year old) | B20: Stretford L. C. | C20: 1 | D20: 546 | F20: 400 | G20: 300 | H20: 200 | I20: 200 | J20: 150 | K20: 150 | L20: 100 | M20: 100 | N20: 80 | O20: 80 | P20: 80 | Q20: 80 | R20: 80 | S20: 80 | T20: 80 | U20: 80 | V20: 80 | W20: 80 | X20: 80 | Y20: 80 | Z20: 80 | AA20: 80
A21: Little Anne (4 Years old) | B21: Stretford L. C. | C21: 1 | D21: 117 | F21: 80 | G21: 60 | H21: 50 | I21: 50 | J21: 50 | K21: 50 | L21: 30 | M21: 20 | N21: 20 | O21: 20 | P21: 20 | Q21: 20 | R21: 20 | S21: 20 | T21: 20 | U21: 20 | V21: 20 | W21: 20 | X21: 20 | Y21: 20 | Z21: 20 | AA21: 20
A22: Resusi Anne ( 3 Years old) | B22: Stretford L. C. | C22: 1 | D22: 660 | F22: 450 | G22: 350 | H22: 250 | I22: 250 | J22: 200 | K22: 150 | L22: 100 | M22: 100 | N22: 80 | O22: 80 | P22: 80 | Q22: 80 | R22: 80 | S22: 80 | T22: 80 | U22: 80 | V22: 80 | W22: 80 | X22: 80 | Y22: 80 | Z22: 80 | AA22: 80
A23: Timekeepers Watches | B23: Stretford L. C. | C23: 5 | E23: 58.5 | F23: 30 | G23: 30 | H23: 30 | I23: 30 | J23: 20 | K23: 30 | L23: 60 | M23: 60 | N23: 150 | O23: 150 | P23: 150 | Q23: 250 | R23: 200 | S23: 200 | T23: 200 | U23: 200 | V23: 200 | W23: 200 | X23: 200 | Y23: 200 | Z23: 200 | AA23: 200
A24: Starters Guns | B24: Stretford L. C. | C24: 1 | E24: 14.63 | F24: 10 | G24: 10 | H24: 10 | I24: 5 | J24: 5 | K24: 5 | L24: 0 | M24: 0 | N24: 0 | O24: 0 | P24: 0 | Q24: 0 | R24: 0 | S24: 0 | T24: 0 | U24: 0 | V24: 0 | W24: 0 | X24: 0 | Y24: 0 | Z24: 0 | AA24: 0
A25: Water Polo Nets (Set) and Goals | B25: Stretford L. C. | C25: 1 | E25: 78 | F25: 50 | G25: 200 | H25: 150 | I25: 100 | J25: 100 | K25: 100 | L25: 30 | M25: 30 | N25: 30 | O25: 30 | P25: 30 | Q25: 30 | R25: 30 | S25: 30 | T25: 30 | U25: 30 | V25: 30 | W25: 30 | X25: 30 | Y25: 30 | Z25: 30 | AA25: 30
A26: Water Polo Hats (Sets) | C26: 4 | E26: 0 | F26: 0 | G26: 150 | H26: 150 | I26: 150 | J26: 150 | K26: 155 | L26: 0 | M26: 0 | N26: 0 | O26: 0 | P26: 0 | Q26: 0 | R26: 0 | S26: 0 | T26: 0 | U26: 0 | V26: 0 | W26: 0 | X26: 0 | Y26: 0 | Z26: 0 | AA26: 0
A27: Water Polo Balls Size 5 | C27: 12 | E27: 112.13 | F27: 100 | G27: 100 | H27: 100 | I27: 100 | J27: 100 | K27: 100 | L27: 50 | M27: 50 | N27: 50 | O27: 50 | P27: 50 | Q27: 50 | R27: 250 | S27: 250 | T27: 250 | U27: 250 | V27: 250 | W27: 250 | X27: 250 | Y27: 250 | Z27: 250 | AA27: 250
A28: Water Polo Balls Size 6 | C28: 6 | E28: 78 | F28: 60 | G28: 60 | H28: 60 | I28: 60 | J28: 60 | K28: 60 | L28: 30 | M28: 30 | N28: 30 | O28: 30 | P28: 30 | Q28: 30 | R28: 250 | S28: 250 | T28: 250 | U28: 250 | V28: 250 | W28: 250 | X28: 250 | Y28: 250 | Z28: 250 | AA28: 250
A29: Water Polo Kit Bags | C29: 2 | E29: 4.88 | F29: 0 | G29: 0 | H29: 0 | I29: 0 | J29: 0 | K29: 0 | L29: 5 | M29: 5 | N29: 5 | O29: 5 | P29: 5 | Q29: 5 | R29: 0 | S29: 0 | T29: 0 | U29: 0 | V29: 0 | W29: 0 | X29: 0 | Y29: 0 | Z29: 0 | AA29: 0
A30: Lane Ropes (Set) | B30: Stretford L. C. | C30: 1 | E30: 243.75 | F30: 200 | G30: 200 | H30: 200 | I30: 200 | J30: 200 | K30: 200 | L30: 200 | M30: 175 | N30: 150 | O30: 150 | P30: 150 | Q30: 150 | R30: 150 | S30: 150 | T30: 150 | U30: 150 | V30: 150 | W30: 150 | X30: 150 | Y30: 150 | Z30: 150 | AA30: 150
A31: Floats/Armbands | B31: Stretford L. C. | E31: 48.75 | F31: 60 | G31: 150 | H31: 150 | I31: 150 | J31: 170 | K31: 170 | L31: 40 | M31: 30 | N31: 30 | O31: 30 | P31: 30 | Q31: 30 | R31: 20 | S31: 20 | T31: 20 | U31: 20 | V31: 20 | W31: 20 | X31: 20 | Y31: 20 | Z31: 20 | AA31: 20
A32: Floating Water Polo Goals | B32: Stretford L. C. | C32: 1 | D32: 750 | I32: 750 | J32: 400 | K32: 400 | L32: 300 | M32: 250 | N32: 250 | O32: 250 | P32: 250 | Q32: 250 | R32: 200 | S32: 200 | T32: 200 | U32: 200 | V32: 200 | W32: 200 | X32: 200 | Y32: 200 | Z32: 200 | AA32: 200
A33: Photocopier | B33: Scrapped | C33: 1 | E33: 24.38 | F33: 0 | G33: 0 | H33: 0 | K33: 0
A34: Photocopier | B34: M Wells | C34: 1 | D34: 800 | F34: 600 | G34: 500 | H34: 400 | I34: 300 | J34: 200 | K34: 50 | L34: 50 | M34: 500 | N34: 400 | O34: 400 | P34: 400 | Q34: 400 | R34: 250 | S34: 250 | T34: 0 | U34: 0 | V34: 0 | W34: 0 | X34: 0 | Y34: 0 | Z34: 0 | AA34: 0
A35: Hytech Computer Programme | B35: D Hoskins | C35: 1 | G35: 200 | H35: 100 | I35: 50 | J35: 50 | K35: 50 | L35: 50 | M35: 50
A36: Heart monitors | B36: Stretford L. C. | C36: 10 | D36: 314 | K36: 250 | L36: 200 | M36: 175 | R36: 100 | S36: 100 | T36: 100 | U36: 100 | V36: 100 | W36: 100 | X36: 100 | Y36: 100 | Z36: 100 | AA36: 100
A37: Dell Computer (Old) | B37: J Kennedy | C37: 1 | N37: 440 | O37: 200 | P37: 200 | Q37: 200 | R37: 150 | S37: 150 | T37: 100 | U37: 100 | V37: 100 | W37: 100
A38: Samsung Computer | B38: M Wells | C38: 1 | V38: 450 | W38: 450 | X38: 250 | Y38: 250 | Z38: 250 | AA38: 250
A39: Mats & Skipping Ropes | B39: Stretford L. C. | N39: 70 | O39: 70 | P39: 50 | Q39: 50 | R39: 200 | S39: 200 | T39: 200 | U39: 200 | V39: 200 | W39: 200 | X39: 200 | Y39: 200 | Z39: 200 | AA39: 200
A40: Electronic Starting System | B40: D Hoskins | P40: 250 | Q40: 250 | R40: 150 | S40: 150 | T40: 100 | U40: 100 | V40: 100 | W40: 100 | X40: 100 | Y40: 100 | Z40: 100 | AA40: 100
A41: PA System | B41: Stretford L. C. | P41: 580 | Q41: 580 | R41: 400 | S41: 400 | T41: 400 | U41: 400 | V41: 400 | W41: 400 | X41: 200 | Y41: 200 | Z41: 200 | AA41: 200
E42: =SUM(E5:E35) -> 7390.53 | F42: =SUM(F5:F35) -> 8120 | G42: =SUM(G5:G35) -> 7990 | H42: =SUM(H5:H35) -> 7100 | I42: =SUM(I5:I36) -> 7370 | J42: =SUM(J4:J35) -> 6580 | K42: 6195 | L42: 5460 | M42: 5820 | N42: =SUM(N4:N41) -> 6095 | O42: =SUM(O4:O41) -> 5855 | P42: =SUM(P4:P41) -> 6635 | Q42: 5655 | R42: =SUM(R5:R41) -> 6810 | S42: =SUM(S5:S41) -> 6770 | T42: =SUM(T5:T41) -> 6420 | U42: =SUM(U5:U41) -> 6420 | V42: =SUM(V5:V41) -> 6870
A43: TOTAL VALUE | W43: =SUM(W5:W41) -> 6870 | X43: =SUM(X5:X41) -> 8370 | Y43: =SUM(Y5:Y41) -> 8370 | Z43: =SUM(Z5:Z41) -> 8370 | AA43: =SUM(AA5:AA41) -> 8370

Sheet Pool Hire Instructions (hidden)
C1: Instructions for completing the Pool Hire sheets for Apr - Aug and Sep - Mar
A3: 1 | B3: At the top of each heading for each month fill in the yellow field with the month on the formate 01/04/01
A5: 2 | B5: The month will fill in automatically for each week in that month
A7: 3 | B7: For the days only complete the first row of every month (coloured yellow) starting on the correct day in the week.
A9: 4 | B9: The rest of the weeks will fill themselves in correctly (except in a leap year), ignore the fact that it may not be a proper day!
A11: 5 | B11: For the first week of April or September respectively (cells C6:I19) complete a standard week of bookings
A13: 6 | B13: Press the button in cell B2, this will copy the standard week into all the weeks on the sheet
A15: 7 | B15: Go into the start and end of the month and clear the contents for "non-days"
A17: 8 | B17: Now delete any sessions that are not required during the period, e.g. Easter, Christmas, August Hols,
A19: 9 | B19: The total bookings will now be correct on the far right hand side of the sheet but correct the Hourly Rates and the year

Sheet PoolHire(Apr - Aug) (hidden)
A1: STRETFORD AMATEUR SWIMMING CLUB | K1: STRETFORD AMATEUR SWIMMING CLUB | U1: STRETFORD AMATEUR SWIMMING CLUB | AE1: STRETFORD AMATEUR SWIMMING CLUB | AO1: STRETFORD AMATEUR SWIMMING CLUB | AY1: STRETFORD AMATEUR SWIMMING CLUB
E2: POOL HIRE | F2: 2003-04-01 | O2: POOL HIRE | P2: 2003-05-01 | Y2: POOL HIRE | Z2: 2003-06-01 | AI2: POOL HIRE | AJ2: 2003-07-01 | AS2: POOL HIRE | AT2: 2003-08-01 | AY2: April - August 2001 | BA2: 2002 | BC2: 2002
A4: =$F$2 -> 2003-04-01 | B4: Date | D4: 1 | E4: 2 | F4: 3 | G4: 4 | H4: 5 | I4: 6 | J4: Total | K4: =$P$2 -> 2003-05-01 | L4: Date | P4: 1 | Q4: 2 | R4: 3 | S4: 4 | T4: Total | U4: =Z$2 -> 2003-06-01 | V4: Date | AC4: 1 | AD4: Total | AE4: =AJ$2 -> 2003-07-01 | AF4: Date | AH4: 1 | AI4: 2 | AJ4: 3 | AK4: 4 | AL4: 5 | AM4: 6 | AN4: Total | AO4: =AT$2 -> 2003-08-01 | AP4: Date | AT4: 1 | AU4: 2 | AV4: 3 | AW4: 4 | AX4: Total | AZ4: Year | BF4: Total
B5: Day | D5: Tue | E5: Wed | F5: Thu | G5: Fri | H5: Sat | I5: Sun | J5: Hours | L5: Day | P5: Thu | Q5: Fri | R5: Sat | S5: Sun | T5: Hours | V5: Day | AC5: Sun | AD5: Hours | AF5: Day | AH5: Tue | AI5: Wed | AJ5: Thu | AK5: Fri | AL5: Sat | AM5: Sun | AN5: Hours | AP5: Day | AQ5: Mon | AR5: Tue | AS5: Wed | AT5: Thu | AU5: Fri | AV5: Sat | AW5: Sun | AX5: Hours | AZ5: Month | BA5: Apr | BB5: May | BC5: Jun | BD5: July | BE5: Aug | BF5: Hours
A6: Main Pool | B6: Junior Hrs | J6: =SUM(C6:I6) -> 0 | K6: Main Pool | L6: Junior Hrs | T6: =SUM(M6:S6) -> 0 | U6: Main Pool | V6: Junior Hrs | AD6: =SUM(W6:AC6) -> 0 | AE6: Main Pool | AF6: Junior Hrs | AN6: =SUM(AG6:AM6) -> 0 | AO6: Main Pool | AP6: Junior Hrs | AX6: =SUM(AQ6:AW6) -> 0 | AY6: Main Pool | AZ6: Junior Hrs | BA6: =SUM(J6+J24+J42+J60+J78+J96) -> 0 | BB6: =SUM(T6+T24+T42+T60+T78+T96) -> 0 | BC6: =SUM(AD6+AD24+AD42+AD60+AD78+AD96) -> 0 | BD6: =SUM(AN6+AN24+AN42+AN60+AN78+AN96) -> 0 | BE6: =SUM(AX6+AX24+AX42+AX60+AX78+AX96) -> 0 | BF6: =SUM(BA6:BE6) -> 0
B7: Time | L7: Time | V7: Time | AF7: Time | AP7: Time | AZ7: Cost @ £9.25 | BA7: =BA6*9.25 -> 0 | BB7: =BB6*9.25 -> 0 | BC7: =BC6*9.25 -> 0 | BD7: =BD6*9.25 -> 0 | BE7: =BE6*9.25 -> 0 | BF7: 0
B8: Junior Hrs | H8: 1 | I8: 1 | J8: =SUM(C8:I8) -> 2 | L8: Junior Hrs | R8: 1 | S8: 1 | T8: =SUM(M8:S8) -> 2 | V8: Junior Hrs | AC8: 1 | AD8: =SUM(W8:AC8) -> 1 | AF8: Junior Hrs | AL8: 1 | AM8: 1 | AN8: =SUM(AG8:AM8) -> 2 | AP8: Junior Hrs | AZ8: Junior Hrs | BA8: =SUM(J8+J26+J44+J62+J80+J98) -> 8 | BB8: =SUM(T8+T26+T44+T62+T80+T98) -> 9 | BC8: =SUM(AD8+AD26+AD44+AD62+AD80+AD98) -> 9 | BD8: =SUM(AN8+AN26+AN44+AN62+AN80+AN98) -> 8 | BE8: =SUM(AX8+AX26+AX44+AX62+AX80+AX98) -> 0 | BF8: 34
B9: Time | H9: 8-9.00am | I9: 8-9am | L9: Time | R9: 8-9.00am | S9: 8-9am | V9: Time | AC9: 8-9am | AF9: Time | AL9: 8-9.00am | AM9: 8-9am | AP9: Time | AZ9: Cost@£8.50 | BA9: 68 | BB9: 76.5 | BC9: 76.5 | BD9: 68 | BE9: =BE8*18.5 -> 0 | BF9: 289
B10: Junior Hrs | D10: 2.5 | G10: 3 | H10: 1 | I10: 4.5 | J10: =SUM(C10:I10) -> 11 | L10: Junior Hrs | Q10: 3 | R10: 1 | S10: 4.5 | T10: =SUM(M10:S10) -> 8.5 | V10: Junior Hrs | AC10: 4.5 | AD10: =SUM(W10:AC10) -> 4.5 | AF10: Junior Hrs | AH10: 2.5 | AK10: 3 | AL10: 1 | AM10: 4.5 | AN10: =SUM(AG10:AM10) -> 11 | AP10: Junior Hrs | AX10: =SUM(AQ10:AW10) -> 0 | AZ10: Junior Hrs | BA10: =SUM(J10+J28+J46+J64+J82+J100) -> 37.75 | BB10: =SUM(T10+T28+T46+T64+T82+T100) -> 48 | BC10: 48 | BD10: 43.75 | BE10: =SUM(AX10+AX28+AX46+AX64+AX82+AX100) -> 0 | BF10: 177.5
B11: Time | D11: 7.30-10pm | G11: 6-9pm | H11: 6-7.00pm | I11: 5.30-10pm | L11: Time | Q11: 6-9pm | R11: 6-7.00pm | S11: 5.30-10pm | V11: Time | AC11: 5.30-10pm | AF11: Time | AH11: 7.30-10pm | AK11: 6-9pm | AL11: 6-7.00pm | AM11: 5.30-10pm | AP11: Time | AZ11: Cost@£19 | BA11: 717.25 | BB11: 912 | BC11: 912 | BD11: 831.25 | BE11: =BE10*18.5 -> 0 | BF11: 3372.5
B12: Adult Hrs | F12: 1 | J12: =SUM(C12:I12) -> 1 | L12: Adult Hrs | P12: 1 | T12: =SUM(M12:S12) -> 1 | V12: Adult Hrs | AD12: =SUM(W12:AC12) -> 0 | AF12: Adult Hrs | AJ12: 1 | AN12: =SUM(AG12:AM12) -> 1 | AP12: Adult Hrs | AX12: =SUM(AQ12:AW12) -> 0 | AZ12: Adult Hrs | BA12: =SUM(J12+J30+J48+J66+J84+J102) -> 3 | BB12: =SUM(T12+T30+T48+T66+T84+T102) -> 5 | BC12: =SUM(AD12+AD30+AD48+AD66+AD84+AD102) -> 4 | BD12: =SUM(AN12+AN30+AN48+AN66+AN84+AN102) -> 4 | BE12: =SUM(AX12+AX30+AX48+AX66+AX84+AX102) -> 0 | BF12: 16
B13: Time | F13: 9-10pm | L13: Time | P13: 9-10pm | V13: Time | AF13: Time | AJ13: 9-10pm | AP13: Time | AZ13: Cost@£36 | BA13: 108 | BB13: 180 | BC13: 144 | BD13: 144 | BE13: =BE12*34 -> 0 | BF13: 576
A14: Small Pool | B14: Junior Hrs | D14: 2.5 | G14: 2.5 | I14: 2 | J14: =SUM(C14:I14) -> 7 | K14: Small Pool | L14: Junior Hrs | Q14: 2.5 | S14: 2 | T14: =SUM(M14:S14) -> 4.5 | U14: Small Pool | V14: Junior Hrs | AC14: 2 | AD14: =SUM(W14:AC14) -> 2 | AE14: Small Pool | AF14: Junior Hrs | AH14: 2.5 | AK14: 2.5 | AM14: 2 | AN14: =SUM(AG14:AM14) -> 7 | AO14: Small Pool | AP14: Junior Hrs | AX14: =SUM(AQ14:AW14) -> 0 | AY14: Small Pool | AZ14: Junior Hrs | BA14: =SUM(J14+J32+J50+J68+J86+J104) -> 16.5 | BB14: =SUM(T14+T32+T50+T68+T86+T104) -> 30.5 | BC14: =SUM(AD14+AD32+AD50+AD68+AD86+AD104) -> 30 | BD14: 19 | BE14: =SUM(AX14+AX32+AX50+AX68+AX86+AX104) -> 0 | BF14: 96
B15: Time | D15: 6-8.30pm | G15: 6-8.30pm | I15: 5.30-7.30 | L15: Time | Q15: 6-8.30pm | S15: 5.30-7.30 | V15: Time | AC15: 5.30-7.30 | AF15: Time | AH15: 6-8.30pm | AK15: 6-8.30pm | AM15: 5.30-7.30 | AP15: Time | AZ15: cost@£18 | BA15: 297 | BB15: 549 | BC15: 540 | BD15: 342 | BE15: =BE14*17.5 -> 0 | BF15: 1728
B16: Adult Hrs | J16: =SUM(C16:I16) -> 0 | L16: Adult Hrs | T16: =SUM(M16:S16) -> 0 | V16: Adult Hrs | AD16: =SUM(W16:AC16) -> 0 | AF16: Adult Hrs | AN16: =SUM(AG16:AM16) -> 0 | AP16: Adult Hrs | AX16: =SUM(AQ16:AW16) -> 0 | AZ16: Adult Hrs | BA16: =SUM(J16+J34+J52+J70+J88+J106) -> 0 | BB16: =SUM(T16+T34+T52+T70+T88+T106) -> 0 | BC16: =SUM(AD16+AD34+AD52+AD70+AD88+AD106) -> 0 | BD16: =SUM(AN16+AN34+AN52+AN70+AN88+AN106) -> 0 | BE16: =SUM(AX16+AX34+AX52+AX70+AX88+AX106) -> 0 | BF16: 0
B17: Time | L17: Time | V17: Time | AF17: Time | AP17: Time | AZ17: Cost @ £25.75 | BA17: =BA16*25.5 -> 0 | BB17: =BB16*25.5 -> 0 | BC17: =BC16*25.5 -> 0 | BD17: =BD16*25.5 -> 0 | BE17: =BE16*25.5 -> 0 | BF17: 0
A18: Practice Rm | B18: Junior Hrs | J18: =SUM(C18:I18) -> 0 | K18: Practice Rm | L18: Junior Hrs | T18: =SUM(M18:S18) -> 0 | U18: Practice Rm | V18: Junior Hrs | AD18: =SUM(W18:AC18) -> 0 | AE18: Practice Rm | AF18: Junior Hrs | AN18: =SUM(AG18:AM18) -> 0 | AO18: Practice Rm | AP18: Junior Hrs | AX18: =SUM(AQ18:AW18) -> 0 | AY18: Practice | AZ18: Junior Hrs | BA18: =SUM(J18+J36+J54+J72+J90+J108) -> 0 | BB18: =SUM(T18+T36+T54+T72+T90+T108) -> 0 | BC18: =SUM(AD18+AD36+AD54+AD72+AD90+AD108) -> 0 | BD18: =SUM(AN18+AN36+AN54+AN72+AN90+AN108) -> 0 | BE18: =SUM(AX18+AX36+AX54+AX72+AX90+AX108) -> 0 | BF18: =SUM(BA18:BE18) -> 0
B19: Time | L19: Time | V19: Time | AF19: Time | AP19: Time | AZ19: Cost @ £18.50 | BA19: 0 | BB19: 0 | BC19: 0 | BD19: 0 | BE19: =BE18*18.3 -> 0 | BF19: =SUM(BA19:BE19) -> 0
AY20: TOTALS | AZ20: Total Hours | BA20: =SUM(BA6+BA8+BA10+BA12+BA14+BA16+BA18) -> 65.25 | BB20: 92.5 | BC20: 91 | BD20: 74.75 | BE20: 0 | BF20: 323.5
AZ21: Total Cost | BA21: 1190.25 | BB21: 1717.5 | BC21: 1672.5 | BD21: 1385.25 | BE21: 0 | BF21: 5965.5
A22: =$F$2 -> 2003-04-01 | B22: Date | C22: =IF((I4+1)<=30,I4+1,"") -> 7 | D22: =IF((I4+2)<=30,I4+2,"") -> 8 | E22: =IF((I4+3)<=30,I4+3,"") -> 9 | F22: =IF((I4+4)<=30,I4+4,"") -> 10 | G22: =IF((I4+5)<=30,I4+5,"") -> 11 | H22: =IF((I4+6)<=30,I4+6,"") -> 12 | I22: =IF((I4+7)<=30,I4+7,"") -> 13 | J22: Total | K22: =$P$2 -> 2003-05-01 | L22: Date | M22: 5 | N22: 6 | O22: 7 | P22: 8 | Q22: 9 | R22: 10 | S22: 11 | T22: Total | U22: =Z$2 -> 2003-06-01 | V22: Date | W22: 2 | X22: 3 | Y22: 4 | Z22: 5 | AA22: 6 | AB22: 7 | AC22: 8 | AD22: Total | AE22: =AJ$2 -> 2003-07-01 | AF22: Date | AG22: 7 | AH22: 8 | AI22: 9 | AJ22: 10 | AK22: 11 | AL22: 12 | AM22: 13 | AN22: Total | AO22: =AT$2 -> 2003-08-01 | AP22: Date | AQ22: =IF((AW4+1)<=31,AW4+1,"") -> 5 | AR22: =IF((AW4+2)<=31,AW4+2,"") -> 6 | AS22: =IF((AW4+3)<=31,AW4+3,"") -> 7 | AT22: =IF((AW4+4)<=31,AW4+4,"") -> 8 | AU22: =IF((AW4+5)<=31,AW4+5,"") -> 9 | AV22: =IF((AW4+6)<=31,AW4+6,"") -> 10 | AW22: =IF((AW4+7)<=31,AW4+7,"") -> 11 | AX22: Total
B23: Day | C23: Mon | D23: Tue | E23: Wed | F23: Thu | G23: Fri | H23: Sat | I23: Sun | J23: Hours | L23: Day | M23: Mon | N23: Tue | O23: Wed | P23: Thu | Q23: Fri | R23: Sat | S23: Sun | T23: Hours | V23: Day | W23: Mon | X23: Tue | Y23: Wed | Z23: Thu | AA23: Fri | AB23: Sat | AC23: Sun | AD23: Hours | AF23: Day | AG23: Mon | AH23: Tue | AI23: Wed | AJ23: Thu | AK23: Fri | AL23: Sat | AM23: Sun | AN23: Hours | AP23: Day | AQ23: Mon | AR23: Tue | AS23: Wed | AT23: Thu | AU23: Fri | AV23: Sat | AW23: Sun | AX23: Hours
A24: Main Pool | B24: Junior Hrs | J24: =SUM(C24:I24) -> 0 | K24: Main Pool | L24: Junior Hrs | T24: =SUM(M24:S24) -> 0 | U24: Main Pool | V24: Junior Hrs | AD24: =SUM(W24:AC24) -> 0 | AE24: Main Pool | AF24: Junior Hrs | AN24: =SUM(AG24:AM24) -> 0 | AO24: Main Pool | AP24: Junior Hrs | AX24: =SUM(AQ24:AW24) -> 0
B25: Time | L25: Time | V25: Time | AF25: Time | AP25: Time
B26: Junior Hrs | H26: 1 | I26: 1 | J26: =SUM(C26:I26) -> 2 | L26: Junior Hrs | R26: 1 | S26: 1 | T26: =SUM(M26:S26) -> 2 | V26: Junior Hrs | AB26: 1 | AC26: 1 | AD26: =SUM(W26:AC26) -> 2 | AF26: Junior Hrs | AL26: 1 | AM26: 1 | AN26: =SUM(AG26:AM26) -> 2 | AP26: Junior Hrs
B27: Time | H27: 8-9.00am | I27: 8-9am | L27: Time | R27: 8-9.00am | S27: 8-9am | V27: Time | AB27: 8-9.00am | AC27: 8-9am | AF27: Time | AL27: 8-9.00am | AM27: 8-9am | AP27: Time
B28: Junior Hrs | D28: 2.5 | G28: 3.25 | H28: 1 | J28: =SUM(C28:I28) -> 6.75 | L28: Junior Hrs | N28: 2.5 | Q28: 3 | R28: 1 | S28: 4.5 | T28: =SUM(M28:S28) -> 11 | V28: Junior Hrs | X28: 2.5 | AA28: 3 | AB28: 1 | AC28: 4.5 | AD28: =SUM(W28:AC28) -> 11 | AF28: Junior Hrs | AH28: 2.5 | AK28: 3 | AL28: 1 | AM28: 4.5 | AN28: =SUM(AG28:AM28) -> 11 | AP28: Junior Hrs | AX28: =SUM(AQ28:AW28) -> 0
B29: Time | D29: 7.30-10pm | G29: 6-9.15pm | H29: 6-7.00pm | L29: Time | N29: 7.30-10pm | Q29: 6-9pm | R29: 6-7.00pm | S29: 5.30-10pm | V29: Time | X29: 7.30-10pm | AA29: 6-9pm | AB29: 6-7.00pm | AC29: 5.30-10pm | AF29: Time | AH29: 7.30-10pm | AK29: 6-9pm | AL29: 6-7.00pm | AM29: 5.30-10pm | AP29: Time
B30: Adult Hrs | F30: 1 | J30: =SUM(C30:I30) -> 1 | L30: Adult Hrs | P30: 1 | T30: =SUM(M30:S30) -> 1 | V30: Adult Hrs | Z30: 1 | AD30: =SUM(W30:AC30) -> 1 | AF30: Adult Hrs | AJ30: 1 | AN30: =SUM(AG30:AM30) -> 1 | AP30: Adult Hrs | AX30: =SUM(AQ30:AW30) -> 0
B31: Time | F31: 9-10pm | L31: Time | P31: 9-10pm | V31: Time | Z31: 9-10pm | AF31: Time | AJ31: 9-10pm | AP31: Time
A32: Small Pool | B32: Junior Hrs | D32: 2.5 | G32: 2.5 | J32: =SUM(C32:I32) -> 5 | K32: Small Pool | L32: Junior Hrs | N32: 2.5 | Q32: 2.5 | S32: 2 | T32: =SUM(M32:S32) -> 7 | U32: Small Pool | V32: Junior Hrs | X32: 2.5 | AA32: 2.5 | AC32: 2 | AD32: =SUM(W32:AC32) -> 7 | AE32: Small Pool | AF32: Junior Hrs | AH32: 2.5 | AK32: 2.5 | AM32: 2 | AN32: =SUM(AG32:AM32) -> 7 | AO32: Small Pool | AP32: Junior Hrs | AX32: =SUM(AQ32:AW32) -> 0
B33: Time | D33: 6-8.30pm | G33: 6-8.30pm | L33: Time | N33: 6-8.30pm | Q33: 6-8.30pm | S33: 5.30-7.30 | V33: Time | X33: 6-8.30pm | AA33: 6-8.30pm | AC33: 5.30-7.30 | AF33: Time | AH33: 6-8.30pm | AK33: 6-8.30pm | AM33: 5.30-7.30 | AP33: Time
B34: Adult Hrs | J34: =SUM(C34:I34) -> 0 | L34: Adult Hrs | T34: =SUM(M34:S34) -> 0 | V34: Adult Hrs | AD34: =SUM(W34:AC34) -> 0 | AF34: Adult Hrs | AN34: =SUM(AG34:AM34) -> 0 | AP34: Adult Hrs | AX34: =SUM(AQ34:AW34) -> 0
B35: Time | L35: Time | V35: Time | AF35: Time | AP35: Time
A36: Practice Rm | B36: Junior Hrs | J36: =SUM(C36:I36) -> 0 | K36: Practice Rm | L36: Junior Hrs | T36: =SUM(M36:S36) -> 0 | U36: Practice Rm | V36: Junior Hrs | AD36: =SUM(W36:AC36) -> 0 | AE36: Practice Rm | AF36: Junior Hrs | AN36: =SUM(AG36:AM36) -> 0 | AO36: Practice Rm | AP36: Junior Hrs | AX36: =SUM(AQ36:AW36) -> 0
B37: Time | L37: Time | V37: Time | AF37: Time | AP37: Time
A40: =$F$2 -> 2003-04-01 | B40: Date | C40: =IF((I4+8)<=30,I4+8,"") -> 14 | D40: =IF((I4+9)<=30,I4+9,"") -> 15 | E40: =IF((I4+10)<=30,I4+10,"") -> 16 | F40: =IF((I4+11)<=30,I4+11,"") -> 17 | G40: =IF((I4+12)<=30,I4+12,"") -> 18 | H40: =IF((I4+13)<=30,I4+13,"") -> 19 | I40: =IF((I4+14)<=30,I4+14,"") -> 20 | J40: Total | K40: =$P$2 -> 2003-05-01 | L40: Date | M40: 12 | N40: 13 | O40: 14 | P40: 15 | Q40: 16 | R40: 17 | S40: 18 | T40: Total | U40: =Z$2 -> 2003-06-01 | V40: Date | W40: 9 | X40: 10 | Y40: 11 | Z40: 12 | AA40: 13 | AB40: 14 | AC40: 15 | AD40: Total | AE40: =AJ$2 -> 2003-07-01 | AF40: Date | AG40: 14 | AH40: 15 | AI40: 16 | AJ40: 17 | AK40: 18 | AL40: 19 | AM40: 20 | AN40: Total | AO40: =AT$2 -> 2003-08-01 | AP40: Date | AQ40: =IF((AW4+8)<=31,AW4+8,"") -> 12 | AR40: =IF((AW4+9)<=31,AW4+9,"") -> 13 | AS40: =IF((AW4+10)<=31,AW4+10,"") -> 14 | AT40: =IF((AW4+11)<=31,AW4+11,"") -> 15 | AU40: =IF((AW4+12)<=31,AW4+12,"") -> 16 | AV40: =IF((AW4+13)<=31,AW4+13,"") -> 17 | AW40: =IF((AW4+14)<=31,AW4+14,"") -> 18 | AX40: Total
B41: Day | C41: Mon | D41: Tue | E41: Wed | F41: Thu | G41: Fri | H41: Sat | I41: Sun | J41: Hours | L41: Day | M41: Mon | N41: Tue | O41: Wed | P41: Thu | Q41: Fri | R41: Sat | S41: Sun | T41: Hours | V41: Day | W41: Mon | X41: Tue | Y41: Wed | Z41: Thu | AA41: Fri | AB41: Sat | AC41: Sun | AD41: Hours | AF41: Day | AG41: Mon | AH41: Tue | AI41: Wed | AJ41: Thu | AK41: Fri | AL41: Sat | AM41: Sun | AN41: Hours | AP41: Day | AQ41: Mon | AR41: Tue | AS41: Wed | AT41: Thu | AU41: Fri | AV41: Sat | AW41: Sun | AX41: Hours
A42: Main Pool | B42: Junior Hrs | J42: =SUM(C42:I42) -> 0 | K42: Main Pool | L42: Junior Hrs | T42: =SUM(M42:S42) -> 0 | U42: Main Pool | V42: Junior Hrs | AD42: =SUM(W42:AC42) -> 0 | AE42: Main Pool | AF42: Junior Hrs | AN42: =SUM(AG42:AM42) -> 0 | AO42: Main Pool | AP42: Junior Hrs | AX42: =SUM(AQ42:AW42) -> 0
B43: Time | L43: Time | V43: Time | AF43: Time | AP43: Time
B44: Junior Hrs | H44: 1 | I44: 1 | J44: =SUM(C44:I44) -> 2 | L44: Junior Hrs | R44: 1 | S44: 1 | T44: =SUM(M44:S44) -> 2 | V44: Junior Hrs | AB44: 1 | AC44: 1 | AD44: =SUM(W44:AC44) -> 2 | AF44: Junior Hrs | AL44: 1 | AM44: 1 | AN44: =SUM(AG44:AM44) -> 2 | AP44: Junior Hrs
B45: Time | H45: 8-9.00am | I45: 8-9am | L45: Time | R45: 8-9.00am | S45: 8-9am | V45: Time | AB45: 8-9.00am | AC45: 8-9am | AF45: Time | AL45: 8-9.00am | AM45: 8-9am | AP45: Time
B46: Junior Hrs | D46: 1 | H46: 1 | I46: 4.5 | J46: =SUM(C46:I46) -> 6.5 | L46: Junior Hrs | N46: 2.5 | Q46: 3 | R46: 1 | S46: 4.5 | T46: =SUM(M46:S46) -> 11 | V46: Junior Hrs | X46: 2.5 | AA46: 3 | AB46: 1 | AC46: 4.5 | AD46: =SUM(W46:AC46) -> 11 | AF46: Junior Hrs | AH46: 2.5 | AK46: 3 | AL46: 1 | AM46: 4.5 | AN46: =SUM(AG46:AM46) -> 11 | AP46: Junior Hrs | AX46: =SUM(AQ46:AW46) -> 0
B47: Time | D47: 9-10pm | H47: 6-7pm | I47: 5.30-10pm | L47: Time | N47: 7.30-10pm | Q47: 6-9pm | R47: 6-7.00pm | S47: 5.30-10pm | V47: Time | X47: 7.30-10pm | AA47: 6-9pm | AB47: 6-7.00pm | AC47: 5.30-10pm | AF47: Time | AH47: 7.30-10pm | AK47: 6-9pm | AL47: 6-7.00pm | AM47: 5.30-10pm | AP47: Time
B48: Adult Hrs | F48: 1 | J48: =SUM(C48:I48) -> 1 | L48: Adult Hrs | P48: 1 | T48: =SUM(M48:S48) -> 1 | V48: Adult Hrs | Z48: 1 | AD48: =SUM(W48:AC48) -> 1 | AF48: Adult Hrs | AJ48: 1 | AN48: =SUM(AG48:AM48) -> 1 | AP48: Adult Hrs | AX48: =SUM(AQ48:AW48) -> 0
B49: Time | F49: 9-10pm | L49: Time | P49: 9-10pm | V49: Time | Z49: 9-10pm | AF49: Time | AJ49: 9-10pm | AP49: Time
A50: Small Pool | B50: Junior Hrs | J50: =SUM(C50:I50) -> 0 | K50: Small Pool | L50: Junior Hrs | N50: 2.5 | Q50: 2.5 | S50: 2 | T50: =SUM(M50:S50) -> 7 | U50: Small Pool | V50: Junior Hrs | X50: 2.5 | AA50: 2.5 | AC50: 2 | AD50: =SUM(W50:AC50) -> 7 | AE50: Small Pool | AF50: Junior Hrs | AH50: 2.5 | AK50: 2.5 | AN50: =SUM(AG50:AM50) -> 5 | AO50: Small Pool | AP50: Junior Hrs | AX50: =SUM(AQ50:AW50) -> 0
B51: Time | L51: Time | N51: 6-8.30pm | Q51: 6-8.30pm | S51: 5.30-7.30 | V51: Time | X51: 6-8.30pm | AA51: 6-8.30pm | AC51: 5.30-7.30 | AF51: Time | AH51: 6-8.30pm | AK51: 6-8.30pm | AP51: Time
B52: Adult Hrs | J52: =SUM(C52:I52) -> 0 | L52: Adult Hrs | T52: =SUM(M52:S52) -> 0 | V52: Adult Hrs | AD52: =SUM(W52:AC52) -> 0 | AF52: Adult Hrs | AN52: =SUM(AG52:AM52) -> 0 | AP52: Adult Hrs | AX52: =SUM(AQ52:AW52) -> 0
B53: Time | L53: Time | V53: Time | AF53: Time | AP53: Time
A54: Practice Rm | B54: Junior Hrs | J54: =SUM(C54:I54) -> 0 | K54: Practice Rm | L54: Junior Hrs | T54: =SUM(M54:S54) -> 0 | U54: Practice Rm | V54: Junior Hrs | AD54: =SUM(W54:AC54) -> 0 | AE54: Practice Rm | AF54: Junior Hrs | AN54: =SUM(AG54:AM54) -> 0 | AO54: Practice Rm | AP54: Junior Hrs | AX54: =SUM(AQ54:AW54) -> 0
B55: Time | L55: Time | V55: Time | AF55: Time | AP55: Time
A58: =$F$2 -> 2003-04-01 | B58: Date | C58: =IF((I4+15)<=30,I4+15,"") -> 21 | D58: =IF((I4+16)<=30,I4+16,"") -> 22 | E58: =IF((I4+17)<=30,I4+17,"") -> 23 | F58: =IF((I4+18)<=30,I4+18,"") -> 24 | G58: =IF((I4+19)<=30,I4+19,"") -> 25 | H58: =IF((I4+20)<=30,I4+20,"") -> 26 | I58: =IF((I4+21)<=30,I4+21,"") -> 27 | J58: Total | K58: =$P$2 -> 2003-05-01 | L58: Date | M58: 19 | N58: 20 | O58: 21 | P58: 22 | Q58: 23 | R58: 24 | S58: 25 | T58: Total | U58: =Z$2 -> 2003-06-01 | V58: Date | W58: 16 | X58: 17 | Y58: 18 | Z58: 19 | AA58: 20 | AB58: 21 | AC58: 22 | AD58: Total | AE58: =AJ$2 -> 2003-07-01 | AF58: Date | AG58: 21 | AH58: 22 | AI58: 23 | AJ58: 24 | AK58: 25 | AL58: 26 | AM58: 27 | AN58: Total | AO58: =AT$2 -> 2003-08-01 | AP58: Date | AQ58: =IF((AW4+15)<=31,AW4+15,"") -> 19 | AR58: =IF((AW4+16)<=31,AW4+16,"") -> 20 | AS58: =IF((AW4+17)<=31,AW4+17,"") -> 21 | AT58: =IF((AW4+18)<=31,AW4+18,"") -> 22 | AU58: =IF((AW4+19)<=31,AW4+19,"") -> 23 | AV58: =IF((AW4+20)<=31,AW4+20,"") -> 24 | AW58: =IF((AW4+21)<=31,AW4+21,"") -> 25 | AX58: Total
B59: Day | C59: Mon | D59: Tue | E59: Wed | F59: Thu | G59: Fri | H59: Sat | I59: Sun | J59: Hours | L59: Day | M59: Mon | N59: Tue | O59: Wed | P59: Thu | Q59: Fri | R59: Sat | S59: Sun | T59: Hours | V59: Day | W59: Mon | X59: Tue | Y59: Wed | Z59: Thu | AA59: Fri | AB59: Sat | AC59: Sun | AD59: Hours | AF59: Day | AG59: Mon | AH59: Tue | AI59: Wed | AJ59: Thu | AK59: Fri | AL59: Sat | AM59: Sun | AN59: Hours | AP59: Day | AQ59: Mon | AR59: Tue | AS59: Wed | AT59: Thu | AU59: Fri | AV59: Sat | AW59: Sun | AX59: Hours
A60: Main Pool | B60: Junior Hrs | J60: =SUM(C60:I60) -> 0 | K60: Main Pool | L60: Junior Hrs | T60: =SUM(M60:S60) -> 0 | U60: Main Pool | V60: Junior Hrs | AD60: =SUM(W60:AC60) -> 0 | AE60: Main Pool | AF60: Junior Hrs | AN60: =SUM(AG60:AM60) -> 0 | AO60: Main Pool | AP60: Junior Hrs | AX60: =SUM(AQ60:AW60) -> 0
B61: Time | L61: Time | V61: Time | AF61: Time | AP61: Time
B62: Junior Hrs | H62: 1 | I62: 1 | J62: =SUM(C62:I62) -> 2 | L62: Junior Hrs | R62: 1 | S62: 1 | T62: =SUM(M62:S62) -> 2 | V62: Junior Hrs | AB62: 1 | AC62: 1 | AD62: =SUM(W62:AC62) -> 2 | AF62: Junior Hrs | AL62: 1 | AM62: 1 | AN62: =SUM(AG62:AM62) -> 2 | AP62: Junior Hrs
B63: Time | H63: 8-9.00am | I63: 8-9am | L63: Time | R63: 8-9.00am | S63: 8-9am | V63: Time | AB63: 8-9.00am | AC63: 8-9am | AF63: Time | AL63: 8-9.00am | AM63: 8-9am | AP63: Time
B64: Junior Hrs | D64: 2.5 | G64: 3 | H64: 1 | I64: 4.5 | J64: =SUM(C64:I64) -> 11 | L64: Junior Hrs | N64: 2.5 | Q64: 3 | R64: 1 | S64: 4.5 | T64: =SUM(M64:S64) -> 11 | V64: Junior Hrs | X64: 2.5 | AA64: 3 | AB64: 1 | AC64: 4.5 | AD64: =SUM(W64:AC64) -> 11 | AF64: Junior Hrs | AH64: 2.5 | AK64: 1.5 | AL64: 1 | AM64: 3.25 | AN64: =SUM(AG64:AM64) -> 8.25 | AP64: Junior Hrs | AX64: =SUM(AQ64:AW64) -> 0
B65: Time | D65: 7.30-10pm | G65: 6-9pm | H65: 6-7pm | I65: 5.30-10pm | L65: Time | N65: 7.30-10pm | Q65: 6-9pm | R65: 6-7.00pm | S65: 5.30-10pm | V65: Time | X65: 7.30-10pm | AA65: 6-9pm | AB65: 6-7.00pm | AC65: 5.30-10pm | AF65: Time | AH65: 7.30-10pm | AK65: 7.30-9pm | AL65: 6-7.00pm | AM65: 6.45-10pm | AP65: Time
B66: Adult Hrs | J66: =SUM(C66:I66) -> 0 | L66: Adult Hrs | P66: 1 | T66: =SUM(M66:S66) -> 1 | V66: Adult Hrs | Z66: 1 | AD66: =SUM(W66:AC66) -> 1 | AF66: Adult Hrs | AJ66: 1 | AN66: =SUM(AG66:AM66) -> 1 | AP66: Adult Hrs | AX66: =SUM(AQ66:AW66) -> 0
B67: Time | L67: Time | P67: 9-10pm | V67: Time | Z67: 9-10pm | AF67: Time | AJ67: 9-10pm | AP67: Time
A68: Small Pool | B68: Junior Hrs | I68: 2 | J68: =SUM(C68:I68) -> 2 | K68: Small Pool | L68: Junior Hrs | N68: 2.5 | Q68: 2.5 | S68: 2 | T68: =SUM(M68:S68) -> 7 | U68: Small Pool | V68: Junior Hrs | X68: 2.5 | AA68: 2.5 | AC68: 2 | AD68: =SUM(W68:AC68) -> 7 | AE68: Small Pool | AF68: Junior Hrs | AN68: =SUM(AG68:AM68) -> 0 | AO68: Small Pool | AP68: Junior Hrs | AX68: =SUM(AQ68:AW68) -> 0
B69: Time | I69: 5.30-7.30pm | L69: Time | N69: 6-8.30pm | Q69: 6-8.30pm | S69: 5.30-7.30 | V69: Time | X69: 6-8.30pm | AA69: 6-8.30pm | AC69: 5.30-7.30 | AF69: Time | AP69: Time
B70: Adult Hrs | J70: =SUM(C70:I70) -> 0 | L70: Adult Hrs | T70: =SUM(M70:S70) -> 0 | V70: Adult Hrs | AD70: =SUM(W70:AC70) -> 0 | AF70: Adult Hrs | AN70: =SUM(AG70:AM70) -> 0 | AP70: Adult Hrs | AX70: =SUM(AQ70:AW70) -> 0
B71: Time | L71: Time | V71: Time | AF71: Time | AP71: Time
A72: Practice Rm | B72: Junior Hrs | J72: =SUM(C72:I72) -> 0 | K72: Practice Rm | L72: Junior Hrs | T72: =SUM(M72:S72) -> 0 | U72: Practice Rm | V72: Junior Hrs | AD72: =SUM(W72:AC72) -> 0 | AE72: Practice Rm | AF72: Junior Hrs | AN72: =SUM(AG72:AM72) -> 0 | AO72: Practice Rm | AP72: Junior Hrs | AX72: =SUM(AQ72:AW72) -> 0
B73: Time | L73: Time | V73: Time | AF73: Time | AP73: Time
A76: =$F$2 -> 2003-04-01 | B76: Date | C76: =IF((I4+22)<=30,I4+22,"") -> 28 | D76: =IF((I4+23)<=30,I4+23,"") -> 29 | E76: =IF((I4+24)<=30,I4+24,"") -> 30 | F76: =IF((I4+25)<=30,I4+25,"") ->  | G76: =IF((I4+26)<=30,I4+26,"") ->  | H76: =IF((I4+27)<=30,I4+27,"") ->  | I76: =IF((I4+28)<=30,I4+28,"") ->  | J76: Total | K76: =$P$2 -> 2003-05-01 | L76: Date | M76: 26 | N76: 27 | O76: 28 | P76: 29 | Q76: 30 | R76: 31 | T76: Total | U76: =Z$2 -> 2003-06-01 | V76: Date | W76: 23 | X76: 24 | Y76: 25 | Z76: 26 | AA76: 27 | AB76: 28 | AC76: 29 | AD76: Total | AE76: =AJ$2 -> 2003-07-01 | AF76: Date | AG76: 28 | AH76: 29 | AI76: 30 | AJ76: 31 | AN76: Total | AO76: =AT$2 -> 2003-08-01 | AP76: Date | AQ76: =IF((AW4+22)<=31,AW4+22,"") -> 26 | AR76: =IF((AW4+23)<=31,AW4+23,"") -> 27 | AS76: =IF((AW4+24)<=31,AW4+24,"") -> 28 | AT76: =IF((AW4+25)<=31,AW4+25,"") -> 29 | AU76: =IF((AW4+26)<=31,AW4+26,"") -> 30 | AV76: =IF((AW4+27)<=31,AW4+27,"") -> 31 | AW76: =IF((AW4+28)<=31,AW4+28,"") ->  | AX76: Total
B77: Day | C77: Mon | D77: Tue | E77: Wed | F77: Thu | G77: Fri | H77: Sat | I77: Sun | J77: Hours | L77: Day | M77: Mon | N77: Tue | O77: Wed | P77: Thu | Q77: Fri | R77: Sat | T77: Hours | V77: Day | W77: Mon | X77: Tue | Y77: Wed | Z77: Thu | AA77: Fri | AB77: Sat | AC77: Sun | AD77: Hours | AF77: Day | AG77: Mon | AH77: Tue | AI77: Wed | AJ77: Thu | AN77: Hours | AP77: Day | AQ77: Mon | AR77: Tue | AS77: Wed | AT77: Thu | AU77: Fri | AV77: Sat | AW77: Sun | AX77: Hours
A78: Main Pool | B78: Junior Hrs | J78: =SUM(C78:I78) -> 0 | K78: Main Pool | L78: Junior Hrs | T78: =SUM(M78:S78) -> 0 | U78: Main Pool | V78: Junior Hrs | AD78: =SUM(W78:AC78) -> 0 | AE78: Main Pool | AF78: Junior Hrs | AN78: =SUM(AG78:AM78) -> 0 | AO78: Main Pool | AP78: Junior Hrs | AX78: =SUM(AQ78:AW78) -> 0
B79: Time | L79: Time | V79: Time | AF79: Time | AP79: Time
B80: Junior Hrs | J80: =SUM(C80:I80) -> 0 | L80: Junior Hrs | R80: 1 | T80: =SUM(M80:S80) -> 1 | V80: Junior Hrs | AB80: 1 | AC80: 1 | AD80: =SUM(W80:AC80) -> 2 | AF80: Junior Hrs | AN80: =SUM(AG80:AM80) -> 0 | AP80: Junior Hrs | AX80: =SUM(AQ80:AW80) -> 0
B81: Time | L81: Time | R81: 8-9.00am | V81: Time | AB81: 8-9.00am | AC81: 8-9am | AF81: Time | AP81: Time
B82: Junior Hrs | D82: 2.5 | J82: =SUM(C82:I82) -> 2.5 | L82: Junior Hrs | N82: 2.5 | Q82: 3 | R82: 1 | T82: =SUM(M82:S82) -> 6.5 | V82: Junior Hrs | X82: 2.5 | AA82: 3 | AC82: 4.5 | AD82: =SUM(W82:AC82) -> 10 | AF82: Junior Hrs | AH82: 2.5 | AN82: =SUM(AG82:AM82) -> 2.5 | AP82: Junior Hrs | AX82: =SUM(AQ82:AW82) -> 0
B83: Time | D83: 7.30-10pm | L83: Time | N83: 7.30-10pm | Q83: 6-9pm | R83: 6-7.00pm | V83: Time | X83: 7.30-10pm | AA83: 6-9pm | AC83: 5.30-10pm | AF83: Time | AH83: 7.30-10pm | AP83: Time
B84: Adult Hrs | J84: =SUM(C84:I84) -> 0 | L84: Adult Hrs | P84: 1 | T84: =SUM(M84:S84) -> 1 | V84: Adult Hrs | Z84: 1 | AD84: =SUM(W84:AC84) -> 1 | AF84: Adult Hrs | AN84: =SUM(AG84:AM84) -> 0 | AP84: Adult Hrs | AX84: =SUM(AQ84:AW84) -> 0
B85: Time | L85: Time | P85: 9-10pm | V85: Time | Z85: 9-10pm | AF85: Time | AP85: Time
A86: Small Pool | B86: Junior Hrs | D86: 2.5 | J86: =SUM(C86:I86) -> 2.5 | K86: Small Pool | L86: Junior Hrs | N86: 2.5 | Q86: 2.5 | T86: =SUM(M86:S86) -> 5 | U86: Small Pool | V86: Junior Hrs | X86: 2.5 | AA86: 2.5 | AC86: 2 | AD86: =SUM(W86:AC86) -> 7 | AE86: Small Pool | AF86: Junior Hrs | AN86: =SUM(AG86:AM86) -> 0 | AO86: Small Pool | AP86: Junior Hrs | AX86: =SUM(AQ86:AW86) -> 0
B87: Time | D87: 6-8.30pm | L87: Time | N87: 6-8.30pm | Q87: 6-8.30pm | V87: Time | X87: 6-8.30pm | AA87: 6-8.30pm | AC87: 5.30-7.30 | AF87: Time | AP87: Time
B88: Adult Hrs | J88: =SUM(C88:I88) -> 0 | L88: Adult Hrs | T88: =SUM(M88:S88) -> 0 | V88: Adult Hrs | AD88: =SUM(W88:AC88) -> 0 | AF88: Adult Hrs | AN88: =SUM(AG88:AM88) -> 0 | AP88: Adult Hrs | AX88: =SUM(AQ88:AW88) -> 0
B89: Time | L89: Time | V89: Time | AF89: Time | AP89: Time
A90: Practice Rm | B90: Junior Hrs | J90: =SUM(C90:I90) -> 0 | K90: Practice Rm | L90: Junior Hrs | T90: =SUM(M90:S90) -> 0 | U90: Practice Rm | V90: Junior Hrs | AD90: =SUM(W90:AC90) -> 0 | AE90: Practice Rm | AF90: Junior Hrs | AN90: =SUM(AG90:AM90) -> 0 | AO90: Practice Rm | AP90: Junior Hrs | AX90: =SUM(AQ90:AW90) -> 0
B91: Time | L91: Time | V91: Time | AF91: Time | AP91: Time
A94: =$F$2 -> 2003-04-01 | B94: Date | C94: =IF((I4+29)<=30,I4+29,"") ->  | D94: =IF((I4+30)<=30,I4+30,"") ->  | E94: =IF((I4+31)<=30,I4+31,"") ->  | F94: =IF((I4+32)<=30,I4+32,"") ->  | G94: =IF((I4+33)<=30,I4+33,"") ->  | H94: =IF((I4+34)<=30,I4+34,"") ->  | I94: =IF((I4+35)<=30,I4+35,"") ->  | J94: Total | K94: =$P$2 -> 2003-05-01 | L94: Date | M94: =IF((S4+29)<=31,S4+29,"") ->  | N94: =IF((S4+30)<=31,S4+30,"") ->  | O94: =IF((S4+31)<=31,S4+31,"") ->  | P94: =IF((S4+32)<=31,S4+32,"") ->  | Q94: =IF((S4+33)<=31,S4+33,"") ->  | R94: =IF((S4+34)<=31,S4+34,"") ->  | S94: =IF((S4+35)<=31,S4+35,"") ->  | T94: Total | U94: =Z$2 -> 2003-06-01 | V94: Date | W94: =IF((AC4+29)<=30,AC4+29,"") -> 30 | X94: =IF((AC4+30)<=30,AC4+30,"") ->  | Y94: =IF((AC4+31)<=30,AC4+31,"") ->  | Z94: =IF((AC4+32)<=30,AC4+32,"") ->  | AA94: =IF((AC4+33)<=30,AC4+33,"") ->  | AB94: =IF((AC4+34)<=30,AC4+34,"") ->  | AC94: =IF((AC4+35)<=30,AC4+35,"") ->  | AD94: Total | AE94: =AJ$2 -> 2003-07-01 | AF94: Date | AG94: =IF((AM4+29)<=31,AM4+29,"") ->  | AH94: =IF((AM4+30)<=31,AM4+30,"") ->  | AI94: =IF((AM4+31)<=31,AM4+31,"") ->  | AJ94: =IF((AM4+32)<=31,AM4+32,"") ->  | AK94: =IF((AM4+33)<=31,AM4+33,"") ->  | AL94: =IF((AM4+34)<=31,AM4+34,"") ->  | AM94: =IF((AM4+35)<=31,AM4+35,"") ->  | AN94: Total | AO94: =AT$2 -> 2003-08-01 | AP94: Date | AQ94: =IF((AW4+29)<=31,AW4+29,"") ->  | AR94: =IF((AW4+30)<=31,AW4+30,"") ->  | AS94: =IF((AW4+31)<=31,AW4+31,"") ->  | AT94: =IF((AW4+32)<=31,AW4+32,"") ->  | AU94: =IF((AW4+33)<=31,AW4+33,"") ->  | AV94: =IF((AW4+34)<=31,AW4+34,"") ->  | AW94: =IF((AW4+35)<=31,AW4+35,"") ->  | AX94: Total
B95: Day | C95: Mon | D95: Tue | E95: Wed | F95: Thu | G95: Fri | H95: Sat | I95: Sun | J95: Hours | L95: Day | M95: Mon | N95: Tue | O95: Wed | P95: Thu | Q95: Fri | R95: Sat | S95: Sun | T95: Hours | V95: Day | W95: Mon | X95: Tue | Y95: Wed | Z95: Thu | AA95: Fri | AB95: Sat | AC95: Sun | AD95: Hours | AF95: Day | AG95: Mon | AH95: Tue | AI95: Wed | AJ95: Thu | AK95: Fri | AL95: Sat | AM95: Sun | AN95: Hours | AP95: Day | AQ95: Mon | AR95: Tue | AS95: Wed | AT95: Thu | AU95: Fri | AV95: Sat | AW95: Sun | AX95: Hours
A96: Main Pool | B96: Junior Hrs | J96: =SUM(C96:I96) -> 0 | K96: Main Pool | L96: Junior Hrs | T96: =SUM(M96:S96) -> 0 | U96: Main Pool | V96: Junior Hrs | AD96: =SUM(W96:AC96) -> 0 | AE96: Main Pool | AF96: Junior Hrs | AN96: =SUM(AG96:AM96) -> 0 | AO96: Main Pool | AP96: Junior Hrs | AX96: =SUM(AQ96:AW96) -> 0
B97: Time | L97: Time | V97: Time | AF97: Time | AP97: Time
B98: Junior Hrs | J98: =SUM(C98:I98) -> 0 | L98: Junior Hrs | T98: =SUM(M98:S98) -> 0 | V98: Junior Hrs | AD98: =SUM(W98:AC98) -> 0 | AF98: Junior Hrs | AN98: =SUM(AG98:AM98) -> 0 | AP98: Junior Hrs | AX98: =SUM(AQ98:AW98) -> 0
B99: Time | L99: Time | V99: Time | AF99: Time | AP99: Time
B100: Junior Hrs | J100: =SUM(C100:I100) -> 0 | L100: Junior Hrs | T100: =SUM(M100:S100) -> 0 | V100: Junior Hrs | AD100: =SUM(W100:AC100) -> 0 | AF100: Junior Hrs | AN100: =SUM(AG100:AM100) -> 0 | AP100: Junior Hrs | AX100: =SUM(AQ100:AW100) -> 0
B101: Time | L101: Time | V101: Time | AF101: Time | AP101: Time
B102: Adult Hrs | J102: =SUM(C102:I102) -> 0 | L102: Adult Hrs | T102: =SUM(M102:S102) -> 0 | V102: Adult Hrs | AD102: =SUM(W102:AC102) -> 0 | AF102: Adult Hrs | AN102: =SUM(AG102:AM102) -> 0 | AP102: Adult Hrs | AX102: =SUM(AQ102:AW102) -> 0
B103: Time | L103: Time | V103: Time | AF103: Time | AP103: Time
A104: Small Pool | B104: Junior Hrs | J104: =SUM(C104:I104) -> 0 | K104: Small Pool | L104: Junior Hrs | T104: =SUM(M104:S104) -> 0 | U104: Small Pool | V104: Junior Hrs | AD104: =SUM(W104:AC104) -> 0 | AE104: Small Pool | AF104: Junior Hrs | AN104: =SUM(AG104:AM104) -> 0 | AO104: Small Pool | AP104: Junior Hrs | AX104: =SUM(AQ104:AW104) -> 0
B105: Time | L105: Time | V105: Time | AF105: Time | AP105: Time
B106: Junior Hrs | J106: =SUM(C106:I106) -> 0 | L106: Junior Hrs | T106: =SUM(M106:S106) -> 0 | V106: Adult Hrs | AD106: =SUM(W106:AC106) -> 0 | AF106: Adult Hrs | AN106: =SUM(AG106:AM106) -> 0 | AP106: Junior Hrs | AX106: =SUM(AQ106:AW106) -> 0
B107: Time | L107: Time | V107: Time | AF107: Time | AP107: Time
A108: Practice Rm | B108: Junior Hrs | J108: =SUM(C108:I108) -> 0 | K108: Practice Rm | L108: Junior Hrs | T108: =SUM(M108:S108) -> 0 | U108: Practice Rm | V108: Junior Hrs | AD108: =SUM(W108:AC108) -> 0 | AE108: Practice Rm | AF108: Junior Hrs | AN108: =SUM(AG108:AM108) -> 0 | AO108: Practice Rm | AP108: Junior Hrs | AX108: =SUM(AQ108:AW108) -> 0
B109: Time | L109: Time | V109: Time | AF109: Time | AP109: Time

Sheet PoolHire(Sep - Mar) (hidden)
A1: STRETFORD AMATEUR SWIMMING CLUB | K1: STRETFORD AMATEUR SWIMMING CLUB | U1: STRETFORD AMATEUR SWIMMING CLUB | AE1: STRETFORD AMATEUR SWIMMING CLUB | AO1: STRETFORD AMATEUR SWIMMING CLUB | AY1: STRETFORD AMATEUR SWIMMING CLUB | BI1: STRETFORD AMATEUR SWIMMING CLUB | BS1: STRETFORD AMATEUR SWIMMING CLUB
E2: POOL HIRE | F2: 2003-09-01 | O2: POOL HIRE | P2: 2003-10-01 | Y2: POOL HIRE | Z2: 2003-11-01 | AI2: POOL HIRE | AJ2: 2003-12-01 | AS2: POOL HIRE | AT2: 2004-01-01 | BC2: POOL HIRE | BD2: 2004-02-01 | BM2: POOL HIRE | BN2: 2004-03-01 | BT2: September 2002-March 2003 | CA2: 2003
A4: =$F$2 -> 2003-09-01 | B4: Date | C4: 1 | D4: 2 | E4: 3 | F4: 4 | G4: 5 | H4: 6 | I4: 7 | J4: Total | K4: =$P$2 -> 2003-10-01 | L4: Date | O4: 1 | P4: 2 | Q4: 3 | R4: 4 | S4: 5 | T4: Total | U4: =$Z$2 -> 2003-11-01 | V4: Date | AB4: 1 | AC4: 2 | AD4: Total | AE4: =$AJ$2 -> 2003-12-01 | AF4: Date | AG4: 1 | AH4: 2 | AI4: 3 | AJ4: 4 | AK4: 5 | AL4: 6 | AM4: 7 | AN4: Total | AO4: =$AT$2 -> 2004-01-01 | AP4: Date | AT4: 1 | AU4: 2 | AV4: 3 | AW4: 4 | AX4: Total | AY4: =$BD$2 -> 2004-02-01 | AZ4: Date | BG4: 1 | BH4: Total | BI4: =$BN$2 -> 2004-03-01 | BJ4: Date | BK4: 1 | BL4: 2 | BM4: 3 | BN4: 4 | BO4: 5 | BP4: 6 | BQ4: 7 | BR4: Total | BT4: Year | BU4: 2002 | BV4: 2002 | BW4: =BU4 -> 2002 | BX4: =BU4 -> 2002 | BY4: =BU4+1 -> 2003 | BZ4: =BU4+1 -> 2003 | CA4: =BU4+1 -> 2003 | CB4: Total
B5: Day | C5: Mon | D5: Tue | E5: Wed | F5: Thu | G5: Fri | H5: Sat | I5: Sun | J5: Hours | L5: Day | M5: Mon | N5: Tue | O5: Wed | P5: Thu | Q5: Fri | R5: Sat | S5: Sun | T5: Hours | V5: Day | W5: Mon | X5: Tue | Y5: Wed | Z5: Thu | AA5: Fri | AB5: Sat | AC5: Sun | AD5: Hours | AF5: Day | AG5: Mon | AH5: Tue | AI5: Wed | AJ5: Thu | AK5: Fri | AL5: Sat | AM5: Sun | AN5: Hours | AP5: Day | AQ5: Mon | AR5: Tue | AS5: Wed | AT5: Thu | AU5: Fri | AV5: Sat | AW5: Sun | AX5: Hours | AZ5: Day | BA5: Mon | BB5: Tue | BC5: Wed | BD5: Thu | BE5: Fri | BF5: Sat | BG5: Sun | BH5: Hours | BJ5: Day | BK5: Mon | BL5: Tue | BM5: Wed | BN5: Thu | BO5: Fri | BP5: Sat | BQ5: Sun | BR5: Hours | BT5: Month | BU5: Sep | BV5: Oct | BW5: Nov | BX5: Dec | BY5: Jan | BZ5: Feb | CA5: Mar | CB5: Hours
A6: Main Pool | B6: Junior Hrs | J6: =SUM(C6:I6) -> 0 | K6: Main Pool | L6: Junior Hrs | T6: =SUM(M6:S6) -> 0 | U6: Main Pool | V6: Junior Hrs | AD6: =SUM(W6:AC6) -> 0 | AE6: Main Pool | AF6: Junior Hrs | AN6: =SUM(AG6:AM6) -> 0 | AO6: Main Pool | AP6: Junior Hrs | AX6: =SUM(AQ6:AW6) -> 0 | AY6: Main Pool | AZ6: Junior Hrs | BH6: =SUM(BA6:BG6) -> 0 | BI6: Main Pool | BJ6: Junior Hrs | BR6: =SUM(BK6:BQ6) -> 0 | BS6: Main Pool | BT6: Junior Hrs | BU6: =SUM(J6+J24+J42+J60+J78+J96) -> 0 | BV6: =SUM(T6+T24+T42+T60+T78+T96) -> 0 | BW6: =SUM(AD6+AD24+AD42+AD60+AD78+AD96) -> 0 | BX6: =SUM(AN6+AN24+AN42+AN60+AN78+AN96) -> 0 | BY6: =SUM(AX6+AX24+AX42+AX60+AX78+AX96) -> 0 | BZ6: =SUM(BH6+BH24+BH42+BH60+BH78+BH96) -> 0 | CA6: =SUM(BR6+BR24+BR42+BR60+BR78+BR96) -> 0 | CB6: =SUM(BU6:CA6) -> 0
B7: Time | L7: Time | V7: Time | AF7: Time | AP7: Time | AZ7: Time | BJ7: Time | BT7: Cost @ £9.25 | BU7: =BU6*9 -> 0 | BV7: =BV6*9 -> 0 | BW7: 0 | BX7: 0 | BY7: 0 | BZ7: 0 | CA7: 0 | CB7: 0
B8: Junior Hrs | H8: 1 | I8: 1 | J8: =SUM(C8:I8) -> 2 | L8: Junior Hrs | R8: 1 | S8: 1 | T8: =SUM(M8:S8) -> 2 | V8: Junior Hrs | AB8: 1 | AC8: 1 | AD8: =SUM(W8:AC8) -> 2 | AF8: Junior Hrs | AL8: 1 | AM8: 1 | AN8: =SUM(AG8:AM8) -> 2 | AP8: Junior Hrs | AW8: 1 | AX8: =SUM(AQ8:AW8) -> 1 | AZ8: Junior Hrs | BG8: 1 | BH8: =SUM(BA8:BG8) -> 1 | BJ8: Junior Hrs | BP8: 1 | BQ8: 1 | BR8: =SUM(BK8:BQ8) -> 2 | BT8: Junior Hrs | BU8: =SUM(J8+J26+J44+J62+J80+J98) -> 8 | BV8: =SUM(T8+T26+T44+T62+T80+T98) -> 8 | BW8: =SUM(AD8+AD26+AD44+AD62+AD80+AD98) -> 10 | BX8: =SUM(AN8+AN26+AN44+AN62+AN80+AN98) -> 5 | BY8: =SUM(AX8+AX26+AX44+AX62+AX80+AX98) -> 8 | BZ8: =SUM(BH8+BH26+BH44+BH62+BH80+BH98) -> 9 | CA8: =SUM(BR8+BR26+BR44+BR62+BR80+BR98) -> 8 | CB8: 56
B9: Time | H9: 8-9pm | I9: 8-9pm | L9: Time | R9: 8-9am | S9: 8-9am | V9: Time | AB9: 8-9am | AC9: 8-9am | AF9: Time | AL9: 8-9am | AM9: 8-9am | AP9: Time | AW9: 8-9am | AZ9: Time | BG9: 8-9am | BJ9: Time | BP9: 8-9am | BQ9: 8-9am | BT9: Cost @ £19.00 | BU9: 171 | BV9: 152 | BW9: 152 | BX9: 95 | BY9: 152 | BZ9: 152 | CA9: 190 | CB9: 1064
B10: Junior Hrs | D10: 2.5 | G10: 3 | H10: 1 | I10: 4.5 | J10: =SUM(C10:I10) -> 11 | L10: Junior Hrs | Q10: 3 | R10: 1 | S10: 2.5 | T10: =SUM(M10:S10) -> 6.5 | V10: Junior Hrs | AB10: 1 | AC10: 4.5 | AD10: =SUM(W10:AC10) -> 5.5 | AF10: Junior Hrs | AH10: 2.5 | AK10: 3 | AL10: 3 | AM10: 4.5 | AN10: =SUM(AG10:AM10) -> 13 | AP10: Junior Hrs | AW10: 4.5 | AX10: =SUM(AQ10:AW10) -> 4.5 | AZ10: Junior Hrs | BG10: 4.5 | BH10: =SUM(BA10:BG10) -> 4.5 | BJ10: Junior Hrs | BL10: 2.5 | BO10: 3 | BP10: 1 | BQ10: 4.5 | BR10: =SUM(BK10:BQ10) -> 11 | BT10: Junior Hrs | BU10: 48.5 | BV10: 46.5 | BW10: 48 | BX10: 29 | BY10: 44 | BZ10: 44 | CA10: 48 | CB10: 308
B11: Time | D11: 7.30-10pm | G11: 6-9pm | H11: 6-7pm | I11: 5.30-10pm | L11: Time | Q11: 6-9pm | R11: 6-7pm | S11: 5.30-8pm | V11: Time | AB11: 6-7pm | AC11: 5.30-10pm | AF11: Time | AH11: 7.30-10pm | AK11: 6-9pm | AL11: 6-9pm | AM11: 5.30-10pm | AP11: Time | AW11: 5.30-10pm | AZ11: Time | BG11: 5.30-10pm | BJ11: Time | BL11: 7.30-10pm | BO11: 6-9pm | BP11: 6-7pm | BQ11: 5.30-10pm | BT11: Cost @ £19.00 | BU11: 921.5 | BV11: 883.5 | BW11: 912 | BX11: 551 | BY11: 836 | BZ11: 836 | CA11: 912 | CB11: 5852
B12: Adult Hrs | J12: =SUM(C12:I12) -> 0 | L12: Adult Hrs | P12: 1 | T12: =SUM(M12:S12) -> 1 | V12: Adult Hrs | AD12: =SUM(W12:AC12) -> 0 | AF12: Adult Hrs | AJ12: 1 | AN12: =SUM(AG12:AM12) -> 1 | AP12: Adult Hrs | AX12: =SUM(AQ12:AW12) -> 0 | AZ12: Adult Hrs | BH12: =SUM(BA12:BG12) -> 0 | BJ12: Adult Hrs | BN12: 1 | BR12: =SUM(BK12:BQ12) -> 1 | BT12: Adult Hrs | BU12: 4 | BV12: 4 | BW12: 5 | BX12: 2 | BY12: 5 | BZ12: 4 | CA12: 4 | CB12: 28
B13: Time | L13: Time | P13: 9-10pm | V13: Time | AF13: Time | AJ13: 9-10pm | AP13: Time | AZ13: Time | BJ13: Time | BN13: 9-10pm | BT13: Cost @ £36.00 | BU13: 144 | BV13: 144 | BW13: 180 | BX13: 72 | BY13: 180 | BZ13: 144 | CA13: 144 | CB13: 1008
A14: Small Pool | B14: Junior Hrs | G14: 2.5 | I14: 2 | J14: =SUM(C14:I14) -> 4.5 | K14: Small Pool | L14: Junior Hrs | Q14: 2.5 | S14: 2 | T14: =SUM(M14:S14) -> 4.5 | U14: Small Pool | V14: Junior Hrs | AC14: 2 | AD14: =SUM(W14:AC14) -> 2 | AE14: Small Pool | AF14: Junior Hrs | AH14: 2.5 | AN14: =SUM(AG14:AM14) -> 2.5 | AO14: Small Pool | AP14: Junior Hrs | AW14: 2 | AX14: =SUM(AQ14:AW14) -> 2 | AY14: Small Pool | AZ14: Junior Hrs | BG14: 2 | BH14: =SUM(BA14:BG14) -> 2 | BI14: Small Pool | BJ14: Junior Hrs | BL14: 2.5 | BO14: 2.5 | BQ14: 2 | BR14: =SUM(BK14:BQ14) -> 7 | BS14: Small Pool | BT14: Junior Hrs | BU14: =SUM(J14+J32+J50+J68+J86+J104) -> 28 | BV14: =SUM(T14+T32+T50+T68+T86+T104) -> 30.5 | BW14: =SUM(AD14+AD32+AD50+AD68+AD86+AD104) -> 30.5 | BX14: =SUM(AN14+AN32+AN50+AN68+AN86+AN104) -> 14.5 | BY14: =SUM(AX14+AX32+AX50+AX68+AX86+AX104) -> 28 | BZ14: =SUM(BH14+BH32+BH50+BH68+BH86+BH104) -> 30 | CA14: =SUM(BR14+BR32+BR50+BR68+BR86+BR104) -> 30.5 | CB14: 192
B15: Time | G15: 6-8.30pm | I15: 5.30-7.30pm | L15: Time | Q15: 6-8.30pm | S15: 5.30-7.30pm | V15: Time | AC15: 5.30-7.30pm | AF15: Time | AH15: 6-8.30pm | AP15: Time | AW15: 5.30-7.30pm | AZ15: Time | BG15: 5.30-7.30pm | BJ15: Time | BL15: 6-8.30pm | BO15: 6-8.30pm | BQ15: 5.30-7.30pm | BT15: Cost @ £18.00 | BU15: 540 | BV15: 549 | BW15: 549 | BX15: 333 | BY15: 504 | BZ15: 459 | CA15: 504 | CB15: 3438
B16: Adult Hrs | J16: =SUM(C16:I16) -> 0 | L16: Adult Hrs | T16: =SUM(M16:S16) -> 0 | V16: Adult Hrs | AD16: =SUM(W16:AC16) -> 0 | AF16: Adult Hrs | AN16: =SUM(AG16:AM16) -> 0 | AP16: Adult Hrs | AX16: =SUM(AQ16:AW16) -> 0 | AZ16: Adult Hrs | BH16: =SUM(BA16:BG16) -> 0 | BJ16: Adult Hrs | BR16: =SUM(BK16:BQ16) -> 0 | BT16: Adult Hrs | BU16: =SUM(J16+J34+J52+J70+J88+J106) -> 0 | BV16: =SUM(T16+T34+T52+T70+T88+T106) -> 0 | BW16: =SUM(AD16+AD34+AD52+AD70+AD88+AD106) -> 0 | BX16: =SUM(AN16+AN34+AN52+AN70+AN88+AN106) -> 0 | BY16: =SUM(AX16+AX34+AX52+AX70+AX88+AX106) -> 0 | BZ16: =SUM(BH16+BH34+BH52+BH70+BH88+BH106) -> 0 | CA16: =SUM(BR16+BR34+BR52+BR70+BR88+BR106) -> 0 | CB16: 0
B17: Time | L17: Time | V17: Time | AF17: Time | AP17: Time | AZ17: Time | BJ17: Time | BT17: Cost @ £25.75 | BU17: =BU16*24.5 -> 0 | BV17: =BV16*24.5 -> 0 | BW17: 0 | BX17: 0 | BY17: 0 | BZ17: 0 | CA17: 0 | CB17: 0
A18: Practice Hall | B18: Junior Hrs | J18: =SUM(C18:I18) -> 0 | K18: Practice Hall | L18: Junior Hrs | T18: =SUM(M18:S18) -> 0 | U18: Practice Hall | V18: Junior Hrs | AD18: =SUM(W18:AC18) -> 0 | AE18: Practice Hall | AF18: Junior Hrs | AN18: =SUM(AG18:AM18) -> 0 | AO18: Practice Hall | AP18: Junior Hrs | AX18: =SUM(AQ18:AW18) -> 0 | AY18: Practice Hall | AZ18: Junior Hrs | BH18: =SUM(BA18:BG18) -> 0 | BI18: Practice Hall | BJ18: Junior Hrs | BR18: =SUM(BK18:BQ18) -> 0 | BS18: Practice Hall | BT18: Junior Hrs | BU18: =SUM(J18+J36+J54+J72+J90+J108) -> 0 | BV18: =SUM(T18+T36+T54+T72+T90+T108) -> 0 | BW18: =SUM(AD18+AD36+AD54+AD72+AD90+AD108) -> 0 | BX18: =SUM(AN18+AN36+AN54+AN72+AN90+AN108) -> 0 | BY18: =SUM(AX18+AX36+AX54+AX72+AX90+AX108) -> 0 | BZ18: =SUM(BH18+BH36+BH54+BH72+BH90+BH108) -> 0 | CA18: =SUM(BR18+BR36+BR54+BR72+BR90+BR108) -> 0 | CB18: 0
B19: Time | L19: Time | V19: Time | AF19: Time | AP19: Time | AZ19: Time | BJ19: Time | BT19: Cost @£18.50 | BU19: 0 | BV19: 0 | BW19: 0 | BX19: 0 | BY19: 0 | BZ19: 0 | CA19: 0 | CB19: 0
A22: =$F$2 -> 2003-09-01 | B22: Date | C22: =IF((I4+1)<=30,I4+1,"") -> 8 | D22: =IF((I4+2)<=30,I4+2,"") -> 9 | E22: =IF((I4+3)<=30,I4+3,"") -> 10 | F22: =IF((I4+4)<=30,I4+4,"") -> 11 | G22: =IF((I4+5)<=30,I4+5,"") -> 12 | H22: =IF((I4+6)<=30,I4+6,"") -> 13 | I22: =IF((I4+7)<=30,I4+7,"") -> 14 | J22: Total | K22: =$P$2 -> 2003-10-01 | L22: Date | M22: =IF((S4+1)<=31,S4+1,"") -> 6 | N22: =IF((S4+2)<=31,S4+2,"") -> 7 | O22: =IF((S4+3)<=31,S4+3,"") -> 8 | P22: =IF((S4+4)<=31,S4+4,"") -> 9 | Q22: =IF((S4+5)<=31,S4+5,"") -> 10 | R22: =IF((S4+6)<=31,S4+6,"") -> 11 | S22: =IF((S4+7)<=31,S4+7,"") -> 12 | T22: Total | U22: =$Z$2 -> 2003-11-01 | V22: Date | W22: =IF((AC4+1)<=30,AC4+1,"") -> 3 | X22: =IF((AC4+2)<=30,AC4+2,"") -> 4 | Y22: =IF((AC4+3)<=30,AC4+3,"") -> 5 | Z22: =IF((AC4+4)<=30,AC4+4,"") -> 6 | AA22: =IF((AC4+5)<=30,AC4+5,"") -> 7 | AB22: =IF((AC4+6)<=30,AC4+6,"") -> 8 | AC22: =IF((AC4+7)<=30,AC4+7,"") -> 9 | AD22: Total | AE22: =$AJ$2 -> 2003-12-01 | AF22: Date | AG22: =IF((AM4+1)<=31,AM4+1,"") -> 8 | AH22: =IF((AM4+2)<=31,AM4+2,"") -> 9 | AI22: =IF((AM4+3)<=31,AM4+3,"") -> 10 | AJ22: =IF((AM4+4)<=31,AM4+4,"") -> 11 | AK22: =IF((AM4+5)<=31,AM4+5,"") -> 12 | AL22: =IF((AM4+6)<=31,AM4+6,"") -> 13 | AM22: =IF((AM4+7)<=31,AM4+7,"") -> 14 | AN22: Total | AO22: =$AT$2 -> 2004-01-01 | AP22: Date | AQ22: =IF((AW4+1)<=31,AW4+1,"") -> 5 | AR22: =IF((AW4+2)<=31,AW4+2,"") -> 6 | AS22: =IF((AW4+3)<=31,AW4+3,"") -> 7 | AT22: =IF((AW4+4)<=31,AW4+4,"") -> 8 | AU22: =IF((AW4+5)<=31,AW4+5,"") -> 9 | AV22: =IF((AW4+6)<=31,AW4+6,"") -> 10 | AW22: =IF((AW4+7)<=31,AW4+7,"") -> 11 | AX22: Total | AY22: =$BD$2 -> 2004-02-01 | AZ22: Date | BA22: =IF((BG4+1)<=28,BG4+1,"") -> 2 | BB22: =IF((BG4+2)<=28,BG4+2,"") -> 3 | BC22: =IF((BG4+3)<=28,BG4+3,"") -> 4 | BD22: =IF((BG4+4)<=28,BG4+4,"") -> 5 | BE22: =IF((BG4+5)<=28,BG4+5,"") -> 6 | BF22: =IF((BG4+6)<=28,BG4+6,"") -> 7 | BG22: =IF((BG4+7)<=28,BG4+7,"") -> 8 | BH22: Total | BI22: =$BN$2 -> 2004-03-01 | BJ22: Date | BK22: =IF((BQ4+1)<=31,BQ4+1,"") -> 8 | BL22: =IF((BQ4+2)<=31,BQ4+2,"") -> 9 | BM22: =IF((BQ4+3)<=31,BQ4+3,"") -> 10 | BN22: =IF((BQ4+4)<=31,BQ4+4,"") -> 11 | BO22: =IF((BQ4+5)<=31,BQ4+5,"") -> 12 | BP22: =IF((BQ4+6)<=31,BQ4+6,"") -> 13 | BQ22: =IF((BQ4+7)<=31,BQ4+7,"") -> 14 | BR22: Total | BS22: TOTALS | BT22: Total Hours | BU22: =SUM(BU6+BU8+BU10+BU12+BU14+BU16+BU18+BU20) -> 88.5 | BV22: =SUM(BV6+BV8+BV10+BV12+BV14+BV16+BV18+BV20) -> 89 | BW22: 93.5 | BX22: 50.5 | BY22: 85 | BZ22: 87 | CA22: 90.5 | CB22: 584
B23: Day | C23: Mon | D23: Tue | E23: Wed | F23: Thu | G23: Fri | H23: Sat | I23: Sun | J23: Hours | L23: Day | M23: Mon | N23: Tue | O23: Wed | P23: Thu | Q23: Fri | R23: Sat | S23: Sun | T23: Hours | V23: Day | W23: Mon | X23: Tue | Y23: Wed | Z23: Thu | AA23: Fri | AB23: Sat | AC23: Sun | AD23: Hours | AF23: Day | AG23: Mon | AH23: Tue | AI23: Wed | AJ23: Thu | AK23: Fri | AL23: Sat | AM23: Sun | AN23: Hours | AP23: Day | AQ23: Mon | AR23: Tue | AS23: Wed | AT23: Thu | AU23: Fri | AV23: Sat | AW23: Sun | AX23: Hours | AZ23: Day | BA23: Mon | BB23: Tue | BC23: Wed | BD23: Thu | BE23: Fri | BF23: Sat | BG23: Sun | BH23: Hours | BJ23: Day | BK23: Mon | BL23: Tue | BM23: Wed | BN23: Thu | BO23: Fri | BP23: Sat | BQ23: Sun | BR23: Hours | BT23: Total Cost | BU23: =SUM(BU7+BU9+BU11+BU13+BU15+BU17+BU19+BU21) -> 1776.5 | BV23: 1728.5 | BW23: 1793 | BX23: 1051 | BY23: 1672 | BZ23: 1591 | CA23: 1750 | CB23: 11362
A24: Main Pool | B24: Junior Hrs | J24: =SUM(C24:I24) -> 0 | K24: Main Pool | L24: Junior Hrs | T24: =SUM(M24:S24) -> 0 | U24: Main Pool | V24: Junior Hrs | AD24: =SUM(W24:AC24) -> 0 | AE24: Main Pool | AF24: Junior Hrs | AN24: =SUM(AG24:AM24) -> 0 | AO24: Main Pool | AP24: Junior Hrs | AX24: =SUM(AQ24:AW24) -> 0 | AY24: Main Pool | AZ24: Junior Hrs | BH24: =SUM(BA24:BG24) -> 0 | BI24: Main Pool | BJ24: Junior Hrs | BR24: =SUM(BK24:BQ24) -> 0
B25: Time | L25: Time | V25: Time | AF25: Time | AP25: Time | AZ25: Time | BJ25: Time
B26: Junior Hrs | H26: 1 | I26: 1 | J26: =SUM(C26:I26) -> 2 | L26: Junior Hrs | R26: 1 | S26: 1 | T26: =SUM(M26:S26) -> 2 | V26: Junior Hrs | AB26: 1 | AC26: 1 | AD26: =SUM(W26:AC26) -> 2 | AF26: Junior Hrs | AL26: 1 | AM26: 1 | AN26: =SUM(AG26:AM26) -> 2 | AP26: Junior Hrs | AV26: 1 | AW26: 1 | AX26: =SUM(AQ26:AW26) -> 2 | AZ26: Junior Hrs | BF26: 1 | BG26: 1 | BH26: =SUM(BA26:BG26) -> 2 | BJ26: Junior Hrs | BP26: 1 | BQ26: 1 | BR26: =SUM(BK26:BQ26) -> 2
B27: Time | H27: 8-9am | I27: 8-9am | L27: Time | R27: 8-9am | S27: 8-9am | V27: Time | AB27: 8-9am | AC27: 8-9am | AF27: Time | AL27: 8-9am | AM27: 8-9am | AP27: Time | AV27: 8-9am | AW27: 8-9am | AZ27: Time | BF27: 8-9am | BG27: 8-9am | BJ27: Time | BP27: 8-9am | BQ27: 8-9am
B28: Junior Hrs | D28: 2.5 | G28: 3 | H28: 1 | I28: 4.5 | J28: =SUM(C28:I28) -> 11 | L28: Junior Hrs | N28: 1.5 | Q28: 3 | R28: 1 | S28: 4.5 | T28: =SUM(M28:S28) -> 10 | V28: Junior Hrs | X28: 2.5 | AA28: 3 | AB28: 1 | AC28: 4.5 | AD28: =SUM(W28:AC28) -> 11 | AF28: Junior Hrs | AH28: 2.5 | AK28: 4 | AL28: 1 | AM28: 4.5 | AN28: =SUM(AG28:AM28) -> 12 | AP28: Junior Hrs | AR28: 2.5 | AU28: 3 | AV28: 1 | AW28: 4.5 | AX28: =SUM(AQ28:AW28) -> 11 | AZ28: Junior Hrs | BB28: 2.5 | BE28: 3 | BF28: 1 | BG28: 4.5 | BH28: =SUM(BA28:BG28) -> 11 | BJ28: Junior Hrs | BL28: 2.5 | BO28: 3 | BP28: 1 | BQ28: 4.5 | BR28: =SUM(BK28:BQ28) -> 11
B29: Time | D29: 7.30-10pm | G29: 6-9pm | H29: 6-7pm | I29: 5.30-10pm | L29: Time | N29: 7.30-9pm | Q29: 6-9pm | R29: 6-7pm | S29: 5.30-10pm | V29: Time | X29: 7.30-10pm | AA29: 6-9pm | AB29: 6-7pm | AC29: 5.30-10pm | AF29: Time | AH29: 7.30-10pm | AK29: 6-10pm | AL29: 6-7pm | AM29: 5.30-10pm | AP29: Time | AR29: 7.30-10pm | AU29: 9-10pm | AV29: 6-7pm | AW29: 5.30-10pm | AZ29: Time | BB29: 7.30-10pm | BE29: 9-10pm | BF29: 6-7pm | BG29: 5.30-10pm | BJ29: Time | BL29: 7.30-10pm | BO29: 2003-09-06 | BP29: 6-7pm | BQ29: 5.30-10pm
B30: Adult Hrs | F30: 1 | J30: =SUM(C30:I30) -> 1 | L30: Adult Hrs | P30: 1 | T30: =SUM(M30:S30) -> 1 | V30: Adult Hrs | Z30: 1 | AD30: =SUM(W30:AC30) -> 1 | AF30: Adult Hrs | AJ30: 1 | AN30: =SUM(AG30:AM30) -> 1 | AP30: Adult Hrs | AT30: 1 | AX30: =SUM(AQ30:AW30) -> 1 | AZ30: Adult Hrs | BD30: 1 | BH30: =SUM(BA30:BG30) -> 1 | BJ30: Adult Hrs | BN30: 1 | BR30: =SUM(BK30:BQ30) -> 1
B31: Time | F31: 9-10pm | L31: Time | P31: 9-10pm | V31: Time | Z31: 9-10pm | AF31: Time | AJ31: 9-10pm | AP31: Time | AT31: 9-10pm | AZ31: Time | BD31: 9-10pm | BJ31: Time | BN31: 9-10pm
A32: Small Pool | B32: Junior Hrs | D32: 2.5 | G32: 2.5 | I32: 2 | J32: =SUM(C32:I32) -> 7 | K32: Small Pool | L32: Junior Hrs | N32: 2.5 | Q32: 2.5 | S32: 2 | T32: =SUM(M32:S32) -> 7 | U32: Small Pool | V32: Junior Hrs | X32: 2.5 | AA32: 2.5 | AC32: 2 | AD32: =SUM(W32:AC32) -> 7 | AE32: Small Pool | AF32: Junior Hrs | AH32: 2.5 | AK32: 2.5 | AM32: 2 | AN32: =SUM(AG32:AM32) -> 7 | AO32: Small Pool | AP32: Junior Hrs | AR32: 2.5 | AU32: 2.5 | AW32: 2 | AX32: =SUM(AQ32:AW32) -> 7 | AY32: Small Pool | AZ32: Junior Hrs | BB32: 2.5 | BE32: 2.5 | BG32: 2 | BH32: =SUM(BA32:BG32) -> 7 | BI32: Small Pool | BJ32: Junior Hrs | BL32: 2.5 | BO32: 2.5 | BQ32: 2 | BR32: =SUM(BK32:BQ32) -> 7
B33: Time | D33: 6-8.30pm | G33: 6-8.30pm | I33: 5.30-7.30pm | L33: Time | N33: 6-8.30pm | Q33: 6-8.30pm | S33: 5.30-7.30pm | V33: Time | X33: 6-8.30pm | AA33: 6-8.30pm | AC33: 5.30-7.30pm | AF33: Time | AH33: 6-8.30pm | AK33: 6-8.30pm | AM33: 5.30-7.30pm | AP33: Time | AR33: 6-8.30pm | AU33: 6-8.30pm | AW33: 5.30-7.30pm | AZ33: Time | BB33: 6-8.30pm | BE33: 6-8.30pm | BG33: 5.30-7.30pm | BJ33: Time | BL33: 6-8.30pm | BO33: 6-8.30pm | BQ33: 5.30-7.30pm
B34: Adult Hrs | J34: =SUM(C34:I34) -> 0 | L34: Adult Hrs | T34: =SUM(M34:S34) -> 0 | V34: Adult Hrs | AD34: =SUM(W34:AC34) -> 0 | AF34: Adult Hrs | AN34: =SUM(AG34:AM34) -> 0 | AP34: Adult Hrs | AX34: =SUM(AQ34:AW34) -> 0 | AZ34: Adult Hrs | BH34: =SUM(BA34:BG34) -> 0 | BJ34: Adult Hrs | BR34: =SUM(BK34:BQ34) -> 0
B35: Time | L35: Time | V35: Time | AF35: Time | AP35: Time | AZ35: Time | BJ35: Time
A36: Practice Hall | B36: Junior Hrs | J36: =SUM(C36:I36) -> 0 | K36: Practice Hall | L36: Junior Hrs | T36: =SUM(M36:S36) -> 0 | U36: Practice Hall | V36: Junior Hrs | AD36: =SUM(W36:AC36) -> 0 | AE36: Practice Hall | AF36: Junior Hrs | AN36: =SUM(AG36:AM36) -> 0 | AO36: Practice Hall | AP36: Junior Hrs | AX36: =SUM(AQ36:AW36) -> 0 | AY36: Practice Hall | AZ36: Junior Hrs | BH36: =SUM(BA36:BG36) -> 0 | BI36: Practice Hall | BJ36: Junior Hrs | BR36: =SUM(BK36:BQ36) -> 0
B37: Time | L37: Time | V37: Time | AF37: Time | AP37: Time | AZ37: Time | BJ37: Time
A40: =$F$2 -> 2003-09-01 | B40: Date | C40: =IF((I4+8)<=30,I4+8,"") -> 15 | D40: =IF((I4+9)<=30,I4+9,"") -> 16 | E40: =IF((I4+10)<=30,I4+10,"") -> 17 | F40: =IF((I4+11)<=30,I4+11,"") -> 18 | G40: =IF((I4+12)<=30,I4+12,"") -> 19 | H40: =IF((I4+13)<=30,I4+13,"") -> 20 | I40: =IF((I4+14)<=30,I4+14,"") -> 21 | J40: Total | K40: =$P$2 -> 2003-10-01 | L40: Date | M40: =IF((S4+8)<=31,S4+8,"") -> 13 | N40: =IF((S4+9)<=31,S4+9,"") -> 14 | O40: =IF((S4+10)<=31,S4+10,"") -> 15 | P40: =IF((S4+11)<=31,S4+11,"") -> 16 | Q40: =IF((S4+12)<=31,S4+12,"") -> 17 | R40: =IF((S4+13)<=31,S4+13,"") -> 18 | S40: =IF((S4+14)<=31,S4+14,"") -> 19 | T40: Total | U40: =$Z$2 -> 2003-11-01 | V40: Date | W40: =IF((AC4+8)<=30,AC4+8,"") -> 10 | X40: =IF((AC4+9)<=30,AC4+9,"") -> 11 | Y40: =IF((AC4+10)<=30,AC4+10,"") -> 12 | Z40: =IF((AC4+11)<=30,AC4+11,"") -> 13 | AA40: =IF((AC4+12)<=30,AC4+12,"") -> 14 | AB40: =IF((AC4+13)<=30,AC4+13,"") -> 15 | AC40: =IF((AC4+14)<=30,AC4+14,"") -> 16 | AD40: Total | AE40: =$AJ$2 -> 2003-12-01 | AF40: Date | AG40: =IF((AM4+8)<=31,AM4+8,"") -> 15 | AH40: =IF((AM4+9)<=31,AM4+9,"") -> 16 | AI40: =IF((AM4+10)<=31,AM4+10,"") -> 17 | AJ40: =IF((AM4+11)<=31,AM4+11,"") -> 18 | AK40: =IF((AM4+12)<=31,AM4+12,"") -> 19 | AL40: =IF((AM4+13)<=31,AM4+13,"") -> 20 | AM40: =IF((AM4+14)<=31,AM4+14,"") -> 21 | AN40: Total | AO40: =$AT$2 -> 2004-01-01 | AP40: Date | AQ40: =IF((AW4+8)<=31,AW4+8,"") -> 12 | AR40: =IF((AW4+9)<=31,AW4+9,"") -> 13 | AS40: =IF((AW4+10)<=31,AW4+10,"") -> 14 | AT40: =IF((AW4+11)<=31,AW4+11,"") -> 15 | AU40: =IF((AW4+12)<=31,AW4+12,"") -> 16 | AV40: =IF((AW4+13)<=31,AW4+13,"") -> 17 | AW40: =IF((AW4+14)<=31,AW4+14,"") -> 18 | AX40: Total | AY40: =$BD$2 -> 2004-02-01 | AZ40: Date | BA40: =IF((BG4+8)<=28,BG4+8,"") -> 9 | BB40: =IF((BG4+9)<=28,BG4+9,"") -> 10 | BC40: =IF((BG4+10)<=28,BG4+10,"") -> 11 | BD40: =IF((BG4+11)<=28,BG4+11,"") -> 12 | BE40: =IF((BG4+12)<=28,BG4+12,"") -> 13 | BF40: =IF((BG4+13)<=28,BG4+13,"") -> 14 | BG40: =IF((BG4+14)<=28,BG4+14,"") -> 15 | BH40: Total | BI40: =$BN$2 -> 2004-03-01 | BJ40: Date | BK40: =IF((BQ4+8)<=31,BQ4+8,"") -> 15 | BL40: =IF((BQ4+9)<=31,BQ4+9,"") -> 16 | BM40: =IF((BQ4+10)<=31,BQ4+10,"") -> 17 | BN40: =IF((BQ4+11)<=31,BQ4+11,"") -> 18 | BO40: =IF((BQ4+12)<=31,BQ4+12,"") -> 19 | BP40: =IF((BQ4+13)<=31,BQ4+13,"") -> 20 | BQ40: =IF((BQ4+14)<=31,BQ4+14,"") -> 21 | BR40: Total
B41: Day | C41: Mon | D41: Tue | E41: Wed | F41: Thu | G41: Fri | H41: Sat | I41: Sun | J41: Hours | L41: Day | M41: Mon | N41: Tue | O41: Wed | P41: Thu | Q41: Fri | R41: Sat | S41: Sun | T41: Hours | V41: Day | W41: Mon | X41: Tue | Y41: Wed | Z41: Thu | AA41: Fri | AB41: Sat | AC41: Sun | AD41: Hours | AF41: Day | AG41: Mon | AH41: Tue | AI41: Wed | AJ41: Thu | AK41: Fri | AL41: Sat | AM41: Sun | AN41: Hours | AP41: Day | AQ41: Mon | AR41: Tue | AS41: Wed | AT41: Thu | AU41: Fri | AV41: Sat | AW41: Sun | AX41: Hours | AZ41: Day | BA41: Mon | BB41: Tue | BC41: Wed | BD41: Thu | BE41: Fri | BF41: Sat | BG41: Sun | BH41: Hours | BJ41: Day | BK41: Mon | BL41: Tue | BM41: Wed | BN41: Thu | BO41: Fri | BP41: Sat | BQ41: Sun | BR41: Hours
A42: Main Pool | B42: Junior Hrs | J42: =SUM(C42:I42) -> 0 | K42: Main Pool | L42: Junior Hrs | T42: =SUM(M42:S42) -> 0 | U42: Main Pool | V42: Junior Hrs | AD42: =SUM(W42:AC42) -> 0 | AE42: Main Pool | AF42: Junior Hrs | AN42: =SUM(AG42:AM42) -> 0 | AO42: Main Pool | AP42: Junior Hrs | AX42: =SUM(AQ42:AW42) -> 0 | AY42: Main Pool | AZ42: Junior Hrs | BH42: =SUM(BA42:BG42) -> 0 | BI42: Main Pool | BJ42: Junior Hrs | BR42: =SUM(BK42:BQ42) -> 0
B43: Time | L43: Time | V43: Time | AF43: Time | AP43: Time | AZ43: Time | BJ43: Time
B44: Junior Hrs | H44: 1 | I44: 1 | J44: =SUM(C44:I44) -> 2 | L44: Junior Hrs | R44: 1 | S44: 1 | T44: =SUM(M44:S44) -> 2 | V44: Junior Hrs | AB44: 1 | AC44: 1 | AD44: =SUM(W44:AC44) -> 2 | AF44: Junior Hrs | AL44: 1 | AN44: =SUM(AG44:AM44) -> 1 | AP44: Junior Hrs | AV44: 1 | AW44: 1 | AX44: =SUM(AQ44:AW44) -> 2 | AZ44: Junior Hrs | BF44: 1 | BG44: 1 | BH44: =SUM(BA44:BG44) -> 2 | BJ44: Junior Hrs | BP44: 1 | BQ44: 1 | BR44: =SUM(BK44:BQ44) -> 2
B45: Time | H45: 8-9am | I45: 8-9am | L45: Time | R45: 8-9am | S45: 8-9am | V45: Time | AB45: 8-9am | AC45: 8-9am | AF45: Time | AL45: 8-9am | AP45: Time | AV45: 8-9am | AW45: 8-9am | AZ45: Time | BF45: 8-9am | BG45: 8-9am | BJ45: Time | BP45: 8-9am | BQ45: 8-9am
B46: Junior Hrs | D46: 2.5 | G46: 3 | H46: 1 | I46: 4.5 | J46: =SUM(C46:I46) -> 11 | L46: Junior Hrs | N46: 2.5 | Q46: 3 | R46: 1 | S46: 4.5 | T46: =SUM(M46:S46) -> 11 | V46: Junior Hrs | X46: 2.5 | AA46: 3 | AB46: 1 | AC46: 4.5 | AD46: =SUM(W46:AC46) -> 11 | AF46: Junior Hrs | AH46: 2.5 | AK46: 4 | AL46: 1 | AM46: 2.5 | AN46: =SUM(AG46:AM46) -> 10 | AP46: Junior Hrs | AR46: 2.5 | AU46: 3 | AV46: 1 | AW46: 4.5 | AX46: =SUM(AQ46:AW46) -> 11 | AZ46: Junior Hrs | BB46: 2.5 | BE46: 3 | BF46: 1 | BG46: 4.5 | BH46: =SUM(BA46:BG46) -> 11 | BJ46: Junior Hrs | BL46: 2.5 | BO46: 3 | BP46: 1 | BQ46: 4.5 | BR46: =SUM(BK46:BQ46) -> 11
B47: Time | D47: 7.30-10pm | G47: 6-9pm | H47: 6-7pm | I47: 5.30-10pm | L47: Time | N47: 7.30-10pm | Q47: 6-9pm | R47: 6-7pm | S47: 5.30-10pm | V47: Time | X47: 7.30-10pm | AA47: 6-9pm | AB47: 6-7pm | AC47: 5.30-10pm | AF47: Time | AH47: 7.30-10pm | AK47: 6-10pm | AL47: 6-7pm | AM47: 7.30-10 | AP47: Time | AR47: 7.30-10pm | AU47: 6-9pm | AV47: 6-7pm | AW47: 5.30-10pm | AZ47: Time | BB47: 7.30-10pm | BE47: 6-9pm | BF47: 6-7pm | BG47: 5.30-10pm | BJ47: Time | BL47: 7.30-10pm | BO47: 6-9pm | BP47: 6-7pm | BQ47: 5.30-10pm
B48: Adult Hrs | F48: 1 | J48: =SUM(C48:I48) -> 1 | L48: Adult Hrs | P48: 1 | T48: =SUM(M48:S48) -> 1 | V48: Adult Hrs | Z48: 1 | AD48: =SUM(W48:AC48) -> 1 | AF48: Adult Hrs | AJ48: 1 | AN48: =SUM(AG48:AM48) -> 1 | AP48: Adult Hrs | AT48: 1 | AX48: =SUM(AQ48:AW48) -> 1 | AZ48: Adult Hrs | BD48: 1 | BH48: =SUM(BA48:BG48) -> 1 | BJ48: Adult Hrs | BN48: 1 | BR48: =SUM(BK48:BQ48) -> 1
B49: Time | F49: 9-10pm | L49: Time | P49: 9-10pm | V49: Time | Z49: 9-10pm | AF49: Time | AJ49: 9-10pm | AP49: Time | AT49: 9-10pm | AZ49: Time | BD49: 9-10pm | BJ49: Time | BN49: 9-10pm
A50: Small Pool | B50: Junior Hrs | D50: 2.5 | G50: 2.5 | I50: 2 | J50: =SUM(C50:I50) -> 7 | K50: Small Pool | L50: Junior Hrs | N50: 2.5 | Q50: 2.5 | S50: 2 | T50: =SUM(M50:S50) -> 7 | U50: Small Pool | V50: Junior Hrs | X50: 2.5 | AA50: 2.5 | AC50: 2 | AD50: =SUM(W50:AC50) -> 7 | AE50: Small Pool | AF50: Junior Hrs | AH50: 2.5 | AK50: 2.5 | AN50: =SUM(AG50:AM50) -> 5 | AO50: Small Pool | AP50: Junior Hrs | AR50: 2.5 | AU50: 2.5 | AW50: 2 | AX50: =SUM(AQ50:AW50) -> 7 | AY50: Small Pool | AZ50: Junior Hrs | BB50: 2.5 | BE50: 2.5 | BG50: 2 | BH50: =SUM(BA50:BG50) -> 7 | BI50: Small Pool | BJ50: Junior Hrs | BL50: 2.5 | BO50: 2.5 | BQ50: 2 | BR50: =SUM(BK50:BQ50) -> 7
B51: Time | D51: 6-8.30pm | G51: 6-8.30pm | I51: 5.30-7.30pm | L51: Time | N51: 6-8.30pm | Q51: 6-8.30pm | S51: 5.30-7.30pm | V51: Time | X51: 6-8.30pm | AA51: 6-8.30pm | AC51: 5.30-7.30pm | AF51: Time | AH51: 6-8.30pm | AK51: 6-8.30pm | AP51: Time | AR51: 6-8.30pm | AU51: 6-8.30pm | AW51: 5.30-7.30pm | AZ51: Time | BB51: 6-8.30pm | BE51: 6-8.30pm | BG51: 5.30-7.30pm | BJ51: Time | BL51: 6-8.30pm | BO51: 6-8.30pm | BQ51: 5.30-7.30pm
B52: Adult Hrs | J52: =SUM(C52:I52) -> 0 | L52: Adult Hrs | T52: =SUM(M52:S52) -> 0 | V52: Adult Hrs | AD52: =SUM(W52:AC52) -> 0 | AF52: Adult Hrs | AN52: =SUM(AG52:AM52) -> 0 | AP52: Adult Hrs | AX52: =SUM(AQ52:AW52) -> 0 | AZ52: Adult Hrs | BH52: =SUM(BA52:BG52) -> 0 | BJ52: Adult Hrs | BR52: =SUM(BK52:BQ52) -> 0
B53: Time | L53: Time | V53: Time | AF53: Time | AP53: Time | AZ53: Time | BJ53: Time
A54: Practice Hall | B54: Junior Hrs | J54: =SUM(C54:I54) -> 0 | K54: Practice Hall | L54: Junior Hrs | T54: =SUM(M54:S54) -> 0 | U54: Practice Hall | V54: Junior Hrs | AD54: =SUM(W54:AC54) -> 0 | AE54: Practice Hall | AF54: Junior Hrs | AN54: =SUM(AG54:AM54) -> 0 | AO54: Practice Hall | AP54: Junior Hrs | AX54: =SUM(AQ54:AW54) -> 0 | AY54: Practice Hall | AZ54: Junior Hrs | BH54: =SUM(BA54:BG54) -> 0 | BI54: Practice Hall | BJ54: Junior Hrs | BR54: =SUM(BK54:BQ54) -> 0
B55: Time | L55: Time | V55: Time | AF55: Time | AP55: Time | AZ55: Time | BJ55: Time
A58: =$F$2 -> 2003-09-01 | B58: Date | C58: =IF((I4+15)<=30,I4+15,"") -> 22 | D58: =IF((I4+16)<=30,I4+16,"") -> 23 | E58: =IF((I4+17)<=30,I4+17,"") -> 24 | F58: =IF((I4+18)<=30,I4+18,"") -> 25 | G58: =IF((I4+19)<=30,I4+19,"") -> 26 | H58: =IF((I4+20)<=30,I4+20,"") -> 27 | I58: =IF((I4+21)<=30,I4+21,"") -> 28 | J58: Total | K58: =$P$2 -> 2003-10-01 | L58: Date | M58: =IF((S4+15)<=30,S4+15,"") -> 20 | N58: =IF((S4+16)<=31,S4+16,"") -> 21 | O58: =IF((S4+17)<=31,S4+17,"") -> 22 | P58: =IF((S4+18)<=31,S4+18,"") -> 23 | Q58: =IF((S4+19)<=31,S4+19,"") -> 24 | R58: =IF((S4+20)<=31,S4+20,"") -> 25 | S58: =IF((S4+21)<=31,S4+21,"") -> 26 | T58: Total | U58: =$Z$2 -> 2003-11-01 | V58: Date | W58: =IF((AC4+15)<=30,AC4+15,"") -> 17 | X58: =IF((AC4+16)<=30,AC4+16,"") -> 18 | Y58: =IF((AC4+17)<=30,AC4+17,"") -> 19 | Z58: =IF((AC4+18)<=30,AC4+18,"") -> 20 | AA58: =IF((AC4+19)<=30,AC4+19,"") -> 21 | AB58: =IF((AC4+20)<=30,AC4+20,"") -> 22 | AC58: =IF((AC4+21)<=30,AC4+21,"") -> 23 | AD58: Total | AE58: =$AJ$2 -> 2003-12-01 | AF58: Date | AG58: =IF((AM4+15)<=31,AM4+15,"") -> 22 | AH58: =IF((AM4+16)<=31,AM4+16,"") -> 23 | AI58: =IF((AM4+17)<=31,AM4+17,"") -> 24 | AJ58: =IF((AM4+18)<=31,AM4+18,"") -> 25 | AK58: =IF((AM4+19)<=31,AM4+19,"") -> 26 | AL58: =IF((AM4+20)<=31,AM4+20,"") -> 27 | AM58: =IF((AM4+21)<=31,AM4+21,"") -> 28 | AN58: Total | AO58: =$AT$2 -> 2004-01-01 | AP58: Date | AQ58: =IF((AW4+15)<=31,AW4+15,"") -> 19 | AR58: =IF((AW4+16)<=31,AW4+16,"") -> 20 | AS58: =IF((AW4+17)<=31,AW4+17,"") -> 21 | AT58: =IF((AW4+18)<=31,AW4+18,"") -> 22 | AU58: =IF((AW4+19)<=31,AW4+19,"") -> 23 | AV58: =IF((AW4+20)<=31,AW4+20,"") -> 24 | AW58: =IF((AW4+21)<=31,AW4+21,"") -> 25 | AX58: Total | AY58: =$BD$2 -> 2004-02-01 | AZ58: Date | BA58: =IF((BG4+15)<=28,BG4+15,"") -> 16 | BB58: =IF((BG4+16)<=28,BG4+16,"") -> 17 | BC58: =IF((BG4+17)<=28,BG4+17,"") -> 18 | BD58: =IF((BG4+18)<=28,BG4+18,"") -> 19 | BE58: =IF((BG4+19)<=28,BG4+19,"") -> 20 | BF58: =IF((BG4+20)<=28,BG4+20,"") -> 21 | BG58: =IF((BG4+21)<=28,BG4+21,"") -> 22 | BH58: Total | BI58: =$BN$2 -> 2004-03-01 | BJ58: Date | BK58: =IF((BQ4+15)<=31,BQ4+15,"") -> 22 | BL58: =IF((BQ4+16)<=31,BQ4+16,"") -> 23 | BM58: =IF((BQ4+17)<=31,BQ4+17,"") -> 24 | BN58: =IF((BQ4+18)<=31,BQ4+18,"") -> 25 | BO58: =IF((BQ4+19)<=31,BQ4+19,"") -> 26 | BP58: =IF((BQ4+20)<=31,BQ4+20,"") -> 27 | BQ58: =IF((BQ4+21)<=31,BQ4+21,"") -> 28 | BR58: Total
B59: Day | C59: Mon | D59: Tue | E59: Wed | F59: Thu | G59: Fri | H59: Sat | I59: Sun | J59: Hours | L59: Day | M59: Mon | N59: Tue | O59: Wed | P59: Thu | Q59: Fri | R59: Sat | S59: Sun | T59: Hours | V59: Day | W59: Mon | X59: Tue | Y59: Wed | Z59: Thu | AA59: Fri | AB59: Sat | AC59: Sun | AD59: Hours | AF59: Day | AG59: Mon | AH59: Tue | AI59: Wed | AJ59: Thu | AK59: Fri | AL59: Sat | AM59: Sun | AN59: Hours | AP59: Day | AQ59: Mon | AR59: Tue | AS59: Wed | AT59: Thu | AU59: Fri | AV59: Sat | AW59: Sun | AX59: Hours | AZ59: Day | BA59: Mon | BB59: Tue | BC59: Wed | BD59: Thu | BE59: Fri | BF59: Sat | BG59: Sun | BH59: Hours | BJ59: Day | BK59: Mon | BL59: Tue | BM59: Wed | BN59: Thu | BO59: Fri | BP59: Sat | BQ59: Sun | BR59: Hours
A60: Main Pool | B60: Junior Hrs | J60: =SUM(C60:I60) -> 0 | K60: Main Pool | L60: Junior Hrs | T60: =SUM(M60:S60) -> 0 | U60: Main Pool | V60: Junior Hrs | AD60: =SUM(W60:AC60) -> 0 | AE60: Main Pool | AF60: Junior Hrs | AN60: =SUM(AG60:AM60) -> 0 | AO60: Main Pool | AP60: Junior Hrs | AX60: =SUM(AQ60:AW60) -> 0 | AY60: Main Pool | AZ60: Junior Hrs | BH60: =SUM(BA60:BG60) -> 0 | BI60: Main Pool | BJ60: Junior Hrs | BR60: =SUM(BK60:BQ60) -> 0
B61: Time | L61: Time | V61: Time | AF61: Time | AP61: Time | AZ61: Time | BJ61: Time
B62: Junior Hrs | H62: 1 | I62: 1 | J62: =SUM(C62:I62) -> 2 | L62: Junior Hrs | R62: 1 | S62: 1 | T62: =SUM(M62:S62) -> 2 | V62: Junior Hrs | AB62: 1 | AC62: 1 | AD62: =SUM(W62:AC62) -> 2 | AF62: Junior Hrs | AN62: =SUM(AG62:AM62) -> 0 | AP62: Junior Hrs | AV62: 1 | AW62: 1 | AX62: =SUM(AQ62:AW62) -> 2 | AZ62: Junior Hrs | BF62: 1 | BG62: 1 | BH62: =SUM(BA62:BG62) -> 2 | BJ62: Junior Hrs | BP62: 1 | BQ62: 1 | BR62: =SUM(BK62:BQ62) -> 2
B63: Time | H63: 8-9am | I63: 8-9am | L63: Time | R63: 8-9am | S63: 8-9am | V63: Time | AB63: 8-9am | AC63: 8-9am | AF63: Time | AP63: Time | AV63: 8-9am | AW63: 8-9am | AZ63: Time | BF63: 8-9am | BG63: 8-9am | BJ63: Time | BP63: 8-9am | BQ63: 8-9am
B64: Junior Hrs | D64: 2.5 | G64: 3 | I64: 4.5 | J64: =SUM(C64:I64) -> 10 | L64: Junior Hrs | N64: 2.5 | Q64: 3 | R64: 1 | S64: 4.5 | T64: =SUM(M64:S64) -> 11 | V64: Junior Hrs | X64: 2.5 | AA64: 3 | AB64: 1 | AC64: 4.5 | AD64: =SUM(W64:AC64) -> 11 | AF64: Junior Hrs | AH64: 2.5 | AN64: =SUM(AG64:AM64) -> 2.5 | AP64: Junior Hrs | AR64: 2.5 | AU64: 3 | AV64: 1 | AW64: 4.5 | AX64: =SUM(AQ64:AW64) -> 11 | AZ64: Junior Hrs | BB64: 2.5 | BE64: 3 | BF64: 1 | BG64: 4.5 | BH64: =SUM(BA64:BG64) -> 11 | BJ64: Junior Hrs | BL64: 2.5 | BO64: 3 | BP64: 1 | BQ64: 4.5 | BR64: =SUM(BK64:BQ64) -> 11
B65: Time | D65: 7.30-10pm | G65: 6-9pm | I65: 5.30-10pm | L65: Time | N65: 7.30-10pm | Q65: 6-9pm | R65: 6-7pm | S65: 5.30-10pm | V65: Time | X65: 7.30-10pm | AA65: 6-9pm | AB65: 6-7pm | AC65: 5.30-10pm | AF65: Time | AH65: 7.30-10pm | AP65: Time | AR65: 7.30-10pm | AU65: 6-9pm | AV65: 6-7pm | AW65: 5.30-10pm | AZ65: Time | BB65: 7.30-10pm | BE65: 6-9pm | BF65: 6-7pm | BG65: 5.30-10pm | BJ65: Time | BL65: 7.30-10pm | BO65: 6-9pm | BP65: 6-7pm | BQ65: 5.30-10pm
B66: Adult Hrs | F66: 1 | J66: =SUM(C66:I66) -> 1 | L66: Adult Hrs | P66: 1 | T66: =SUM(M66:S66) -> 1 | V66: Adult Hrs | Z66: 1 | AD66: =SUM(W66:AC66) -> 1 | AF66: Adult Hrs | AN66: =SUM(AG66:AM66) -> 0 | AP66: Adult Hrs | AT66: 1 | AX66: =SUM(AQ66:AW66) -> 1 | AZ66: Adult Hrs | BD66: 1 | BH66: =SUM(BA66:BG66) -> 1 | BJ66: Adult Hrs | BN66: 1 | BR66: =SUM(BK66:BQ66) -> 1
B67: Time | F67: 9-10pm | L67: Time | P67: 9-10pm | V67: Time | Z67: 9-10pm | AF67: Time | AP67: Time | AT67: 9-10pm | AZ67: Time | BD67: 9-10pm | BJ67: Time | BN67: 9-10pm
A68: Small Pool | B68: Junior Hrs | D68: 2.5 | G68: 2.5 | I68: 2 | J68: =SUM(C68:I68) -> 7 | K68: Small Pool | L68: Junior Hrs | N68: 2.5 | Q68: 2.5 | S68: 2 | T68: =SUM(M68:S68) -> 7 | U68: Small Pool | V68: Junior Hrs | X68: 2.5 | AA68: 2.5 | AC68: 2 | AD68: =SUM(W68:AC68) -> 7 | AE68: Small Pool | AF68: Junior Hrs | AN68: =SUM(AG68:AM68) -> 0 | AO68: Small Pool | AP68: Junior Hrs | AR68: 2.5 | AU68: 2.5 | AW68: 2 | AX68: =SUM(AQ68:AW68) -> 7 | AY68: Small Pool | AZ68: Junior Hrs | BB68: 2.5 | BE68: 2.5 | BG68: 2 | BH68: =SUM(BA68:BG68) -> 7 | BI68: Small Pool | BJ68: Junior Hrs | BL68: 2.5 | BO68: 2.5 | BQ68: 2 | BR68: =SUM(BK68:BQ68) -> 7
B69: Time | D69: 6-8.30pm | G69: 6-8.30pm | I69: 5.30-7.30pm | L69: Time | N69: 6-8.30pm | Q69: 6-8.30pm | S69: 5.30-7.30pm | V69: Time | X69: 6-8.30pm | AA69: 6-8.30pm | AC69: 5.30-7.30pm | AF69: Time | AP69: Time | AR69: 6-8.30pm | AU69: 6-8.30pm | AW69: 5.30-7.30pm | AZ69: Time | BB69: 6-8.30pm | BE69: 6-8.30pm | BG69: 5.30-7.30pm | BJ69: Time | BL69: 6-8.30pm | BO69: 6-8.30pm | BQ69: 5.30-7.30pm
B70: Adult Hrs | J70: =SUM(C70:I70) -> 0 | L70: Adult Hrs | T70: =SUM(M70:S70) -> 0 | V70: Adult Hrs | AD70: =SUM(W70:AC70) -> 0 | AF70: Adult Hrs | AN70: =SUM(AG70:AM70) -> 0 | AP70: Adult Hrs | AX70: =SUM(AQ70:AW70) -> 0 | AZ70: Adult Hrs | BH70: =SUM(BA70:BG70) -> 0 | BJ70: Adult Hrs | BR70: =SUM(BK70:BQ70) -> 0
B71: Time | L71: Time | V71: Time | AF71: Time | AP71: Time | AZ71: Time | BJ71: Time
A72: Practice Hall | B72: Junior Hrs | J72: =SUM(C72:I72) -> 0 | K72: Practice Hall | L72: Junior Hrs | T72: =SUM(M72:S72) -> 0 | U72: Practice Hall | V72: Junior Hrs | AD72: =SUM(W72:AC72) -> 0 | AE72: Practice Hall | AF72: Junior Hrs | AN72: =SUM(AG72:AM72) -> 0 | AO72: Practice Hall | AP72: Junior Hrs | AX72: =SUM(AQ72:AW72) -> 0 | AY72: Practice Hall | AZ72: Junior Hrs | BH72: =SUM(BA72:BG72) -> 0 | BI72: Practice Hall | BJ72: Junior Hrs | BR72: =SUM(BK72:BQ72) -> 0
B73: Time | L73: Time | V73: Time | AF73: Time | AP73: Time | AZ73: Time | BJ73: Time
A76: =$F$2 -> 2003-09-01 | B76: Date | C76: =IF((I4+22)<=30,I4+22,"") -> 29 | D76: =IF((I4+23)<=30,I4+23,"") -> 30 | E76: =IF((I4+24)<=30,I4+24,"") ->  | F76: =IF((I4+25)<=30,I4+25,"") ->  | G76: =IF((I4+26)<=30,I4+26,"") ->  | H76: =IF((I4+27)<=30,I4+27,"") ->  | I76: =IF((I4+28)<=30,I4+28,"") ->  | J76: Total | K76: =$P$2 -> 2003-10-01 | L76: Date | M76: =IF((S4+22)<=31,S4+22,"") -> 27 | N76: =IF((S4+23)<=31,S4+23,"") -> 28 | O76: =IF((S4+24)<=31,S4+24,"") -> 29 | P76: =IF((S4+25)<=31,S4+25,"") -> 30 | Q76: =IF((S4+26)<=31,S4+26,"") -> 31 | R76: =IF((S4+27)<=31,S4+27,"") ->  | S76: =IF((S4+28)<=31,S4+28,"") ->  | T76: Total | U76: =$Z$2 -> 2003-11-01 | V76: Date | W76: =IF((AC4+22)<=30,AC4+22,"") -> 24 | X76: =IF((AC4+23)<=30,AC4+23,"") -> 25 | Y76: =IF((AC4+24)<=30,AC4+24,"") -> 26 | Z76: =IF((AC4+25)<=30,AC4+25,"") -> 27 | AA76: =IF((AC4+26)<=30,AC4+26,"") -> 28 | AB76: =IF((AC4+27)<=30,AC4+27,"") -> 29 | AC76: =IF((AC4+28)<=30,AC4+28,"") -> 30 | AD76: Total | AE76: =$AJ$2 -> 2003-12-01 | AF76: Date | AG76: =IF((AM4+22)<=31,AM4+22,"") -> 29 | AH76: =IF((AM4+23)<=31,AM4+23,"") -> 30 | AI76: =IF((AM4+24)<=31,AM4+24,"") -> 31 | AJ76: =IF((AM4+25)<=31,AM4+25,"") ->  | AK76: =IF((AM4+26)<=31,AM4+26,"") ->  | AL76: =IF((AM4+27)<=31,AM4+27,"") ->  | AM76: =IF((AM4+28)<=31,AM4+28,"") ->  | AN76: Total | AO76: =$AT$2 -> 2004-01-01 | AP76: Date | AQ76: =IF((AW4+22)<=31,AW4+22,"") -> 26 | AR76: =IF((AW4+23)<=31,AW4+23,"") -> 27 | AS76: =IF((AW4+24)<=31,AW4+24,"") -> 28 | AT76: =IF((AW4+25)<=31,AW4+25,"") -> 29 | AU76: =IF((AW4+26)<=31,AW4+26,"") -> 30 | AV76: =IF((AW4+27)<=31,AW4+27,"") -> 31 | AW76: =IF((AW4+28)<=31,AW4+28,"") ->  | AX76: Total | AY76: =$BD$2 -> 2004-02-01 | AZ76: Date | BA76: =IF((BG4+22)<=28,BG4+22,"") -> 23 | BB76: =IF((BG4+23)<=28,BG4+23,"") -> 24 | BC76: =IF((BG4+24)<=28,BG4+24,"") -> 25 | BD76: =IF((BG4+25)<=28,BG4+25,"") -> 26 | BE76: =IF((BG4+26)<=28,BG4+26,"") -> 27 | BF76: =IF((BG4+27)<=28,BG4+27,"") -> 28 | BG76: 29 | BH76: Total | BI76: =$BN$2 -> 2004-03-01 | BJ76: Date | BK76: =IF((BQ4+22)<=31,BQ4+22,"") -> 29 | BL76: =IF((BQ4+23)<=31,BQ4+23,"") -> 30 | BM76: =IF((BQ4+24)<=31,BQ4+24,"") -> 31 | BN76: =IF((BQ4+25)<=31,BQ4+25,"") ->  | BO76: =IF((BQ4+26)<=31,BQ4+26,"") ->  | BP76: =IF((BQ4+27)<=31,BQ4+27,"") ->  | BQ76: =IF((BQ4+28)<=31,BQ4+28,"") ->  | BR76: Total
B77: Day | C77: Mon | D77: Tue | E77: Wed | F77: Thu | G77: Fri | H77: Sat | I77: Sun | J77: Hours | L77: Day | M77: Mon | N77: Tue | O77: Wed | P77: Thu | Q77: Fri | R77: Sat | S77: Sun | T77: Hours | V77: Day | W77: Mon | X77: Tue | Y77: Wed | Z77: Thu | AA77: Fri | AB77: Sat | AC77: Sun | AD77: Hours | AF77: Day | AG77: Mon | AH77: Tue | AI77: Wed | AJ77: Thu | AK77: Fri | AL77: Sat | AM77: Sun | AN77: Hours | AP77: Day | AQ77: Mon | AR77: Tue | AS77: Wed | AT77: Thu | AU77: Fri | AV77: Sat | AW77: Sun | AX77: Hours | AZ77: Day | BA77: Mon | BB77: Tue | BC77: Wed | BD77: Thu | BE77: Fri | BF77: Sat | BG77: Sun | BH77: Hours | BJ77: Day | BK77: Mon | BL77: Tue | BM77: Wed | BN77: Thu | BO77: Fri | BP77: Sat | BQ77: Sun | BR77: Hours
A78: Main Pool | B78: Junior Hrs | J78: =SUM(C78:I78) -> 0 | K78: Main Pool | L78: Junior Hrs | T78: =SUM(M78:S78) -> 0 | U78: Main Pool | V78: Junior Hrs | AD78: =SUM(W78:AC78) -> 0 | AE78: Main Pool | AF78: Junior Hrs | AN78: =SUM(AG78:AM78) -> 0 | AO78: Main Pool | AP78: Junior Hrs | AX78: =SUM(AQ78:AW78) -> 0 | AY78: Main Pool | AZ78: Junior Hrs | BH78: =SUM(BA78:BG78) -> 0 | BI78: Main Pool | BJ78: Junior Hrs | BR78: =SUM(BK78:BQ78) -> 0
B79: Time | L79: Time | V79: Time | AF79: Time | AP79: Time | AZ79: Time | BJ79: Time
B80: Junior Hrs | J80: =SUM(C80:I80) -> 0 | L80: Junior Hrs | T80: =SUM(M80:S80) -> 0 | V80: Junior Hrs | AB80: 1 | AC80: 1 | AD80: =SUM(W80:AC80) -> 2 | AF80: Junior Hrs | AN80: =SUM(AG80:AM80) -> 0 | AP80: Junior Hrs | AV80: 1 | AX80: =SUM(AQ80:AW80) -> 1 | AZ80: Junior Hrs | BF80: 1 | BG80: 1 | BH80: =SUM(BA80:BG80) -> 2 | BJ80: Junior Hrs | BR80: =SUM(BK80:BQ80) -> 0
B81: Time | L81: Time | V81: Time | AB81: 8-9am | AC81: 8-9am | AF81: Time | AP81: Time | AV81: 8-9am | AZ81: Time | BF81: 8-9am | BG81: 8-9am | BJ81: Time
B82: Junior Hrs | D82: 2.5 | J82: =SUM(C82:I82) -> 2.5 | L82: Junior Hrs | N82: 2.5 | Q82: 3 | T82: =SUM(M82:S82) -> 5.5 | V82: Junior Hrs | X82: 2.5 | AA82: 3 | AB82: 1 | AC82: 4.5 | AD82: =SUM(W82:AC82) -> 11 | AF82: Junior Hrs | AN82: =SUM(AG82:AM82) -> 0 | AP82: Junior Hrs | AR82: 2.5 | AU82: 3 | AV82: 1 | AX82: =SUM(AQ82:AW82) -> 6.5 | AZ82: Junior Hrs | BB82: 2.5 | BE82: 3 | BF82: 1 | BG82: 4.5 | BH82: =SUM(BA82:BG82) -> 11 | BJ82: Junior Hrs | BL82: 2.5 | BR82: =SUM(BK82:BQ82) -> 2.5
B83: Time | D83: 7.30-10pm | L83: Time | N83: 7.30-10pm | Q83: 6-9pm | V83: Time | X83: 7.30-10pm | AA83: 6-9pm | AB83: 6-7pm | AC83: 5.30-10pm | AF83: Time | AP83: Time | AR83: 7.30-10pm | AU83: 6-9pm | AV83: 6-7pm | AZ83: Time | BB83: 7.30-10pm | BE83: 6-9pm | BF83: 6-7pm | BG83: 5.30-10pm | BJ83: Time | BL83: 7.30-10pm
B84: Adult Hrs | J84: =SUM(C84:I84) -> 0 | L84: Adult Hrs | P84: 1 | T84: =SUM(M84:S84) -> 1 | V84: Adult Hrs | Z84: 1 | AD84: =SUM(W84:AC84) -> 1 | AF84: Adult Hrs | AN84: =SUM(AG84:AM84) -> 0 | AP84: Adult Hrs | AT84: 1 | AX84: =SUM(AQ84:AW84) -> 1 | AZ84: Adult Hrs | BD84: 1 | BH84: =SUM(BA84:BG84) -> 1 | BJ84: Adult Hrs | BR84: =SUM(BK84:BQ84) -> 0
B85: Time | L85: Time | P85: 9-10pm | V85: Time | Z85: 9-10pm | AF85: Time | AP85: Time | AT85: 9-10pm | AZ85: Time | BD85: 9-10pm | BJ85: Time
A86: Small Pool | B86: Junior Hrs | D86: 2.5 | J86: =SUM(C86:I86) -> 2.5 | K86: Small Pool | L86: Junior Hrs | N86: 2.5 | Q86: 2.5 | T86: =SUM(M86:S86) -> 5 | U86: Small Pool | V86: Junior Hrs | X86: 2.5 | AA86: 2.5 | AC86: 2.5 | AD86: =SUM(W86:AC86) -> 7.5 | AE86: Small Pool | AF86: Junior Hrs | AN86: =SUM(AG86:AM86) -> 0 | AO86: Small Pool | AP86: Junior Hrs | AR86: 2.5 | AU86: 2.5 | AX86: =SUM(AQ86:AW86) -> 5 | AY86: Small Pool | AZ86: Junior Hrs | BB86: 2.5 | BE86: 2.5 | BG86: 2 | BH86: =SUM(BA86:BG86) -> 7 | BI86: Small Pool | BJ86: Junior Hrs | BL86: 2.5 | BR86: =SUM(BK86:BQ86) -> 2.5
B87: Time | D87: 6-8.30pm | L87: Time | N87: 6-8.30pm | Q87: 6-9pm | V87: Time | X87: 6-8.30pm | AA87: 6-8.30pm | AC87: 5.30-7.30pm | AF87: Time | AP87: Time | AR87: 6-8.30pm | AU87: 6-8.30pm | AZ87: Time | BB87: 6-8.30pm | BE87: 6-8.30pm | BG87: 5.30-7.30pm | BJ87: Time | BL87: 6-8.30pm
B88: Adult Hrs | J88: =SUM(C88:I88) -> 0 | L88: Adult Hrs | T88: =SUM(M88:S88) -> 0 | V88: Adult Hrs | AD88: =SUM(W88:AC88) -> 0 | AF88: Adult Hrs | AN88: =SUM(AG88:AM88) -> 0 | AP88: Adult Hrs | AX88: =SUM(AQ88:AW88) -> 0 | AZ88: Adult Hrs | BH88: =SUM(BA88:BG88) -> 0 | BJ88: Adult Hrs | BR88: =SUM(BK88:BQ88) -> 0
B89: Time | L89: Time | V89: Time | AF89: Time | AP89: Time | AZ89: Time | BJ89: Time
A90: Practice Hall | B90: Junior Hrs | J90: =SUM(C90:I90) -> 0 | K90: Practice Hall | L90: Junior Hrs | T90: =SUM(M90:S90) -> 0 | U90: Practice Hall | V90: Junior Hrs | AD90: =SUM(W90:AC90) -> 0 | AE90: Practice Hall | AF90: Junior Hrs | AN90: =SUM(AG90:AM90) -> 0 | AO90: Practice Hall | AP90: Junior Hrs | AX90: =SUM(AQ90:AW90) -> 0 | AY90: Practice Hall | AZ90: Junior Hrs | BH90: =SUM(BA90:BG90) -> 0 | BI90: Practice Hall | BJ90: Junior Hrs | BR90: =SUM(BK90:BQ90) -> 0
B91: Time | L91: Time | V91: Time | AF91: Time | AP91: Time | AZ91: Time | BJ91: Time
A94: =$F$2 -> 2003-09-01 | B94: Date | C94: =IF((I4+29)<=30,I4+29,"") ->  | D94: =IF((I4+30)<=30,I4+30,"") ->  | E94: =IF((I4+31)<=30,I4+31,"") ->  | F94: =IF((I4+32)<=30,I4+32,"") ->  | G94: =IF((I4+33)<=30,I4+33,"") ->  | H94: =IF((I4+34)<=30,I4+34,"") ->  | I94: =IF((I4+35)<=30,I4+35,"") ->  | J94: Total | K94: =$P$2 -> 2003-10-01 | L94: Date | M94: =IF((S4+29)<=31,S4+29,"") ->  | N94: =IF((S4+30)<=31,S4+30,"") ->  | O94: =IF((S4+31)<=31,S4+31,"") ->  | P94: =IF((S4+32)<=31,S4+32,"") ->  | Q94: =IF((S4+33)<=31,S4+33,"") ->  | R94: =IF((S4+34)<=31,S4+34,"") ->  | S94: =IF((S4+35)<=31,S4+35,"") ->  | T94: Total | U94: =$Z$2 -> 2003-11-01 | V94: Date | W94: =IF((AC4+29)<=30,AC4+29,"") ->  | X94: =IF((AC4+30)<=30,AC4+30,"") ->  | Y94: =IF((AC4+31)<=30,AC4+31,"") ->  | Z94: =IF((AC4+32)<=30,AC4+32,"") ->  | AA94: =IF((AC4+33)<=30,AC4+33,"") ->  | AB94: =IF((AC4+34)<=30,AC4+34,"") ->  | AC94: =IF((AC4+35)<=30,AC4+35,"") ->  | AD94: Total | AE94: =$AJ$2 -> 2003-12-01 | AF94: Date | AG94: =IF((AM4+29)<=31,AM4+29,"") ->  | AH94: =IF((AM4+30)<=31,AM4+30,"") ->  | AI94: =IF((AM4+31)<=31,AM4+31,"") ->  | AJ94: =IF((AM4+32)<=31,AM4+32,"") ->  | AK94: =IF((AM4+33)<=31,AM4+33,"") ->  | AL94: =IF((AM4+34)<=31,AM4+34,"") ->  | AM94: =IF((AM4+35)<=31,AM4+35,"") ->  | AN94: Total | AO94: =$AT$2 -> 2004-01-01 | AP94: Date | AQ94: =IF((AW4+29)<=31,AW4+29,"") ->  | AR94: =IF((AW4+30)<=31,AW4+30,"") ->  | AS94: =IF((AW4+31)<=31,AW4+31,"") ->  | AT94: =IF((AW4+32)<=31,AW4+32,"") ->  | AU94: =IF((AW4+33)<=31,AW4+33,"") ->  | AV94: =IF((AW4+34)<=31,AW4+34,"") ->  | AW94: =IF((AW4+35)<=31,AW4+35,"") ->  | AX94: Total | AY94: =$BD$2 -> 2004-02-01 | AZ94: Date | BA94: =IF((BG4+29)<=28,BG4+29,"") ->  | BB94: =IF((BG4+30)<=28,BG4+30,"") ->  | BC94: =IF((BG4+31)<=28,BG4+31,"") ->  | BD94: =IF((BG4+32)<=28,BG4+32,"") ->  | BE94: =IF((BG4+33)<=28,BG4+33,"") ->  | BF94: =IF((BG4+34)<=28,BG4+34,"") ->  | BG94: =IF((BG4+35)<=28,BG4+35,"") ->  | BH94: Total | BI94: =$BN$2 -> 2004-03-01 | BJ94: Date | BK94: =IF((BQ4+29)<=31,BQ4+29,"") ->  | BL94: =IF((BQ4+30)<=31,BQ4+30,"") ->  | BM94: =IF((BQ4+31)<=31,BQ4+31,"") ->  | BN94: =IF((BQ4+32)<=31,BQ4+32,"") ->  | BO94: =IF((BQ4+33)<=31,BQ4+33,"") ->  | BP94: =IF((BQ4+34)<=31,BQ4+34,"") ->  | BQ94: =IF((BQ4+35)<=31,BQ4+35,"") ->  | BR94: Total
B95: Day | C95: Mon | D95: Tue | E95: Wed | F95: Thu | G95: Fri | H95: Sat | I95: Sun | J95: Hours | L95: Day | M95: Mon | N95: Tue | O95: Wed | P95: Thu | Q95: Fri | R95: Sat | S95: Sun | T95: Hours | V95: Day | W95: Mon | X95: Tue | Y95: Wed | Z95: Thu | AA95: Fri | AB95: Sat | AC95: Sun | AD95: Hours | AF95: Day | AG95: Mon | AH95: Tue | AI95: Wed | AJ95: Thu | AK95: Fri | AL95: Sat | AM95: Sun | AN95: Hours | AP95: Day | AQ95: Mon | AR95: Tue | AS95: Wed | AT95: Thu | AU95: Fri | AV95: Sat | AW95: Sun | AX95: Hours | AZ95: Day | BA95: Mon | BB95: Tue | BC95: Wed | BD95: Thu | BE95: Fri | BF95: Sat | BG95: Sun | BH95: Hours | BJ95: Day | BK95: Mon | BL95: Tue | BM95: Wed | BN95: Thu | BO95: Fri | BP95: Sat | BQ95: Sun | BR95: Hours
A96: Main Pool | B96: Junior Hrs | J96: =SUM(C96:I96) -> 0 | K96: Main Pool | L96: Junior Hrs | T96: =SUM(M96:S96) -> 0 | U96: Main Pool | V96: Junior Hrs | AD96: =SUM(W96:AC96) -> 0 | AE96: Main Pool | AF96: Junior Hrs | AN96: =SUM(AG96:AM96) -> 0 | AO96: Main Pool | AP96: Junior Hrs | AX96: =SUM(AQ96:AW96) -> 0 | AY96: Main Pool | AZ96: Junior Hrs | BH96: =SUM(BA96:BG96) -> 0 | BI96: Main Pool | BJ96: Junior Hrs | BR96: =SUM(BK96:BQ96) -> 0
B97: Time | L97: Time | V97: Time | AF97: Time | AP97: Time | AZ97: Time | BJ97: Time
B98: Junior Hrs | J98: =SUM(C98:I98) -> 0 | L98: Junior Hrs | T98: =SUM(M98:S98) -> 0 | V98: Junior Hrs | AD98: =SUM(W98:AC98) -> 0 | AF98: Junior Hrs | AN98: =SUM(AG98:AM98) -> 0 | AP98: Junior Hrs | AX98: =SUM(AQ98:AW98) -> 0 | AZ98: Junior Hrs | BH98: =SUM(BA98:BG98) -> 0 | BJ98: Junior Hrs | BR98: =SUM(BK98:BQ98) -> 0
B99: Time | L99: Time | V99: Time | AF99: Time | AP99: Time | AZ99: Time | BJ99: Time
B100: Junior Hrs | J100: =SUM(C100:I100) -> 0 | L100: Junior Hrs | T100: =SUM(M100:S100) -> 0 | V100: Junior Hrs | AD100: =SUM(W100:AC100) -> 0 | AF100: Junior Hrs | AN100: =SUM(AG100:AM100) -> 0 | AP100: Junior Hrs | AX100: =SUM(AQ100:AW100) -> 0 | AZ100: Junior Hrs | BH100: =SUM(BA100:BG100) -> 0 | BJ100: Junior Hrs | BR100: =SUM(BK100:BQ100) -> 0
B101: Time | L101: Time | V101: Time | AF101: Time | AP101: Time | AZ101: Time | BJ101: Time
B102: Adult Hrs | J102: =SUM(C102:I102) -> 0 | L102: Adult Hrs | T102: =SUM(M102:S102) -> 0 | V102: Adult Hrs | AD102: =SUM(W102:AC102) -> 0 | AF102: Adult Hrs | AN102: =SUM(AG102:AM102) -> 0 | AP102: Adult Hrs | AX102: =SUM(AQ102:AW102) -> 0 | AZ102: Adult Hrs | BH102: =SUM(BA102:BG102) -> 0 | BJ102: Adult Hrs | BR102: =SUM(BK102:BQ102) -> 0
B103: Time | L103: Time | V103: Time | AF103: Time | AP103: Time | AZ103: Time | BJ103: Time
A104: Small Pool | B104: Junior Hrs | J104: =SUM(C104:I104) -> 0 | K104: Small Pool | L104: Junior Hrs | T104: =SUM(M104:S104) -> 0 | U104: Small Pool | V104: Junior Hrs | AD104: =SUM(W104:AC104) -> 0 | AE104: Small Pool | AF104: Junior Hrs | AN104: =SUM(AG104:AM104) -> 0 | AO104: Small Pool | AP104: Junior Hrs | AX104: =SUM(AQ104:AW104) -> 0 | AY104: Small Pool | AZ104: Junior Hrs | BH104: =SUM(BA104:BG104) -> 0 | BI104: Small Pool | BJ104: Junior Hrs | BR104: =SUM(BK104:BQ104) -> 0
B105: Time | L105: Time | V105: Time | AF105: Time | AP105: Time | AZ105: Time | BJ105: Time
B106: Junior Hrs | J106: =SUM(C106:I106) -> 0 | L106: Junior Hrs | T106: =SUM(M106:S106) -> 0 | V106: Junior Hrs | AD106: =SUM(W106:AC106) -> 0 | AF106: Junior Hrs | AN106: =SUM(AG106:AM106) -> 0 | AP106: Junior Hrs | AX106: =SUM(AQ106:AW106) -> 0 | AZ106: Junior Hrs | BH106: =SUM(BA106:BG106) -> 0 | BJ106: Junior Hrs | BR106: =SUM(BK106:BQ106) -> 0
B107: Time | L107: Time | V107: Time | AF107: Time | AP107: Time | AZ107: Time | BJ107: Time
A108: Practice Hall | B108: Junior Hrs | J108: =SUM(C108:I108) -> 0 | K108: Practice Hall | L108: Junior Hrs | T108: =SUM(M108:S108) -> 0 | U108: Practice Hall | V108: Junior Hrs | AD108: =SUM(W108:AC108) -> 0 | AE108: Practice Hall | AF108: Junior Hrs | AN108: =SUM(AG108:AM108) -> 0 | AO108: Practice Hall | AP108: Junior Hrs | AX108: =SUM(AQ108:AW108) -> 0 | AY108: Practice Hall | AZ108: Junior Hrs | BH108: =SUM(BA108:BG108) -> 0 | BI108: Practice Hall | BJ108: Junior Hrs | BR108: =SUM(BK108:BQ108) -> 0
B109: Time | L109: Time | V109: Time | AF109: Time | AP109: Time | AZ109: Time | BJ109: Time
